Workbook

Sheet Enable
G11: Young People Sexual and Reproductive Health: Return On Investment Tool
G16: Please enable Editing and Macros to proceed
I27: Published: June 2020
I28: PHE publications gateway number: GW-1295

Sheet Landing
A1: z
G11: Young People Sexual and Reproductive Health: Return On Investment Tool
G16: Excel-based tool to help decision-makers working on young people's sexual and reproductive health make informed choices about the impact and return on investment (ROI) certain services may provide.
K23: START >
I27: Published: June 2020
I28: PHE publications gateway number: GW-1295

Sheet Dashboard
C1: Young People Sexual and Reproductive Health ROI Tool | P1: Key: | Q1: Editable Cell | S1: info = Information | V1: Clickable Button
C3: Dashboard | G3: How to use this tool | K3: Background | O3: References | S3: Acknowledgements
D5: Relaunch Guide | W5: Glossary | Y5: Fit To Screen
A7: G7 | B7: Step 1. Model Settings | G7: Select the population to be modelled
B9: Select area type | G9: National | R9: ="Modelled Population: 15-24 "&IF(area="[Please Select]", "", area) -> Modelled Population: 15-24 England
B10: Select area | G10: England
B12: info | C12: Total population | F12: 56357500 | O12: Reset | T12: Total:
B13: info | C13: Population 15-24 | F13: 0.1159366544 | H13: = | I13: =F13*F12 -> 6533900 | K13: people | O13: Reset
A16: CE16 | C16: Expand | E16: Click to show additional settings
J17: =dash_total_pop -> 56357500
B18: Of the 15-24 population:
B19: info | C19: Proportion male | F19: 0.5138278823 | H19: = | I19: =F19*I13 -> 3357300 | K19: people | O19: Reset
B20: info | C20: Proportion female | F20: =1-dash_prop_men -> 0.4861721177 | H20: = | I20: =IFERROR(F20*I13,"") -> 3176600 | K20: people
B22: STI prevalence | F22: Age: 15-17 | I22: Age: 18-19 | L22: Age: 20-24 | U22: Female | W22: Male
F23: Female | G23: Male | I23: Female | J23: Male | L23: Female | M23: Male | U23: =I20 -> 3176600 | W23: =I19 -> 3357300
B24: info | C24: Chlamydia | F24: 0.023 | G24: 0.001 | I24: 0.047 | J24: 0.005 | L24: 0.027 | M24: 0.034 | Q24: Estimated chlamydia population | U24: =AVERAGE(dash_prev_chla_1f,dash_prev_chla_2f,dash_prev_chla_3f)*U23 -> 102710.0667 | W24: =AVERAGE(dash_prev_chla_1m,dash_prev_chla_2m,dash_prev_chla_3m)*W23 -> 44764
B25: info | C25: Gonorrhoea | F25: 0.001 | G25: 0.001 | I25: 0.001 | J25: 0.001 | L25: 0.002 | M25: 0.001 | Q25: Estimated gonorrhoea population | U25: =AVERAGE(dash_prev_gon_1f,dash_prev_gon_2f,dash_prev_gon_3f)*U23 -> 4235.466667 | W25: =AVERAGE(dash_prev_gon_1m,dash_prev_gon_2m,dash_prev_gon_3m)*W23 -> 3357.3
B26: info | C26: Genital warts | F26: 0.001 | G26: 0.002 | I26: 0.001 | J26: 0.002 | L26: 0.012 | M26: 0.004 | Q26: Estimated genital warts population | U26: =AVERAGE(dash_prev_gen_1f,dash_prev_gen_2f,dash_prev_gen_3f)*U23 -> 14824.13333 | W26: =AVERAGE(dash_prev_gen_1m,dash_prev_gen_2m,dash_prev_gen_3m)*W23 -> 8952.8
B27: info | C27: Syphilis | F27: 0.0011 | G27: 0.0011 | I27: 0.0011 | J27: 0.0011 | L27: 0.0011 | M27: 0.0011 | Q27: Estimated syphilis population | U27: =AVERAGE(dash_prev_syp_1f,dash_prev_syp_2f,dash_prev_syp_3f)*U23 -> 3494.26 | W27: =AVERAGE(dash_prev_syp_1m,dash_prev_syp_2m,dash_prev_syp_3m)*W23 -> 3693.03
B28: info | C28: HIV | F28: 0.001 | G28: 0.002 | I28: 0.001 | J28: 0.002 | L28: 0.001 | M28: 0.002 | Q28: Estimated HIV population | U28: =AVERAGE(dash_prev_HIV_1f,dash_prev_HIV_2f,dash_prev_HIV_3f)*U23 -> 3176.6 | W28: =AVERAGE(dash_prev_HIV_1m,dash_prev_HIV_2m,dash_prev_HIV_3m)*W23 -> 6714.6
C29: None | G29: =1-SUM(F24:G27) -> 0.9688 | J29: =dash_pop_1524-SUM(J24:J28) -> 6533899.989
B30: Value of a QALY
B31: info | C31: Monetary value of a QALY | G31: 60000 | O31: Reset
B35: Step 2. Intervention Inputs | G35: For all interventions except for "Reduced time from testing to results", enter a cost value and uptake/reach changes accordingly
B36: Intervention Name | H36: Display Additional Info | K36: Current v Future Cost | P36: Current v Future Uptake | S36: Effectiveness Measure | X36: Reset All
A37: JMQTV37 | K37: info | P37: info | T37: info
A38: 38 | B38: Online STI service | G38: info | H38: Hide | K38: =L44-L40 -> 0 | P38: =Q44-Q40 -> 1.750799505e-11 | S38: ↑/↓ STI testing rate | X38: Reset
D40: Current scenario: | G40: If total spending on this intervention is | L40: 24823399.12 | N40: expect to fully test | Q40: 0.2952073759 | R40: =" of those 15-24 & sex. active ("&TEXT(Parameters!$G$46*Q40,"#,###")&" people)" -> of those 15-24 & sex. active (1,414,536 people)
G42: The overall testing rate will increase from | M42: 0.1424793899 | N42: without online testing
D44: Future scenario: | G44: If total spending on this intervention is | L44: 24823399.12 | N44: expect to fully test | Q44: 0.2952073759 | R44: =" of those 15-24 & sex. active ("&TEXT(Parameters!$G$46*Q44,"#,###")&" people)" -> of those 15-24 & sex. active (1,414,536 people)
G46: The overall testing rate will increase from | M46: 0.1424793899 | N46: without online testing
A48: 48 | B48: C-card scheme | G48: info | H48: Hide | K48: =L54-L50 -> 0 | P48: =Q54-Q50 -> 0 | S48: ↑/↓ Condom usage | X48: Reset
D50: Current scenario: | G50: If total spending on this intervention is | L50: 2225389.94 | N50: expect to reach | Q50: 0.04 | R50: =" of those 15-24 & sex. active ("&TEXT(Parameters!$G$46*Q50,"#,###")&" people)" -> of those 15-24 & sex. active (191,667 people)
G52: For those reached, condom usage improves to | M52: 0.8080421054 | N52: compared to | P52: 0.439857671 | Q52: with no intervention.
D54: Future scenario: | G54: If total spending on this intervention is | L54: 2225389.94 | N54: expect to reach | Q54: 0.04 | R54: =" of those 15-24 & sex. active ("&TEXT(Parameters!$G$46*Q54,"#,###")&" people)" -> of those 15-24 & sex. active (191,667 people)
G56: For those reached, condom usage improves to | M56: 0.8080421054 | N56: compared to | P56: 0.439857671 | Q56: with no intervention.
B57: Note: Baseline condom use applied here also applies for Condom availability in schools
A58: 58 | B58: Condoms in schools and colleges | G58: info | H58: Hide | K58: =L64-L60 -> 0 | P58: =Q64-Q60 -> 0 | S58: ↑/↓ Condom usage | X58: Reset
D60: Current scenario: | G60: If total spending on this intervention is | L60: 4369773.13 | N60: expect to reach | Q60: 0.5 | R60: =" of those 15-17 & sex. active ("&TEXT(Parameters!$G$49*Q60,"#,###")&" people)" -> of those 15-17 & sex. active (409,506 people)
G62: For those reached, condom usage improves to | M62: 0.5751984928 | N62: compared to | P62: =P52 -> 0.439857671 | Q62: with no intervention.
D64: Future scenario: | G64: If total spending on this intervention is | L64: 4369773.13 | N64: expect to reach | Q64: 0.5 | R64: =" of those 15-17 & sex. active ("&TEXT(Parameters!$G$49*Q64,"#,###")&" people)" -> of those 15-17 & sex. active (409,506 people)
G66: For those reached, condom usage improves to | M66: 0.5751984928 | N66: compared to | P66: =P56 -> 0.439857671 | Q66: with no intervention.
A68: 68 | B68: E-partner notification | G68: info | H68: Hide | K68: =L74-L70 -> 0 | P68: =Q74-Q70 -> 0 | S68: ↑/↓ Partner testing rate | X68: Reset
D70: Current scenario: | G70: If total spending on this intervention is | L70: 110192.32 | N70: expect to reach | Q70: 0.5 | R70: =" of those 15-24 treated for an STI ("&TEXT(Interventions!C192*Q70,"#,###")&" people)" -> of those 15-24 treated for an STI (55,096 people)
G72: For those reached, partner testing improves to | M72: 0.5172090484 | N72: compared to | P72: 0.4088780315 | Q72: with no intervention.
D74: Future scenario: | G74: If total spending on this intervention is | L74: 110192.32 | N74: expect to reach | Q74: 0.5 | R74: =" of those 15-24 treated for an STI ("&TEXT(Interventions!D192*Q74,"#,###")&" people)" -> of those 15-24 treated for an STI (55,096 people)
G76: For those reached, partner testing improves to | M76: 0.5172090484 | N76: compared to | P76: 0.4088780315 | Q76: with no intervention.
A78: 78 | B78: Chlamydia screening: women | G78: info | H78: Hide | K78: =L84-L80 -> 0 | P78: =Q84-Q80 -> 0 | S78: ↑/↓ STI testing rate | X78: Reset
D80: Current scenario: | G80: If total spending on this intervention is | L80: 26397814.04 | N80: expect to test | Q80: 0.3868078915 | R80: =" of those 15-24, female and sex. active ("&TEXT(Parameters!$G$46*Q80*$F$20,"#,###")&" people)" -> of those 15-24, female and sex. active (901,098 people)
G82: The chlamydia testing rate will increase from | M82: 0.1788123448 | N82: without screening
D84: Future scenario: | G84: If total spending on this intervention is | L84: 26397814.04 | N84: expect to test | Q84: 0.3868078915 | R84: =" of those 15-24, female and sex. active ("&TEXT(Parameters!$G$46*Q84*$F$20,"#,###")&" people)" -> of those 15-24, female and sex. active (901,098 people)
G86: The chlamydia testing rate will increase from | M86: 0.1788123448 | N86: without screening
A88: 88 | B88: Extra emergency contraception | G88: info | H88: Hide | K88: =L94-L90 -> 0 | P88: =Q94-Q90 -> 0 | S88: ↑/↓ Pregnancy averted | X88: Reset
D90: Current scenario: | G90: If total spending on this intervention is | L90: 431868.23 | N90: expect to reach | Q90: 0.5 | R90: =" of those 15-24 accessing EHC ("&TEXT(Interventions!C254*Q90,"#,###")&" people)" -> of those 15-24 accessing EHC (83,052 people)
G92: For those reached, pregnancy risk reduces to | M92: 0.0147 | N92: compared to | P92: 0.0819 | Q92: with no intervention.
D94: Future scenario: | G94: If total spending on this intervention is | L94: 431868.23 | N94: expect to reach | Q94: 0.5 | R94: =" of those 15-24 accessing EHC ("&TEXT(Interventions!D254*Q94,"#,###")&" people)" -> of those 15-24 accessing EHC (83,052 people)
G96: For those reached, pregnancy risk reduces to | M96: 0.0147 | N96: compared to | P96: 0.0819 | Q96: with no intervention.
A98: 98 | B98: Oral contraception with EHC | G98: info | H98: Hide | K98: =L104-L100 -> 0 | P98: =Q104-Q100 -> 0 | S98: ↑/↓ Pill usage | X98: Reset
D100: Current scenario: | G100: If total spending on this intervention is | L100: 4170118.04 | N100: expect to reach | Q100: 0.5 | R100: =" of those 15-24 accessing EHC ("&TEXT(Interventions!C254*Q100,"#,###")&" people)" -> of those 15-24 accessing EHC (83,052 people)
G102: For those reached, pill use improves to | M102: 0.336 | N102: compared to | P102: 0.096 | Q102: with no intervention.
D104: Future scenario: | G104: If total spending on this intervention is | L104: 4170118.04 | N104: expect to reach | Q104: 0.5 | R104: =" of those 15-24 accessing EHC ("&TEXT(Interventions!D254*Q104,"#,###")&" people)" -> of those 15-24 accessing EHC (83,052 people)
G106: For those reached, pill usage improves to | M106: 0.336 | N106: compared to | P106: 0.096 | Q106: with no intervention.
A108: 108 | B108: Reduced time from test to result | G108: info | H108: Hide | K108: =L114-L110 -> 0 | P108: =Q114-Q110 -> 0 | S108: ↑/↓ Time to testing | X108: Reset
J109: enter estimated value to achieve uptake
D110: Current scenario: | G110: If total spending on this intervention is | N110: expect to reach | R110: =" of those 15-24 who get tested ("&TEXT(Parameters!G46*Q110*Parameters!C473,"#,###")&" people)" -> of those 15-24 who get tested ( people)
G112: For those reached, days to testing reduces to | M112: 0.27 | N112: compared to | P112: 8.95 | Q112: with no intervention.
D114: Future scenario: | G114: If total spending on this intervention is | N114: expect to reach | R114: =" of those 15-24 who get tested ("&TEXT(Parameters!G46*Q114*Parameters!C473,"#,###")&" people)" -> of those 15-24 who get tested ( people)
G116: For those reached, time to testing reduces to | M116: 0.27 | N116: compared to | P116: 8.95 | Q116: with no intervention.
B117: Note: this intervention does not have a default cost. Users must input their own cost in order to estimate the ROI for this intervention
A120: 120 | B120: Step 3. Results | G120: Review the model results for the different scenarios being specified in the previous step and how they should be interpreted
B122: Select scenario results to display: | G122: Current vs No Intervention
F124: Extra program cost | H124: STI cases | J124: STI diagnoses | L124: STI sequelae | N124: Unintended pregnancies | P124: Local authority cost savings | R124: NHS cost savings | T124: Other cost savings | V124: ROI exc. QALYS | X124: ROI inc. QALYS | AB124: QALYs gained | AC124: QALY £ Value
B125: Pregnancy and STI Interventions | F125: info | H125: info | J125: info | L125: info | N125: info | P125: info | R125: info | T125: info | V125: info | X125: info
B127: =Dashboard!B48 -> C-card scheme | F127: =IF(Controls!B4=1,Dashboard!L50,IF(Controls!B4=2,Dashboard!L54,Dashboard!L54-Dashboard!L50)) -> 2225389.94 | H127: =(OFFSET('Model v baseline'!C330,0,(Controls!B4-1)*35)+OFFSET('Model v baseline'!C343,0,(Controls!B4-1)*35)+OFFSET('Model v baseline'!C356,0,(Controls!B4-1)*35)+OFFSET('Model v baseline'!C369,0,(Controls!B4-1)*35)+OFFSET('Model v baseline'!C382,0,(Controls!B4-1)*35))*IF(Controls!B4=3, -1, 1) -> -7509.346769 | J127: =-1*OFFSET('Diagnosis calculations'!BK44,0,(Controls!B4-1)*32)*IF(Controls!B4=3, -1, -1) -> -4462.697016 | L127: =((OFFSET('Model v baseline'!C393,0,(Controls!B4-1)*35)+OFFSET('Model v baseline'!C400,0,(Controls!B4-1)*35)+OFFSET('Model v baseline'!C407,0,(Controls!B4-1)*35))*IF(Controls!B4=3, -1, 1)) -> -240.5418844 | N127: =(OFFSET('Model v baseline'!C418,0,(Controls!B4-1)*35)+OFFSET('Model v baseline'!C419,0,(Controls!B4-1)*35))*IF(Controls!B4=3, -1, 1) -> -1135.764439 | P127: =-1*(OFFSET('Model v baseline'!C340,0,(Controls!B4-1)*35)+OFFSET('Model v baseline'!C353,0,(Controls!B4-1)*35)+OFFSET('Model v baseline'!C366,0,(Controls!B4-1)*35)+OFFSET('Model v baseline'!C379,0,(Controls!B4-1)*35)+OFFSET('Model v baseline'!C421,0,(Controls!B4-1)*35)+OFFSET('Model v baseline'!C416,0,(Controls!B4-1)*35)+OFFSET('Model v baseline'!C417,0,(Controls!B4-1)*35))*IF(Controls!B4=3, -1, 1) -> 1080120.581 | R127: =-1*(OFFSET('Model v baseline'!C392,0,(Controls!B4-1)*35)+OFFSET('Model v baseline'!C398,0,(Controls!B4-1)*35)+OFFSET('Model v baseline'!C399,0,(Controls!B4-1)*35)+OFFSET('Model v baseline'!C405,0,(Controls!B4-1)*35)+OFFSET('Model v baseline'!C406,0,(Controls!B4-1)*35)+OFFSET('Model v baseline'!C412,0,(Controls!B4-1)*35)+OFFSET('Model v baseline'!C413,0,(Controls!B4-1)*35)+OFFSET('Model v baseline'!C422,0,(Controls!B4-1)*35))*IF(Controls!B4=3, -1, 1) -> 7332785.214 | T127: =-1*(OFFSET('Model v baseline'!C423,0,(Controls!B4-1)*35))*IF(Controls!B4=3, -1, 1) -> 6336413.538 | V127: =IFERROR(SUM(P127:U127)/F127, "N/A") -> 6.627746027 | W127: to 1 | X127: =IFERROR(SUM(P127:U127,AC127)/F127, "N/A") -> 11.30400268 | Y127: to 1 | AB127: =(OFFSET('Model v baseline'!C337,0,(Controls!B4-1)*35)+OFFSET('Model v baseline'!C350,0,(Controls!B4-1)*35)+OFFSET('Model v baseline'!C363,0,(Controls!B4-1)*35)+OFFSET('Model v baseline'!C376,0,(Controls!B4-1)*35)+OFFSET('Model v baseline'!C389,0,(Controls!B4-1)*35)+OFFSET('Model v baseline'!C397,0,(Controls!B4-1)*35)+OFFSET('Model v baseline'!C404,0,(Controls!B4-1)*35)+OFFSET('Model v baseline'!C411,0,(Controls!B4-1)*35))*IF(Controls!B4=3, -1, 1) -> 173.4415752 | AC127: =AB127*Parameters!$D$434 -> 10406494.51
B128: Limitations:
B130: =Dashboard!B58 -> Condoms in schools and colleges | F130: =IF(Controls!B4=1,Dashboard!L60,IF(Controls!B4=2,Dashboard!L64,Dashboard!L64-Dashboard!L60)) -> 4369773.13 | H130: =(OFFSET('Model v baseline'!C442,0,(Controls!B4-1)*35)+OFFSET('Model v baseline'!C455,0,(Controls!B4-1)*35)+OFFSET('Model v baseline'!C468,0,(Controls!B4-1)*35)+OFFSET('Model v baseline'!C481,0,(Controls!B4-1)*35)+OFFSET('Model v baseline'!C494,0,(Controls!B4-1)*35))*IF(Controls!B4=3, -1, 1) -> -1987.356217 | J130: =-1*OFFSET('Diagnosis calculations'!BK55,0,(Controls!B4-1)*32)*IF(Controls!B4=3, -1, -1) -> -1132.095686 | L130: =((OFFSET('Model v baseline'!C505,0,(Controls!B4-1)*35)+OFFSET('Model v baseline'!C512,0,(Controls!B4-1)*35)+OFFSET('Model v baseline'!C519,0,(Controls!B4-1)*35))*IF(Controls!B4=3, -1, 1)) -> -11.5999575 | N130: =(OFFSET('Model v baseline'!C530,0,(Controls!B4-1)*35)+OFFSET('Model v baseline'!C531,0,(Controls!B4-1)*35))*IF(Controls!B4=3, -1, 1) -> -2575.057346 | P130: =-1*(OFFSET('Model v baseline'!C452,0,(Controls!B4-1)*35)+OFFSET('Model v baseline'!C465,0,(Controls!B4-1)*35)+OFFSET('Model v baseline'!C478,0,(Controls!B4-1)*35)+OFFSET('Model v baseline'!C491,0,(Controls!B4-1)*35)+OFFSET('Model v baseline'!C533,0,(Controls!B4-1)*35)+OFFSET('Model v baseline'!C528,0,(Controls!B4-1)*35)+OFFSET('Model v baseline'!C529,0,(Controls!B4-1)*35))*IF(Controls!B4=3, -1, 1) -> 1472964.565 | R130: =-1*(OFFSET('Model v baseline'!C504,0,(Controls!B4-1)*35)+OFFSET('Model v baseline'!C510,0,(Controls!B4-1)*35)+OFFSET('Model v baseline'!C511,0,(Controls!B4-1)*35)+OFFSET('Model v baseline'!C517,0,(Controls!B4-1)*35)+OFFSET('Model v baseline'!C518,0,(Controls!B4-1)*35)+OFFSET('Model v baseline'!C524,0,(Controls!B4-1)*35)+OFFSET('Model v baseline'!C525,0,(Controls!B4-1)*35)+OFFSET('Model v baseline'!C534,0,(Controls!B4-1)*35))*IF(Controls!B4=3, -1, 1) -> 11151708.48 | T130: =-1*(OFFSET('Model v baseline'!C535,0,(Controls!B4-1)*35))*IF(Controls!B4=3, -1, 1) -> 12979636.78 | V130: =IFERROR(SUM(P130:U130)/F130, "N/A") -> 5.859413993 | W130: to 1 | X130: =IFERROR(SUM(P130:U130,AC130)/F130, "N/A") -> 6.725750979 | Y130: to 1 | AB130: =(OFFSET('Model v baseline'!C449,0,(Controls!B4-1)*35)+OFFSET('Model v baseline'!C462,0,(Controls!B4-1)*35)+OFFSET('Model v baseline'!C475,0,(Controls!B4-1)*35)+OFFSET('Model v baseline'!C488,0,(Controls!B4-1)*35)+OFFSET('Model v baseline'!C501,0,(Controls!B4-1)*35)+OFFSET('Model v baseline'!C509,0,(Controls!B4-1)*35)+OFFSET('Model v baseline'!C516,0,(Controls!B4-1)*35)+OFFSET('Model v baseline'!C523,0,(Controls!B4-1)*35))*IF(Controls!B4=3, -1, 1) -> 63.09493472 | AC130: =AB130*Parameters!$D$434 -> 3785696.083
B131: Limitations:
B133: STI-only Interventions
B135: =Dashboard!B38 -> Online STI service | F135: =IF(Controls!B4=1,Dashboard!L40,IF(Controls!B4=2,Dashboard!L44,Dashboard!L44-Dashboard!L40)) -> 24823399.12 | H135: 0 | J135: =-1*OFFSET('Diagnosis calculations'!BK33,0,(Controls!B4-1)*32)*IF(Controls!B4=3, -1, -1) -> 75727.37824 | L135: =((OFFSET('Model v baseline'!C281,0,(Controls!B4-1)*35)+OFFSET('Model v baseline'!C288,0,(Controls!B4-1)*35)+OFFSET('Model v baseline'!C295,0,(Controls!B4-1)*35))*IF(Controls!B4=3, -1, 1)) -> -4503.663839 | N135: 0 | P135: =-1*(OFFSET('Model v baseline'!C228,0,(Controls!B4-1)*35)+OFFSET('Model v baseline'!C241,0,(Controls!B4-1)*35)+OFFSET('Model v baseline'!C254,0,(Controls!B4-1)*35)+OFFSET('Model v baseline'!C267,0,(Controls!B4-1)*35)+OFFSET('Model v baseline'!C309,0,(Controls!B4-1)*35)+OFFSET('Model v baseline'!C304,0,(Controls!B4-1)*35)+OFFSET('Model v baseline'!C305,0,(Controls!B4-1)*35))*IF(Controls!B4=3, -1, 1) -> -6152769.528 | R135: =-1*(OFFSET('Model v baseline'!C280,0,(Controls!B4-1)*35)+OFFSET('Model v baseline'!C286,0,(Controls!B4-1)*35)+OFFSET('Model v baseline'!C287,0,(Controls!B4-1)*35)+OFFSET('Model v baseline'!C293,0,(Controls!B4-1)*35)+OFFSET('Model v baseline'!C294,0,(Controls!B4-1)*35)+OFFSET('Model v baseline'!C300,0,(Controls!B4-1)*35)+OFFSET('Model v baseline'!C301,0,(Controls!B4-1)*35)+OFFSET('Model v baseline'!C310,0,(Controls!B4-1)*35))*IF(Controls!B4=3, -1, 1) -> -3485284.767 | T135: =-1*(OFFSET('Model v baseline'!C311,0,(Controls!B4-1)*35))*IF(Controls!B4=3, -1, 1) -> 0 | V135: =IFERROR(SUM(P135:U135)/F135, "N/A") -> -0.3882648887 | W135: to 1 | X135: =IFERROR(SUM(P135:U135,AC135)/F135, "N/A") -> 5.183073792 | Y135: to 1 | AB135: =(OFFSET('Model v baseline'!C225,0,(Controls!B4-1)*35)+OFFSET('Model v baseline'!C238,0,(Controls!B4-1)*35)+OFFSET('Model v baseline'!C251,0,(Controls!B4-1)*35)+OFFSET('Model v baseline'!C264,0,(Controls!B4-1)*35)+OFFSET('Model v baseline'!C277,0,(Controls!B4-1)*35)+OFFSET('Model v baseline'!C285,0,(Controls!B4-1)*35)+OFFSET('Model v baseline'!C292,0,(Controls!B4-1)*35)+OFFSET('Model v baseline'!C299,0,(Controls!B4-1)*35))*IF(Controls!B4=3, -1, 1) -> 2304.992728 | AC135: =AB135*Parameters!$D$434 -> 138299563.7
B136: Limitations: | V136: N/A
V137: N/A
B138: =Dashboard!B68 -> E-partner notification | F138: =IF(Controls!B4=1,Dashboard!L70,IF(Controls!B4=2,Dashboard!L74,Dashboard!L74-Dashboard!L70)) -> 110192.32 | H138: 0 | J138: =-1*OFFSET('Diagnosis calculations'!BK66,0,(Controls!B4-1)*32)*IF(Controls!B4=3, -1, -1) -> 238.3192865 | L138: =((OFFSET('Model v baseline'!C617,0,(Controls!B4-1)*35)+OFFSET('Model v baseline'!C624,0,(Controls!B4-1)*35)+OFFSET('Model v baseline'!C631,0,(Controls!B4-1)*35))*IF(Controls!B4=3, -1, 1)) -> -12.24559842 | N138: 0 | P138: =-1*(OFFSET('Model v baseline'!C564,0,(Controls!B4-1)*35)+OFFSET('Model v baseline'!C577,0,(Controls!B4-1)*35)+OFFSET('Model v baseline'!C590,0,(Controls!B4-1)*35)+OFFSET('Model v baseline'!C603,0,(Controls!B4-1)*35)+OFFSET('Model v baseline'!C645,0,(Controls!B4-1)*35)+OFFSET('Model v baseline'!C640,0,(Controls!B4-1)*35)+OFFSET('Model v baseline'!C641,0,(Controls!B4-1)*35))*IF(Controls!B4=3, -1, 1) -> -93050.88877 | R138: =-1*(OFFSET('Model v baseline'!C616,0,(Controls!B4-1)*35)+OFFSET('Model v baseline'!C622,0,(Controls!B4-1)*35)+OFFSET('Model v baseline'!C623,0,(Controls!B4-1)*35)+OFFSET('Model v baseline'!C629,0,(Controls!B4-1)*35)+OFFSET('Model v baseline'!C630,0,(Controls!B4-1)*35)+OFFSET('Model v baseline'!C636,0,(Controls!B4-1)*35)+OFFSET('Model v baseline'!C637,0,(Controls!B4-1)*35)+OFFSET('Model v baseline'!C646,0,(Controls!B4-1)*35))*IF(Controls!B4=3, -1, 1) -> -20305.9515 | T138: =-1*(OFFSET('Model v baseline'!C647,0,(Controls!B4-1)*35))*IF(Controls!B4=3, -1, 1) -> 0 | V138: -1.028718156 | W138: to 1 | X138: =IFERROR(SUM(P138:U138,AC138)/F138, "N/A") -> 4.445999012 | Y138: to 1 | AB138: =(OFFSET('Model v baseline'!C561,0,(Controls!B4-1)*35)+OFFSET('Model v baseline'!C574,0,(Controls!B4-1)*35)+OFFSET('Model v baseline'!C587,0,(Controls!B4-1)*35)+OFFSET('Model v baseline'!C600,0,(Controls!B4-1)*35)+OFFSET('Model v baseline'!C613,0,(Controls!B4-1)*35)+OFFSET('Model v baseline'!C621,0,(Controls!B4-1)*35)+OFFSET('Model v baseline'!C628,0,(Controls!B4-1)*35)+OFFSET('Model v baseline'!C635,0,(Controls!B4-1)*35))*IF(Controls!B4=3, -1, 1) -> 10.05452977 | AC138: =AB138*Parameters!$D$434 -> 603271.7861
B139: Limitations: | V139: N/A
V140: N/A
B141: =Dashboard!B78 -> Chlamydia screening: women | F141: =IF(Controls!B4=1,Dashboard!L80,IF(Controls!B4=2,Dashboard!L84,Dashboard!L84-Dashboard!L80)) -> 26397814.04 | H141: 0 | J141: =-1*OFFSET('Diagnosis calculations'!BK77,0,(Controls!B4-1)*32)*IF(Controls!B4=3, -1, -1) -> 44732.98986 | L141: =((OFFSET('Model v baseline'!C729,0,(Controls!B4-1)*35)+OFFSET('Model v baseline'!C736,0,(Controls!B4-1)*35)+OFFSET('Model v baseline'!C743,0,(Controls!B4-1)*35))*IF(Controls!B4=3, -1, 1)) -> -4805.262504 | N141: 0 | P141: =-1*(OFFSET('Model v baseline'!C676,0,(Controls!B4-1)*35)+OFFSET('Model v baseline'!C689,0,(Controls!B4-1)*35)+OFFSET('Model v baseline'!C702,0,(Controls!B4-1)*35)+OFFSET('Model v baseline'!C715,0,(Controls!B4-1)*35)+OFFSET('Model v baseline'!C757,0,(Controls!B4-1)*35)+OFFSET('Model v baseline'!C752,0,(Controls!B4-1)*35)+OFFSET('Model v baseline'!C753,0,(Controls!B4-1)*35))*IF(Controls!B4=3, -1, 1) -> -3549442.655 | R141: =-1*(OFFSET('Model v baseline'!C728,0,(Controls!B4-1)*35)+OFFSET('Model v baseline'!C734,0,(Controls!B4-1)*35)+OFFSET('Model v baseline'!C735,0,(Controls!B4-1)*35)+OFFSET('Model v baseline'!C741,0,(Controls!B4-1)*35)+OFFSET('Model v baseline'!C742,0,(Controls!B4-1)*35)+OFFSET('Model v baseline'!C748,0,(Controls!B4-1)*35)+OFFSET('Model v baseline'!C749,0,(Controls!B4-1)*35)+OFFSET('Model v baseline'!C758,0,(Controls!B4-1)*35))*IF(Controls!B4=3, -1, 1) -> 2458870.014 | T141: =-1*(OFFSET('Model v baseline'!C759,0,(Controls!B4-1)*35))*IF(Controls!B4=3, -1, 1) -> 0 | V141: -0.04131299051 | W141: to 1 | X141: =IFERROR(SUM(P141:U141,AC141)/F141, "N/A") -> 1.333711125 | Y141: to 1 | AB141: =(OFFSET('Model v baseline'!C673,0,(Controls!B4-1)*35)+OFFSET('Model v baseline'!C686,0,(Controls!B4-1)*35)+OFFSET('Model v baseline'!C699,0,(Controls!B4-1)*35)+OFFSET('Model v baseline'!C712,0,(Controls!B4-1)*35)+OFFSET('Model v baseline'!C725,0,(Controls!B4-1)*35)+OFFSET('Model v baseline'!C733,0,(Controls!B4-1)*35)+OFFSET('Model v baseline'!C740,0,(Controls!B4-1)*35)+OFFSET('Model v baseline'!C747,0,(Controls!B4-1)*35))*IF(Controls!B4=3, -1, 1) -> 604.960515 | AC141: =AB141*Parameters!$D$434 -> 36297630.9
B142: Limitations: Model is static and not dynamic so does not model additional value of reduced transmission | V142: N/A
V143: N/A
B144: =Dashboard!B108 -> Reduced time from test to result | F144: =IF(Controls!B4=1,Dashboard!L110,IF(Controls!B4=2,Dashboard!L114,Dashboard!L114-Dashboard!L110)) -> 0 | H144: =(OFFSET('Model v baseline'!C106,0,(Controls!B4-1)*35)+OFFSET('Model v baseline'!C119,0,(Controls!B4-1)*35)+OFFSET('Model v baseline'!C132,0,(Controls!B4-1)*35)+OFFSET('Model v baseline'!C145,0,(Controls!B4-1)*35)+OFFSET('Model v baseline'!C158,0,(Controls!B4-1)*35))*IF(Controls!B4=3, -1, 1) -> 0 | J144: =-1*OFFSET('Diagnosis calculations'!BK22,0,(Controls!B4-1)*32)*IF(Controls!B4=3, -1, -1) -> 0 | L144: =((OFFSET('Model v baseline'!C169,0,(Controls!B4-1)*35)+OFFSET('Model v baseline'!C176,0,(Controls!B4-1)*35)+OFFSET('Model v baseline'!C183,0,(Controls!B4-1)*35))*IF(Controls!B4=3, -1, 1)) -> 0 | N144: =(OFFSET('Model v baseline'!C194,0,(Controls!B4-1)*35)+OFFSET('Model v baseline'!C195,0,(Controls!B4-1)*35))*IF(Controls!B4=3, -1, 1) -> 0 | P144: =-1*(OFFSET('Model v baseline'!C116,0,(Controls!B4-1)*35)+OFFSET('Model v baseline'!C129,0,(Controls!B4-1)*35)+OFFSET('Model v baseline'!C142,0,(Controls!B4-1)*35)+OFFSET('Model v baseline'!C155,0,(Controls!B4-1)*35)+OFFSET('Model v baseline'!C197,0,(Controls!B4-1)*35)+OFFSET('Model v baseline'!C192,0,(Controls!B4-1)*35)+OFFSET('Model v baseline'!C193,0,(Controls!B4-1)*35))*IF(Controls!B4=3, -1, 1) -> 0 | R144: =-1*(OFFSET('Model v baseline'!C168,0,(Controls!B4-1)*35)+OFFSET('Model v baseline'!C174,0,(Controls!B4-1)*35)+OFFSET('Model v baseline'!C175,0,(Controls!B4-1)*35)+OFFSET('Model v baseline'!C181,0,(Controls!B4-1)*35)+OFFSET('Model v baseline'!C182,0,(Controls!B4-1)*35)+OFFSET('Model v baseline'!C188,0,(Controls!B4-1)*35)+OFFSET('Model v baseline'!C189,0,(Controls!B4-1)*35)+OFFSET('Model v baseline'!C198,0,(Controls!B4-1)*35))*IF(Controls!B4=3, -1, 1) -> 0 | T144: =-1*(OFFSET('Model v baseline'!C199,0,(Controls!B4-1)*35))*IF(Controls!B4=3, -1, 1) -> 0 | V144: N/A | W144: to 1 | X144: =IFERROR(SUM(P144:U144,AC144)/F144, "N/A") -> N/A | Y144: to 1 | AB144: =(OFFSET('Model v baseline'!C113,0,(Controls!B4-1)*35)+OFFSET('Model v baseline'!C126,0,(Controls!B4-1)*35)+OFFSET('Model v baseline'!C139,0,(Controls!B4-1)*35)+OFFSET('Model v baseline'!C152,0,(Controls!B4-1)*35)+OFFSET('Model v baseline'!C165,0,(Controls!B4-1)*35)+OFFSET('Model v baseline'!C173,0,(Controls!B4-1)*35)+OFFSET('Model v baseline'!C180,0,(Controls!B4-1)*35)+OFFSET('Model v baseline'!C187,0,(Controls!B4-1)*35))*IF(Controls!B4=3, -1, 1) -> 0 | AC144: =AB144*Parameters!$D$434 -> 0
B145: Limitations: The ROIs estimated for the STI-only interventions displayed above are likely to be materially underestimated (see bottom of dashboard for details)
B147: Pregnancy-only Interventions
B149: =Dashboard!B88 -> Extra emergency contraception | F149: =IF(Controls!B4=1,Dashboard!L90,IF(Controls!B4=2,Dashboard!L94,Dashboard!L94-Dashboard!L90)) -> 431868.23 | H149: =(OFFSET('Model v baseline'!C778,0,(Controls!B4-1)*35)+OFFSET('Model v baseline'!C791,0,(Controls!B4-1)*35)+OFFSET('Model v baseline'!C804,0,(Controls!B4-1)*35)+OFFSET('Model v baseline'!C817,0,(Controls!B4-1)*35)+OFFSET('Model v baseline'!C830,0,(Controls!B4-1)*35))*IF(Controls!B4=3, -1, 1) -> 0 | J149: =-1*OFFSET('Diagnosis calculations'!BK88,0,(Controls!B4-1)*32)*IF(Controls!B4=3, -1, -1) -> 0 | L149: =((OFFSET('Model v baseline'!C841,0,(Controls!B4-1)*35)+OFFSET('Model v baseline'!C848,0,(Controls!B4-1)*35)+OFFSET('Model v baseline'!C855,0,(Controls!B4-1)*35))*IF(Controls!B4=3, -1, 1)) -> 0 | N149: =(OFFSET('Model v baseline'!C866,0,(Controls!B4-1)*35)+OFFSET('Model v baseline'!C867,0,(Controls!B4-1)*35))*IF(Controls!B4=3, -1, 1) -> -669.7279562 | P149: =-1*(OFFSET('Model v baseline'!C788,0,(Controls!B4-1)*35)+OFFSET('Model v baseline'!C801,0,(Controls!B4-1)*35)+OFFSET('Model v baseline'!C814,0,(Controls!B4-1)*35)+OFFSET('Model v baseline'!C827,0,(Controls!B4-1)*35)+OFFSET('Model v baseline'!C869,0,(Controls!B4-1)*35)+OFFSET('Model v baseline'!C864,0,(Controls!B4-1)*35)+OFFSET('Model v baseline'!C865,0,(Controls!B4-1)*35))*IF(Controls!B4=3, -1, 1) -> 390831.6011 | R149: =-1*(OFFSET('Model v baseline'!C840,0,(Controls!B4-1)*35)+OFFSET('Model v baseline'!C846,0,(Controls!B4-1)*35)+OFFSET('Model v baseline'!C847,0,(Controls!B4-1)*35)+OFFSET('Model v baseline'!C853,0,(Controls!B4-1)*35)+OFFSET('Model v baseline'!C854,0,(Controls!B4-1)*35)+OFFSET('Model v baseline'!C860,0,(Controls!B4-1)*35)+OFFSET('Model v baseline'!C861,0,(Controls!B4-1)*35)+OFFSET('Model v baseline'!C870,0,(Controls!B4-1)*35))*IF(Controls!B4=3, -1, 1) -> 2662401.005 | T149: =-1*(OFFSET('Model v baseline'!C871,0,(Controls!B4-1)*35))*IF(Controls!B4=3, -1, 1) -> 3677609.808 | V149: =IFERROR(SUM(P149:U149)/F149, "N/A") -> 15.58540765 | W149: to 1 | X149: =IFERROR(SUM(P149:U149,AC149)/F149, "N/A") -> 15.58540765 | Y149: to 1 | AB149: =(OFFSET('Model v baseline'!C785,0,(Controls!B4-1)*35)+OFFSET('Model v baseline'!C798,0,(Controls!B4-1)*35)+OFFSET('Model v baseline'!C811,0,(Controls!B4-1)*35)+OFFSET('Model v baseline'!C824,0,(Controls!B4-1)*35)+OFFSET('Model v baseline'!C837,0,(Controls!B4-1)*35)+OFFSET('Model v baseline'!C845,0,(Controls!B4-1)*35)+OFFSET('Model v baseline'!C852,0,(Controls!B4-1)*35)+OFFSET('Model v baseline'!C859,0,(Controls!B4-1)*35))*IF(Controls!B4=3, -1, 1) -> 0 | AC149: =AB149*Parameters!$D$434 -> 0
B150: Limitations: | V150: =IFERROR(SUM(P150:U150)/F150, "N/A") -> N/A
V151: =IFERROR(SUM(P151:U151)/F151, "N/A") -> N/A
B152: =Dashboard!B98 -> Oral contraception with EHC | F152: =IF(Controls!B4=1,Dashboard!L100,IF(Controls!B4=2,Dashboard!L104,Dashboard!L104-Dashboard!L100)) -> 4170118.04 | H152: =(OFFSET('Model v baseline'!C890,0,(Controls!B4-1)*35)+OFFSET('Model v baseline'!C903,0,(Controls!B4-1)*35)+OFFSET('Model v baseline'!C916,0,(Controls!B4-1)*35)+OFFSET('Model v baseline'!C929,0,(Controls!B4-1)*35)+OFFSET('Model v baseline'!C942,0,(Controls!B4-1)*35))*IF(Controls!B4=3, -1, 1) -> 825.5725097 | J152: =-1*OFFSET('Diagnosis calculations'!BK99,0,(Controls!B4-1)*32)*IF(Controls!B4=3, -1, -1) -> 358.8812869 | L152: =((OFFSET('Model v baseline'!C953,0,(Controls!B4-1)*35)+OFFSET('Model v baseline'!C960,0,(Controls!B4-1)*35)+OFFSET('Model v baseline'!C967,0,(Controls!B4-1)*35))*IF(Controls!B4=3, -1, 1)) -> 93.39210906 | N152: =(OFFSET('Model v baseline'!C978,0,(Controls!B4-1)*35)+OFFSET('Model v baseline'!C979,0,(Controls!B4-1)*35))*IF(Controls!B4=3, -1, 1) -> -4440.544531 | P152: =-1*(OFFSET('Model v baseline'!C900,0,(Controls!B4-1)*35)+OFFSET('Model v baseline'!C913,0,(Controls!B4-1)*35)+OFFSET('Model v baseline'!C926,0,(Controls!B4-1)*35)+OFFSET('Model v baseline'!C939,0,(Controls!B4-1)*35)+OFFSET('Model v baseline'!C981,0,(Controls!B4-1)*35)+OFFSET('Model v baseline'!C976,0,(Controls!B4-1)*35)+OFFSET('Model v baseline'!C977,0,(Controls!B4-1)*35))*IF(Controls!B4=3, -1, 1) -> 3652579.233 | R152: =-1*(OFFSET('Model v baseline'!C952,0,(Controls!B4-1)*35)+OFFSET('Model v baseline'!C958,0,(Controls!B4-1)*35)+OFFSET('Model v baseline'!C959,0,(Controls!B4-1)*35)+OFFSET('Model v baseline'!C965,0,(Controls!B4-1)*35)+OFFSET('Model v baseline'!C966,0,(Controls!B4-1)*35)+OFFSET('Model v baseline'!C972,0,(Controls!B4-1)*35)+OFFSET('Model v baseline'!C973,0,(Controls!B4-1)*35)+OFFSET('Model v baseline'!C982,0,(Controls!B4-1)*35))*IF(Controls!B4=3, -1, 1) -> 17048164.22 | T152: =-1*(OFFSET('Model v baseline'!C983,0,(Controls!B4-1)*35))*IF(Controls!B4=3, -1, 1) -> 24773734.34 | V152: =IFERROR(SUM(P152:U152)/F152, "N/A") -> 10.90484187 | W152: to 1 | X152: =IFERROR(SUM(P152:U152,AC152)/F152, "N/A") -> 10.29506048 | Y152: to 1 | AB152: =(OFFSET('Model v baseline'!C897,0,(Controls!B4-1)*35)+OFFSET('Model v baseline'!C910,0,(Controls!B4-1)*35)+OFFSET('Model v baseline'!C923,0,(Controls!B4-1)*35)+OFFSET('Model v baseline'!C936,0,(Controls!B4-1)*35)+OFFSET('Model v baseline'!C949,0,(Controls!B4-1)*35)+OFFSET('Model v baseline'!C957,0,(Controls!B4-1)*35)+OFFSET('Model v baseline'!C964,0,(Controls!B4-1)*35)+OFFSET('Model v baseline'!C971,0,(Controls!B4-1)*35))*IF(Controls!B4=3, -1, 1) -> -42.38100591 | AC152: =AB152*Parameters!$D$434 -> -2542860.355
B153: Note: numbers that are red and in brackets are negative
A155: 155 | C155: Expand | E155: Click to show additional results
B158: Select to view by intervention: | G158: Online STI service
F160: STI Outcomes (lifetime) | O160: Economic outcomes
T161: exc. QALYs | V161: inc. QALYs
F162: Difference in cases [index population only] | O162: Return on Investment | T162: =IFERROR(TEXT((T176+T186+T196)/VLOOKUP(G158, B127:G153, 5, FALSE), "#,###.0"), "N/A")&" to 1" -> -.4 to 1 | V162: =IFERROR(TEXT((T176+T186+T196+(Dashboard!F184*Parameters!D434))/VLOOKUP(G158, B127:G153, 5, FALSE), "#,###.0"), "N/A")&" to 1" -> 5.2 to 1
O163: Net benefit | T163: =IFERROR(TEXT((T176+T186+T196)-VLOOKUP(G158, B127:G153, 5, FALSE), "£#,###"), "N/A") -> -£34,461,453 | V163: =IFERROR(TEXT((T176+T186+T196+(Dashboard!F184*Parameters!D434))-VLOOKUP(G158, B127:G153, 5, FALSE), "£#,###"), "N/A") -> £103,838,110
F164: =-OFFSET('Model v baseline'!C106,(Controls!$B$5-1)*Controls!$B$6,(Controls!$B$4-1)*35)*IF(Controls!$B$4=3,-1,1) -> 0 | H164: fewer cases of chlamydia
F165: =-OFFSET('Model v baseline'!C119,(Controls!$B$5-1)*Controls!$B$6,(Controls!$B$4-1)*35)*IF(Controls!$B$4=3,-1,1) -> 0 | H165: fewer cases of gonorrhoea
F166: =-OFFSET('Model v baseline'!C132,(Controls!$B$5-1)*Controls!$B$6,(Controls!$B$4-1)*35)*IF(Controls!$B$4=3,-1,1) -> 0 | H166: fewer cases of genital warts | O166: Financial outcomes | S166: Positive = saving, negative = cost
F167: =-OFFSET('Model v baseline'!C145,(Controls!$B$5-1)*Controls!$B$6,(Controls!$B$4-1)*35)*IF(Controls!$B$4=3,-1,1) -> 0 | H167: fewer cases of syphilis
F168: =-OFFSET('Model v baseline'!C158,(Controls!$B$5-1)*Controls!$B$6,(Controls!$B$4-1)*35)*IF(Controls!$B$4=3,-1,1) -> 0 | H168: fewer cases of HIV | O168: Local authority cost savings
O169: STI costs
F170: Difference in diagnoses [index population + partners] | O170: Treatment costs | T170: =-SUM(OFFSET('Model v baseline'!C116,(Controls!$B$5-1)*Controls!$B$6,(Controls!$B$4-1)*35),OFFSET('Model v baseline'!C129,(Controls!$B$5-1)*Controls!$B$6,(Controls!$B$4-1)*35),OFFSET('Model v baseline'!C142,(Controls!$B$5-1)*Controls!$B$6,(Controls!$B$4-1)*35),OFFSET('Model v baseline'!C155,(Controls!$B$5-1)*Controls!$B$6,(Controls!$B$4-1)*35))*IF(Controls!$B$4=3,-1,1) -> -4480210.295
O171: Testing costs | T171: =-OFFSET('Model v baseline'!C192,(Controls!$B$5-1)*Controls!$B$6,(Controls!$B$4-1)*35)*IF(Controls!$B$4=3,-1,1) -> -1304563.316
F172: =OFFSET('Diagnosis calculations'!BK14, (Controls!$B$5-1)*Controls!$B$7, (Controls!$B$4-1)*32) -> 71817.59313 | H172: more diagnoses of chlamydia | O172: Costs of partner notification | T172: =-OFFSET('Model v baseline'!C193,(Controls!$B$5-1)*Controls!$B$6,(Controls!$B$4-1)*35)*IF(Controls!$B$4=3,-1,1) -> -367995.9182
F173: =OFFSET('Diagnosis calculations'!BK15, (Controls!$B$5-1)*Controls!$B$7, (Controls!$B$4-1)*32) -> 1366.314709 | H173: more diagnoses of gonorrhoea | O173: Pregnancy costs
F174: =OFFSET('Diagnosis calculations'!BK16, (Controls!$B$5-1)*Controls!$B$7, (Controls!$B$4-1)*32) -> 0 | H174: more diagnoses of genital warts | O174: Public health services for children | T174: =-OFFSET('Model v baseline'!C204,(Controls!$B$5-1)*Controls!$B$6,(Controls!$B$4-1)*35)*IF(Controls!$B$4=3,-1,1) -> 0
F175: =OFFSET('Diagnosis calculations'!BK17, (Controls!$B$5-1)*Controls!$B$7, (Controls!$B$4-1)*32) -> 1135.788746 | H175: more diagnoses of syphilis | O175: Children in care | T175: =-OFFSET('Model v baseline'!C212,(Controls!$B$5-1)*Controls!$B$6,(Controls!$B$4-1)*35)*IF(Controls!$B$4=3,-1,1) -> 0
F176: =OFFSET('Diagnosis calculations'!BK18, (Controls!$B$5-1)*Controls!$B$7, (Controls!$B$4-1)*32) -> 1407.681651 | H176: more early diagnoses of HIV | O176: Total local authority cost savings | T176: =SUM(T170:U175) -> -6152769.528
F177: Difference in cases and diagnoses leads to
F178: =-OFFSET('Model v baseline'!C169,(Controls!$B$5-1)*Controls!$B$6,(Controls!$B$4-1)*35)*IF(Controls!$B$4=3,-1,1)-OFFSET('Model v baseline'!C170,(Controls!$B$5-1)*Controls!$B$6,(Controls!$B$4-1)*35)*IF(Controls!$B$4=3,-1,1) -> 4373.319079 | H178: fewer cases of PID | O178: NHS cost savings
F179: =-OFFSET('Model v baseline'!C176,(Controls!$B$5-1)*Controls!$B$6,(Controls!$B$4-1)*35)*IF(Controls!$B$4=3,-1,1)-OFFSET('Model v baseline'!C177,(Controls!$B$5-1)*Controls!$B$6,(Controls!$B$4-1)*35)*IF(Controls!$B$4=3,-1,1) -> 128.2442722 | H179: fewer cases of TFI | O179: STI costs
F180: =(-OFFSET('Model v baseline'!C183,(Controls!$B$5-1)*Controls!$B$6,(Controls!$B$4-1)*35)*IF(Controls!$B$4=3,-1,1)-OFFSET('Model v baseline'!C184,(Controls!$B$5-1)*Controls!$B$6,(Controls!$B$4-1)*35)*IF(Controls!$B$4=3,-1,1))*('Parameter calculations'!$C$315/SUM('Parameter calculations'!$C$315:$C$316)) -> 0.5685598199 | H180: fewer neurosyphilis cases | O180: Treatment costs for HIV & sequelae | T180: =-SUM(OFFSET('Model v baseline'!C168,(Controls!$B$5-1)*Controls!$B$6,(Controls!$B$4-1)*35),OFFSET('Model v baseline'!C174,(Controls!$B$5-1)*Controls!$B$6,(Controls!$B$4-1)*35),OFFSET('Model v baseline'!C175,(Controls!$B$5-1)*Controls!$B$6,(Controls!$B$4-1)*35),OFFSET('Model v baseline'!C181,(Controls!$B$5-1)*Controls!$B$6,(Controls!$B$4-1)*35),OFFSET('Model v baseline'!C182,(Controls!$B$5-1)*Controls!$B$6,(Controls!$B$4-1)*35),OFFSET('Model v baseline'!C188,(Controls!$B$5-1)*Controls!$B$6,(Controls!$B$4-1)*35),OFFSET('Model v baseline'!C189,(Controls!$B$5-1)*Controls!$B$6,(Controls!$B$4-1)*35))*IF(Controls!$B$4=3,-1,1) -> -3485284.767
F181: =(-OFFSET('Model v baseline'!C183,(Controls!$B$5-1)*Controls!$B$6,(Controls!$B$4-1)*35)*IF(Controls!$B$4=3,-1,1)-OFFSET('Model v baseline'!C184,(Controls!$B$5-1)*Controls!$B$6,(Controls!$B$4-1)*35)*IF(Controls!$B$4=3,-1,1))*('Parameter calculations'!$C$316/SUM('Parameter calculations'!$C$315:$C$316)) -> 1.531927274 | H181: fewer tertiary syphilis cases | O181: Pregnancy costs
O182: Birth costs | T182: =-OFFSET('Model v baseline'!C200,(Controls!$B$5-1)*Controls!$B$6,(Controls!$B$4-1)*35)*IF(Controls!$B$4=3,-1,1) -> 0
F183: Altogether resulting in | O183: Abortion costs | T183: =-OFFSET('Model v baseline'!C201,(Controls!$B$5-1)*Controls!$B$6,(Controls!$B$4-1)*35)*IF(Controls!$B$4=3,-1,1) -> 0
F184: =VLOOKUP(G158, B127:AB154, 27,FALSE) -> 2304.992728 | H184: ="QALYs gained (worth £"&TEXT(Dashboard!F184*Parameters!D434,"#,###")&")" -> QALYs gained (worth £138,299,564) | O184: Miscarriage costs | T184: =-OFFSET('Model v baseline'!C202,(Controls!$B$5-1)*Controls!$B$6,(Controls!$B$4-1)*35)*IF(Controls!$B$4=3,-1,1) -> 0
O185: Ongoing child healthcare costs | T185: =-OFFSET('Model v baseline'!C203,(Controls!$B$5-1)*Controls!$B$6,(Controls!$B$4-1)*35)*IF(Controls!$B$4=3,-1,1) -> 0
O186: Total NHS cost savings | T186: =SUM(T180:U185) -> -3485284.767
F187: Pregnancy Outcomes (over 10 years)
O188: Other government cost savings
F189: =-OFFSET('Model v baseline'!C194,(Controls!$B$5-1)*Controls!$B$6,(Controls!$B$4-1)*35) -> 0 | H189: fewer unwanted pregnancies | O189: Education | T189: =-OFFSET('Model v baseline'!C205,(Controls!$B$5-1)*Controls!$B$6,(Controls!$B$4-1)*35)*IF(Controls!$B$4=3,-1,1) -> 0
F190: =-OFFSET('Model v baseline'!C195,(Controls!$B$5-1)*Controls!$B$6,(Controls!$B$4-1)*35) -> 0 | H190: fewer mistimed pregnancies | O190: Child benefit | T190: =-OFFSET('Model v baseline'!C206,(Controls!$B$5-1)*Controls!$B$6,(Controls!$B$4-1)*35)*IF(Controls!$B$4=3,-1,1) -> 0
O191: Child tax credit | T191: =-OFFSET('Model v baseline'!C207,(Controls!$B$5-1)*Controls!$B$6,(Controls!$B$4-1)*35)*IF(Controls!$B$4=3,-1,1) -> 0
O192: Working tax credit (childcare part) | T192: =-OFFSET('Model v baseline'!C208,(Controls!$B$5-1)*Controls!$B$6,(Controls!$B$4-1)*35)*IF(Controls!$B$4=3,-1,1) -> 0
O193: Income support for lone parents | T193: =-OFFSET('Model v baseline'!C209,(Controls!$B$5-1)*Controls!$B$6,(Controls!$B$4-1)*35)*IF(Controls!$B$4=3,-1,1) -> 0
O194: Housing benefit | T194: =-OFFSET('Model v baseline'!C210,(Controls!$B$5-1)*Controls!$B$6,(Controls!$B$4-1)*35)*IF(Controls!$B$4=3,-1,1) -> 0
O195: Maternity benefits | T195: =-OFFSET('Model v baseline'!C211,(Controls!$B$5-1)*Controls!$B$6,(Controls!$B$4-1)*35)*IF(Controls!$B$4=3,-1,1) -> 0
A196: 196 | O196: Total other government cost savings | T196: =SUM(T189:U195) -> 0
B198: Limitations of the ROI tool
B199: • | C199: The STI model used in this tool is static rather than dynamic. This means that only direct benefits of interventions targeting STIs are captured by the model, this excludes the benefits to the wider population. The ROI reported will underestimate the true ROI because the model captures all the costs of interventions, but not all the benefits.
B201: • | C201: The tool does not assess the combined impact of the interventions; the results should therefore be seen as standalone and not in combination.
B202: • | C202: The STI model assumes all sex acts are performed with someone of the opposite sex, which means the STI dynamics in men who have sex with men are not captured.
B203: • | C203: Pregnancy outcomes and STI outcomes are not directly comparable. For pregnancy, 10 year costs to the public sector are calculated (including wider effects such as education). For STIs, only testing, treatment and partner notification costs and quality of life impacts are calculated - no wider indirect impacts are considered.
B205: • | C205: The QALY loss estimated for each of the STIs does not necessarily capture all of the potential health loss associated with all potential complications.
B206: • | C206: There are more details on the methodology of the tool and its limitations in the User Guide and Technical Report.
C427: ='Parameter calculations'!C72+'Parameter calculations'!C73 -> 0.1788123448

Sheet ModelOverview
C1: Young People Sexual and Reproductive Health ROI Tool
C3: Dashboard | G3: How to use this tool | K3: Background | O3: References | S3: Acknowledgements
W5: Glossary | Y5: Fit To Screen
B7: Model Overview
B10: The graphic below describes how the user interacts with each section of the model in order to generate results. It details how the user starts with setting the population of the model, can view and update the epidemiological data that underpins the model, specifies the interventions to be modelled and views the final model outputs.
B21: Step 1(a): The user specifies the region of interest producing a population estimate. This can be overwritten by the user if they have more recent data available. Step 1(b): The user can then enter further information on the proportion of the population aged 15-24 which is also overwritable. Step 1(c): The user can then expand the setting options and view update the prevalence of chlamydia, gonorrhoea, genital warts, syphilis and HIV. The user can also update the monetary value used to quantify the value of each extra QALY produced by the interventions. | J21: Step 2(a): The user can view the sexual and reproductive health interventions included within the tool. There are 3 scenarios that the user is able to model: Current scenario, Future scenario and a no intervention scenario. Step 2(b): The user can view the costs associated with each intervention and update them as required. Step 2(c): The default % uptake associated with the specific interventions are presented. The model varies uptake as a proportion total spending per intervention however the user can update these independently to model the impact of different proposed scenarios relative to the current practice. Step 2(d): The intervention's effect size is presented representing the default effect the intervention is modelled to have. This value can also be updated to model different scenarios. | S21: Step 3(a): The overall net financial benefit associated with using the modelled package of interventions and a benefit to cost ratio are presented. Net sexual and reproductive cases provided by the package of interventions are also presented in additon to the breakdown of savings by the authority that the savings accrues to. Step 3(b): Additional results can be viewed and this presents the model ouputs stratified by individual interventions. This breaks down results by STI cases, diagnoses, and sequele, costs by each authority and a breakdown of ROI and net benefit including QALY monetary valuation. Step 3(c): Review the limitations of the tool to contextualise the results. For more details read the tool's accompanying User Guide and Technical Report.
B44: For further information on using this tool, please refer to the user guide linked below:
B46: https://www.gov.uk/government/publications/sexual-and-reproductive-health-return-on-investment-tool

Sheet Background
C1: Young People Sexual and Reproductive Health ROI Tool
C3: Dashboard | G3: How to use this tool | K3: Background | O3: References | S3: Acknowledgements
W5: Glossary | Y5: Fit To Screen
B7: Background to this tool
B10: Good sexual and reproductive health and wellbeing is an important contributor to overall wellbeing. In 2013, commissioning arrangements for sexual, reproductive health and HIV were introduced as part of the implementation of the Health and Social Care Act 2012. Local government responsibilities for sexual health services were further detailed in ‘The Local Authorities (Public Health Functions and entry to Premises by Local Healthwatch Representatives) Regulations 2013’. In 2013 the Department of Health published a framework for sexual health improvement. This included aims of reducing inequalities and improving in four priority areas: • Reduce STI rates • Reduce HIV transmission rates and avoidable deaths • Reduce unwanted pregnancies • Continue to reduce ‘under 16 and 18’ conception rates.
B24: The quality of sexual and reproductive health and HIV services rely in part on effective commissioning. A number of resources exist to enable Local Authority commissioners to deliver effective commissioning. Achieving allocative efficiency may be more important now than it has ever been with financial pressures increasing due to budget reductions. Sexual health services are clinical services that are not commissioned and designed with an expectation of reducing future costs, but to serve a clinical need in the population. However; cost pressures and budget reductions are resulting in increasing demand to answer the following questions: • How can we assist local authority commissioners to achieve allocative efficiency for their local budget? • How can we identify the relative value of different sexual health interventions? • How will differences in funding correlate with an outcome and/ or impact on a defined population? This tool seeks to address these questions by providing local authority commissioners with easy access to local estimations of value provided by certain sexual and reproductive interventions focussing on young people aged 15-24.

Sheet ModelReferences
C1: Young People Sexual and Reproductive Health ROI Tool
C3: Dashboard | G3: How to use this tool | K3: Background | O3: References | S3: Acknowledgements
W5: Glossary | Y5: Fit To Screen
B7: References for evidence underlying this tool
C10: 1. Adams, E. J., Turner, K. M., & Edmunds, W. J. (2007). The cost effectiveness of opportunistic chlamydia screening in England. Sex Transm Infect, 83(4), 267-274; discussion 274-265. doi:10.1136/sti.2006.024364
C11: 2. Aghaizu, A., Adams, E. J., Turner, K., Kerry, S., Hay, P., Simms, I., & Oakeshott, P. (2011). What is the cost of pelvic inflammatory disease and how much could be prevented by screening for chlamydia trachomatis? Cost analysis of the Prevention of Pelvic Infection (POPI) trial. Sex Transm Infect, 87(4), 312-317. doi:10.1136/sti.2010.048694
C12: 3. Aiken, A., & Trussell, J. (2016). High hopes versus harsh realities: the population impact of emergency contraceptive pills. BJOG, 123(10), 1608. doi:10.1111/1471-0528.14136
C13: 4. Althaus, C., Low, N. (2011). Towards More Robust Estimates of the Per Sex Act Transmission Probability of Chlamydia Trachomatis. doi:10.1136/sextrans-2011-050108.180.
C14: 5. Balassone M. L. (1989). Risk of contraceptive discontinuation among adolescents. Journal Adolesc Health Care; 10(6), 527-33
C15: 6. Blake S. M., Ledsky R., Goodenow C., Sawyer R., Lorhmann D. Windsor R. 2003. Condom Availability Programs in Massachusetts High Schools: Relationships With Condom Use and Sexual Behavior, Am J Public Health.
C16: 7. Boily, M.-C., Baggaley, R. F., Wang, L., Masse, B., White, R. G., Hayes, R. J., & Alary, M. (2009). Heterosexual risk of HIV-1 infection per sexual act: systematic review and meta-analysis of observational studies. The Lancet Infectious Diseases, 9(2), 118-129. doi:10.1016/s1473-3099(09)70021-0
C17: 8. Brown, J., Hess, K., Brown, S., Murphy, C., Waldman, A., & Hezareh, M. (2011). Heterosexual Anal Sex, Lubrication, HIV, and HSV-2 infection among women. Sexually Transmitted Infections, 87(Suppl 1), A175-A175. doi:10.1136/sextrans-2011-050108.179
C18: 9. Centers for Disease Control, (2002). Fertility, Family Planning, and Reproductive Health of U.S. Women: Data From the 2002 National Survey of Family Growth Series.
C19: 10. Chesson, H. W., Bernstein, K. T., Gift, T. L., Marcus, J. L., Pipkin, S., & Kent, C. K. (2013). The cost-effectiveness of screening men who have sex with men for rectal chlamydial and gonococcal infection to prevent HIV Infection. Sex Transm Dis, 40(5), 366-371. doi:10.1097/OLQ.0b013e318284e544
C20: 11. de Wit, G. A., Over, E. A., Schmid, B. V., van Bergen, J. E., van den Broek, I. V., van der Sande, M. A., . . . Kretzschmar, M. E. (2015). Chlamydia screening is not cost-effective at low participation rates: evidence from a repeated register-based implementation study in The Netherlands. Sex Transm Infect, 91(6), 423-429. doi:10.1136/sextrans-2014-051677
C21: 12. Department for Health and Social Care, (2013). A Framework for Sexual Health Improvement in England.
C22: 13. Desai, S., Wetten, S., Woodhall, S. C., Peters, L., Hughes, G., & Soldan, K. (2011). Genital warts and cost of care in England. Sex Transm Infect, 87(6), 464-468. doi:10.1136/sti.2010.048421
C23: 14. Ditkowsky, J., Shah, K. H., Hammerschlag, M. R., Kohlhoff, S., & Smith-Norowitz, T. A. (2017). Cost-benefit analysis of Chlamydia trachomatis screening in pregnant women in a high burden setting in the United States. BMC Infect Dis, 17(1), 155. doi:10.1186/s12879-017-2248-5
C24: 15. Ekstrand, M., Tydén, T., Darj, E., Larsson, M. (2013). Twelve-month follow-up of advance provision of emergency contraception among teenage girls in Sweden—a randomized controlled trial,” Ups J Med Sci, 118(4), 271–275.
C25: 16. Farnham, P. G., Holtgrave, D. R., Gopalappa, C., Hutchinson, A. B., & Sansom, S. L. (2013). Lifetime costs and quality-adjusted life years saved from HIV prevention in the test and treat era. Journal of Acquired Immune Deficiency Syndromes, 64(2), e15-e18.
C26: 17. Gottlieb S. L., Martin D. H., Xu F., Byrne G. I., Brunham R. C. (2010) Chlamydia trachomatis genital infection and implications for Chlamydia control. The Journal of Infectious Diseases, 201(2), Supplement: S190-204
C27: 18. Gottlieb, S. L., Xu, F., & Brunham, R. C. (2013). Screening and treating Chlamydia trachomatis genital infection to prevent pelvic inflammatory disease: interpretation of findings from randomized controlled trials. Sex Transm Dis, 40(2), 97-102. doi:10.1097/OLQ.0b013e31827bd637
C28: 19. Gray, R. T., Hoare, A., Prestage, G. P., Donovan, B., Kaldor, J. M., & Wilson, D. P. (2010). Frequent testing of highly sexually active gay men is required to control syphilis. Sex Transm Dis, 37(5), 298-305. doi:10.1097/OLQ.0b013e3181ca3c0a
C29: 20. Hodson, K., Meads, C., Bewley, S. (2016). Lesbian and bisexual women’s likelihood of becoming pregnant: a systematic review and meta-analysis. BJOG, 12(4), 393–402. DOI:10.1111/1471-0528.14449
C30: 21. Holmes, K. K., Johnson, D. W., & Trostle, H. J. (1970). An estimate of the risk of men acquiring gonorrhea by sexual contact with infected females. American Journal of Epidemiology, 91(2), 170-174.
C31: 22. HM Treasury, (2018). Central Government Guidance on Appraisal and Evaluation.
C32: 23. Huber, L. R., Hogue, C. J., Stein, A. D., Drews, C., Zieman, M., King, J., & Schayes, S. (2006). Contraceptive use and discontinuation: findings from the contraceptive history, initiation, and choice study. Am J Obstet Gynecol, 194(5), 1290-1295. doi:10.1016/j.ajog.2005.11.039
C33: 24. Institute of Medicine. (2000). Vaccines for the 21st Century: A Tool for Decisionmaking. Washington (DC): National Academies Press (US)
C34: 25. Ireland, J. A., Reid, M., Powell, R., Petrie, K. J., & AIDS. (2005). The role of illness perceptions: psychological distress and treatment-seeking delay in patients with genital warts. International journal of STD, 16(10), 667-670.
C35: 26. Jablonskas, S. (2010). Condom Card (“C Card”) Distribution Scheme Reduction in teenage pregnancy rates and rates of sexually transmitted infections, promotion of safe sex and sexual health.
C36: 27. Jackson, L. J., Auguste, P., Low, N., Roberts, T. E. (2014) Valuing the Health States Associated with Chlamydia trachomatis Infections and Their Sequelae: A Systematic Review of Economic Evaluations and Primary Studies. Value Health, 17(1), 116-130
C37: 28. Kingston, M., French, P., Higgins, S., McQuillan, O., Sukthankar, A., Stott, C., . . . Sullivan, A. (2016). UK national guidelines on the management of syphilis 2015. Int J STD AIDS, 27(6), 421-446. doi:10.1177/0956462415624059
C38: 29. Kinsella, K., Cross, R., & South, J. (2014). An evaluation of the condom distribution scheme (C-Card) with young people in Northeast England. Perspect Public Health, 134(1), 25-30. doi:10.1177/1757913913483245
C39: 30. Korenromp, E. L., Mahiane, S. G., Nagelkerke, N., Taylor, M. M., Williams, R., Chico, R. M., . . . Rowley, J. (2018). Syphilis prevalence trends in adult women in 132 countries - estimations using the Spectrum Sexually Transmitted Infections model. Sci Rep, 8(1), 11503. doi:10.1038/s41598-018-29805-9
C40: 31. Koss, C. A., Dunne, E. F., & Warner, L. (2009). A systematic review of epidemiologic studies assessing condom use and risk of syphilis. Sex Transm Dis, 36(7), 401-405. doi:10.1097/OLQ.0b013e3181a396eb
C41: 32. Larsson, M., Eurenius, K., Westerling, R., & Tyden, T. (2006). Evaluation of a sexual education intervention among Swedish high school students. Scand J Public Health, 34(2), 124-131. doi:10.1080/14034940510032266
C42: 33. Lee, C. A., Phillips, A. N., Elford, J., Janossy, G., Griffiths, P., & Kernoff, P. J. (1991). Progression of HIV disease in a haemophilic cohort followed for 11 years and the effect of treatment. British Medical Journal 303(6810), 1093-1096.
C43: 34. Lincoln County Council, (2010). C Card Condom Scheme – Evaluation July 2009 – July 2010.
C44: 35. Lovett A., & Duncan J. A., (2019). Human Immune Responses and the Natural History of Neisseria gonorrhoeae Infection. Front Immunol. 19(9), doi:10.3389/fimmu.2018.03187
C45: 36. Mandalia, S., Westrop, S. J., Beck, E. J., Nelson, M., Gazzard, B. G., & Imami, N. (2012). Are long-term non-progressors very slow progressors? Insights from the Chelsea and Westminster HIV cohort, 1988-2010. PLoS One, 7(2), e29844. doi:10.1371/journal.pone.0029844
C46: 37. Manhart, L. a. K., Laura. (2002). Do Condoms Prevent Genital HPV Infection, External Genital Warts, or Cervical Neoplasia? Sexually Transmitted Diseases.
C47: 38. Mapp, F., Wellings, K., Hickson, F., & Mercer, C. H. (2017). Understanding sexual healthcare seeking behaviour: why a broader research perspective is needed. BMC Health Serv Res, 17(1), 462. doi:10.1186/s12913-017-2420-z
C48: 39. Marrazzo, J. M., Celum, C. L., Hillis, S. D., Fine, D., DeLisle, S., & Handsfield, H. H. (1997). Performance and cost-effectiveness of selective screening criteria for chlamydia trachomatis infection in women: Implications for a national chlamydia control strategy. J Sexually transmitted diseases, 24(3), 131-141.
C49: 40. Mercer, C. H., Sutcliffe, L., Johnson, A. M., White, P. J., Brook, G., Ross, J. D., . . . Cassell, J. A. (2007). How much do delayed healthcare seeking, delayed care provision, and diversion from primary care contribute to the transmission of STIs? Sex Transm Infect, 83(5), 400-405. doi:10.1136/sti.2006.024554
C50: 41. Michie, L., Cameron, S. T., Glasier, A., Larke, N., Muir, A., & Lorimer, A. (2014). Pharmacy-based interventions for initiating effective contraception following the use of emergency contraception: a pilot study. Contraception, 90(4), 447-453. doi:10.1016/j.contraception.
C51: 42. Moore Jr, M. B., Price, E. V., Knox, J. M., & Elgin, L. W. (1963). Epidemiologic treatment of contacts to infectious syphilis. Journal Public health reports, 78(11), 966.
C52: 43. Moreau, C., Bouyer, J., Bajos, N., Rodriguez, G., & Trussell, J. (2009). Frequency of discontinuation of contraceptive use: results from a French population-based cohort. Hum Reprod, 24(6), 1387-1392. doi:10.1093/humrep/dep027
C53: 44. Nherera, L., Jacklin, P. (2009). A model to assess the cost-effectiveness of Sex and Relationship Education (SRE) developed for NICE public health guidance on personal, social, health and economic (PSHE) education.
C54: 45. Ockenfels, H. M. (2016) Therapeutic management of cutaneous and genital warts. Journal Dtsch Dermatol Ges, 14(9), 892-9, doi:10.1111/ddg.12838.
C55: 46. Office for National Statistics. (2019). Population estimates for the UK, England and Wales, Scotland and Northern Ireland: mid-2018
C56: 47. Oliveira A. S., Bilinska J., Mohammed H, Jarman J., Were J., Menon-Johansson A., Hamzah L. (2019). Partner notification: Increasing effectiveness with modern communication technology
C57: 48. Okulicz, J. F., Marconi, V. C., Landrum, M. L., Wegner, S., Weintrob, A., Ganesan, A. (2009). Clinical outcomes of elite controllers, viremic controllers, and long-term nonprogressors in the US Department of Defense HIV natural history study. J Infect Dis, 200(11), 1714-1723. doi:10.1086/646609
C58: 49. Ong, K. J., Soldan, K., Jit, M., Dunbar, J. K., & Woodhall, S. C. (2017). Chlamydia sequelae cost estimates used in current economic evaluations: does one-size-fit-all? Sex Transm Infect, 93(1), 18-24. doi:10.1136/sextrans-2016-052597
C59: 50. Ong, K. J., van Hoek, A. J., Harris, R. J., Figueroa, J., Waters, L., Chau, C., Croxford, S., Kirwan, P., Brown, A., Postma, M. J., Gill O. N., Delpech V. (2019) HIV care cost in England: a cross-sectional analysis of antiretroviral treatment and the impact of generic introduction. HIV Med. 20(6), 377-391. doi:10.1111/hiv.12725.
C60: 51. Oriel, J. D. (1971). Natural history of genital warts. British Journal of Venereal Diseases, 47(1), 1.
C61: 52. Pinkerton, S. D., & Abramson, P. R. (1996) Implications of Increased Infectivity in Early-Stage HIV Infection: Application of a Bernoulli-Process Model of HIV Transmission, Eval Rev.
C62: 53. Pinkerton, S. D., & Abramson, P. R. (1997). Effectiveness of condoms in preventing HIV transmission. Social science medicine, 44(9), 1303-1312.
C63: 54. Price, M. J., Ades, A. E., Soldan, K., Welton, N. J., Macleod, J., Simms, I., . . . Horner, P. J. (2016). The natural history of Chlamydia trachomatis infection in women: a multi-parameter evidence synthesis. Health Technol Assess, 20(22), 1-250. doi:10.3310/hta20220
C64: 55. Public Health England, (2018a). A consensus statement - Reproductive health is a public health issue.
C65: 56. Public Health England, (2018b). Contraception: Economic Analysis Estimation of the Return on Investment (ROI) for publicly funded contraception in England.
C66: 57. Public Health England, (2018c). National chlamydia screening programme (NCSP): data tables
C67: 58. Public Health England, (2018d). Progress towards ending the HIV epidemic in the United Kingdom.
C68: 59. Ratna, N. B., Meroe; Nardone, Anthony; Roberts, Andrew; Folkard, Kate (2018). A quantitative evaluation of the London “Come Correct” Condom Card (C-­Card) scheme: Does it serve those in greatest need?
C69: 60. Reekie, J., Donovan, B., Guy, R., Hocking, J. S., Jorm, L., Kaldor, J. M., . . . Liu, B. (2014). Hospitalisations for pelvic inflammatory disease temporally related to a diagnosis of Chlamydia or gonorrhoea: a retrospective cohort study. PLoS One, 9(4), e94361. doi:10.1371/journal.pone.0094361
C70: 61. Reekie, J., Donovan, B., Guy, R., Hocking, J. S., Kaldor, J. M., Mak, D. B., . . . Reproductive Health Outcome, I. (2018). Risk of Pelvic Inflammatory Disease in Relation to Chlamydia and Gonorrhea Testing, Repeat Testing, and Positivity: A Population-Based Cohort Study. Clin Infect Dis, 66(3), 437-443. doi:10.1093/cid/cix769
C71: 62. Rosenberg M.J., Waugh M.S. (1998) Oral contraceptive discontinuation: a prospective evaluation of frequency and reasons. American journal of obstetrics and gynecology, 179(3), 577-582
C72: 63. Sabin, C. A., & Lundgren, J. D. (2013). The natural history of HIV infection. Curr Opin HIV AIDS, 8(4), 311-317. doi:10.1097/COH.0b013e328361fa66
C73: 64. Sadler, S., Tosh, J., Pennington, R., Rawdin, A., Squires, H., Romero, C., . . . Chilcott, J. (2017). A cost-effectiveness analysis of condom distribution programmes for the prevention of sexually transmitted infections in England. Epidemiol Community Health, 71(9), 897-904.
C74: 65. Shepherd, J., Kavanagh, J., Picot, J., Cooper, K., Harden, A., Barnett-Page, E., . . . Price, A. (2010). The effectiveness and cost-effectiveness of behavioural interventions for the prevention of sexually transmitted infections in young people aged 13-19: a systematic review and economic evaluation. Health Technol Assess, 14(7), 1-206, iii-iv. doi:10.3310/hta14070
C75: 66. Singh, A. E., & Romanowski, B. (1999). Syphilis: review with emphasis on clinical, epidemiologic, and some biologic features. Clinical microbiology reviews, 12(2), 187-209.
C76: 67. Stoltey, J. E., & Cohen, S. E. (2015). Syphilis transmission: a review of the current evidence. Sex Health, 12(2), 103-109. doi:10.1071/SH14174
C77: 68. Sukthankar, A. (2014) Syphilis. Bacterial Infections II, 42(7), 394-398, doi:https://doi.org/10.1016/j.mpmed.2014.04.002
C78: 69. Trussell, J. (2011). Contraceptive failure in the United States. Contraception, 83(5), 397-404. doi:10.1016/j.contraception.2011.01.021
C79: 70. Tuite, A. R., Burchell, A. N., & Fisman, D. N. (2014). Cost-effectiveness of enhanced syphilis screening among HIV-positive men who have sex with men: a microsimulation model. PLoS One, 9(7), e101240. doi:10.1371/journal.pone.0101240
C80: 71. Turner, K. M. E., Adams, E. J., LaMontagne, D. S., Emmett, L., Baster, K., and Edmunds, W. J. (2006). Modelling the effectiveness of chlamydia screening in England. Sex Transm Infect. 82(6), 496–502.
C81: 72. Turner, K., Adams, E., Grant, A., Macleod, J., Bell, G., Clarke, J., & Horner, P. (2011). Costs and cost effectiveness of different strategies for chlamydia screening and partner notification: an economic and mathematical modelling study. BMJ, 342, c7250. doi:10.1136/bmj.c7250
C82: 73. Turner, K. M., Round, J., Horner, P., Macleod, J., Goldenberg, S., Deol, A., & Adams, E. J. (2014). An early evaluation of clinical and economic costs and benefits of implementing point of care NAAT tests for Chlamydia trachomatis and Neisseria gonorrhoea in genitourinary medicine clinics in England. Sex Transm Infect, 90(2), 104-111. doi:10.1136/sextrans-2013-051147
C83: 74. van der Helm, J. J., Geskus, R., Lodi, S., Meyer, L., Schuitemaker, H., Gunsenheimer-Bartmeyer, B., . . . Prins, M. (2014). Characterisation of long-term non-progression of HIV-1 infection after seroconversion: a cohort study. The Lancet HIV, 1(1), e41-e48. doi:10.1016/s2352-3018(14)70016-5
C84: 75. van Sighem, A., Pharris, A., Quinten, C., Noori, T., & Amato-Gauci, A. (2017). Reduction in undiagnosed HIV infection in the European Union/European Economic Area, 2012 to 2016. Journal Eurosurveillance, 22(48).
C85: 76. Wang, L. Y., Davis, M., Robin, L., Collins, J., Coyle, K., & Baumler, E. (2000). Economic evaluation of Safer Choices: a school-based human immunodeficiency virus, other sexually transmitted diseases, and pregnancy prevention program. Archives of pediatrics adolescent medicine, 154(10), 1017-1024.
C86: 77. Warner, L., Newman, D. R., Austin, H. D., Kamb, M. L., Douglas, J. M., Jr., Malotte, C. K., . . . Project, R. S. G. (2004). Condom effectiveness for reducing transmission of gonorrhea and chlamydia: the importance of assessing partner infection status. Am J Epidemiol, 159(3), 242-251. doi:10.1093/aje/kwh044
C87: 78. Warner, L., Stone, K. M., Macaluso, M., Buehler, J. W., & Austin, H. D. (2006). Condom use and risk of gonorrhea and Chlamydia: a systematic review of design and measurement factors assessed in epidemiologic studies. Sex Transm Dis, 33(1), 36-51. doi:10.1097/01.olq.0000187908.42622.fd
C88: 79. Whitlock G. G., Gibbons D. C., Longford N., Harvey M. J., McOwan A., Adams E. J., (2018) Rapid testing and treatment for sexually transmitted infections improve patient care and yield public health benefits, Int J STD AIDS, 29(5), 474-482. doi:10.1177/0956462417736431
C89: 80. Wilson, E., Free, C., Morris, T. P., Syred, J., Ahamed, I., Menon-Johansson, A. S., Palmer, M. J., Barnard, S., Rezel, E., Baraitser, P. (2017) PLoS Med, 14(12). doi:10.1371/journal.pmed.1002479
C90: 81. Woodhall, S. C., Soldan, K., Sonnenberg, P., Mercer, C. H., Clifton, S., Saunders, P., . . . Johnson, A. M. (2016). Is chlamydia screening and testing in Britain reaching young adults at risk of infection? Findings from the third National Survey of Sexual Attitudes and Lifestyles (Natsal-3). Sex Transm Infect, 92(3), 218-227. doi:10.1136/sextrans-2015-052013
C91: 82. Yanofsky V. R., Patel R. V., Goldenberg, G. (2012). Genital warts: a comprehensive review. J Clin Aesthet Dermatol. 5(6) 25-36.
C92: 83. Zulliger, R., Maulsby, C., Solomon, L., Baytop, C., Orr, A., Nasrullah, M., . . . Holtgrave, D. (2017). Cost-utility of HIV Testing Programs Among Men Who Have Sex with Men in the United States. AIDS Behav, 21(3), 619-625. doi:10.1007/s10461-016-1547-y

Sheet Acknowledgements
C1: Young People Sexual and Reproductive Health ROI Tool
C3: Dashboard | G3: How to use this tool | K3: Background | O3: References | S3: Acknowledgements
W5: Glossary | Y5: Fit To Screen
B7: Acknowledgements and disclaimer
B10: Public Health England (PHE) and Optimity Advisors produced this ROI tool to aid local decision-making and cannot be held liable for any investment or other decisions that are made using any information obtained from this tool.
B14: This tool has been informed by evidence where possible and assumptions have been clearly stated in the User Guide / Technical Report. This tool was made with support from PHE and external stakeholders throughout the project. Stakeholders from local authorities, the NHS and PHE tested an alpha version of the tool to ensure it met their needs and was user friendly. Stakeholders with expertise across sexual and reproductive health also steered the direction of the tool and critically reviewed the modelling approach and evidence.
B20: Citation Any analysis based on this tool should acknowledge the use of the tool as follows: Public Health England. (2020). Young people sexual & reproductive health return on investment tool. Retrieved from https://www.gov.uk/government/publications/sexual-and-reproductive-health-return-on-investment-tool

Sheet Dropdowns (hidden)
A1: National | B1: Regional | C1: County / Unitary Authority | D1: Local Authority | E1: CCG | F1: STI PHEC | I1: Interventions | J1: # | L1: Scenarios
A2: England | B2: East Midlands | C2: Bath and North East Somerset | D2: Adur | E2: NHS England North (Cheshire and Merseyside) | F2: England | I2: =Dashboard!B127 -> C-card scheme | J2: 3 | L2: Future vs Current | M2: 3
B3: East | C3: Bedford | D3: Allerdale | E3: NHS Eastern Cheshire CCG | F3: London | I3: =Dashboard!B130 -> Condoms in schools and colleges | J3: 4 | L3: Current vs No Intervention | M3: 1
B4: London | C4: Blackburn with Darwen | D4: Amber Valley | E4: NHS Halton CCG | F4: East of England | I4: =Dashboard!B135 -> Online STI service | J4: 2 | L4: Future vs No Intervention | M4: 2
B5: North East | C5: Blackpool | D5: Arun | E5: NHS Knowsley CCG | F5: East Midlands | I5: =Dashboard!B138 -> E-partner notification | J5: 5
B6: North West | C6: Bournemouth | D6: Ashfield | E6: NHS Liverpool CCG | F6: West Midlands | I6: =Dashboard!B141 -> Chlamydia screening: women | J6: 6
B7: South East | C7: Bracknell Forest | D7: Ashford | E7: NHS South Cheshire CCG | F7: North East of England | I7: =Dashboard!B144 -> Reduced time from test to result | J7: 1
B8: South West | C8: Brighton and Hove | D8: Aylesbury Vale | E8: NHS South Sefton CCG | F8: North West of England | I8: =Dashboard!B149 -> Extra emergency contraception | J8: 7
B9: West Midlands | C9: Bristol, City of | D9: Babergh | E9: NHS Southport and Formby CCG | F9: North of England | I9: =Dashboard!B152 -> Oral contraception with EHC | J9: 8
B10: Yorkshire and The Humber | C10: Buckinghamshire | D10: Barking and Dagenham | E10: NHS St Helens CCG | F10: South East of England
C11: Cambridgeshire | D11: Barnet | E11: NHS Vale Royal CCG | F11: South West of England
C12: Central Bedfordshire | D12: Barnsley | E12: NHS Warrington CCG
C13: Cheshire East | D13: Barrow-in-Furness | E13: NHS West Cheshire CCG
C14: Cheshire West and Chester | D14: Basildon | E14: NHS Wirral CCG
C15: Cornwall | D15: Basingstoke and Deane
C16: County Durham | D16: Bassetlaw | E16: NHS England North (Yorkshire and Humber)
C17: Cumbria | D17: Bath and North East Somerset | E17: NHS Airedale, Wharfedale and Craven CCG
C18: Darlington | D18: Bedford | E18: NHS Barnsley CCG
C19: Derby | D19: Bexley | E19: NHS Bassetlaw CCG
C20: Derbyshire | D20: Birmingham | E20: NHS Bradford City CCG
C21: Devon | D21: Blaby | E21: NHS Bradford Districts CCG
C22: Dorset | D22: Blackburn with Darwen | E22: NHS Calderdale CCG
C23: East Riding of Yorkshire | D23: Blackpool | E23: NHS Doncaster CCG
C24: East Sussex | D24: Bolsover | E24: NHS East Riding of Yorkshire CCG
C25: Essex | D25: Bolton | E25: NHS Greater Huddersfield CCG
C26: Gloucestershire | D26: Boston | E26: NHS Hambleton, Richmondshire and Whitby CCG
C27: Greater Manchester (Met County) | D27: Bournemouth | E27: NHS Harrogate and Rural District CCG
C28: Halton | D28: Bracknell Forest | E28: NHS Hull CCG
C29: Hampshire | D29: Bradford | E29: NHS Leeds CCG
C30: Hartlepool | D30: Braintree | E30: NHS North East Lincolnshire CCG
C31: Herefordshire, County of | D31: Breckland | E31: NHS North Kirklees CCG
C32: Hertfordshire | D32: Brent | E32: NHS North Lincolnshire CCG
C33: Inner London | D33: Brentwood | E33: NHS Rotherham CCG
C34: Isle of Wight | D34: Brighton and Hove | E34: NHS Scarborough and Ryedale CCG
C35: Isles of Scilly | D35: Bristol, City of | E35: NHS Sheffield CCG
C36: Kent | D36: Broadland | E36: NHS Vale of York CCG
C37: Kingston upon Hull, City of | D37: Bromley | E37: NHS Wakefield CCG
C38: Lancashire | D38: Bromsgrove
C39: Leicester | D39: Broxbourne | E39: NHS England North (Greater Manchester)
C40: Leicestershire | D40: Broxtowe | E40: NHS Bolton CCG
C41: Lincolnshire | D41: Burnley | E41: NHS Bury CCG
C42: Luton | D42: Bury | E42: NHS Heywood, Middleton and Rochdale CCG
C43: Medway | D43: Calderdale | E43: NHS Oldham CCG
C44: Merseyside (Met County) | D44: Cambridge | E44: NHS Salford CCG
C45: Middlesbrough | D45: Camden | E45: NHS Stockport CCG
C46: Milton Keynes | D46: Cannock Chase | E46: NHS Tameside and Glossop CCG
C47: Norfolk | D47: Canterbury | E47: NHS Trafford CCG
C48: North East Lincolnshire | D48: Carlisle | E48: NHS Wigan Borough CCG
C49: North Lincolnshire | D49: Castle Point | E49: NHS Manchester CCG
C50: North Somerset | D50: Central Bedfordshire
C51: North Yorkshire | D51: Charnwood | E51: NHS England North (Cumbria and North East)
C52: Northamptonshire | D52: Chelmsford | E52: NHS Darlington CCG
C53: Northumberland | D53: Cheltenham | E53: NHS Durham Dales, Easington and Sedgefield CCG
C54: Nottingham | D54: Cherwell | E54: NHS Hartlepool and Stockton-on-Tees CCG
C55: Nottinghamshire | D55: Cheshire East | E55: NHS North Durham CCG
C56: Outer London | D56: Cheshire West and Chester | E56: NHS North Tyneside CCG
C57: Oxfordshire | D57: Chesterfield | E57: NHS Northumberland CCG
C58: Peterborough | D58: Chichester | E58: NHS South Tees CCG
C59: Plymouth | D59: Chiltern | E59: NHS South Tyneside CCG
C60: Poole | D60: Chorley | E60: NHS Sunderland CCG
C61: Portsmouth | D61: Christchurch | E61: NHS Newcastle Gateshead CCG
C62: Reading | D62: City of London | E62: NHS North Cumbria CCG
C63: Redcar and Cleveland | D63: Colchester
C64: Rutland | D64: Copeland | E64: NHS England North (Lancashire and South Cumbria)
C65: Shropshire | D65: Corby | E65: NHS Blackburn with Darwen CCG
C66: Slough | D66: Cornwall | E66: NHS Blackpool CCG
C67: Somerset | D67: Cotswold | E67: NHS Chorley and South Ribble CCG
C68: South Gloucestershire | D68: County Durham | E68: NHS East Lancashire CCG
C69: South Yorkshire (Met County) | D69: Coventry | E69: NHS Fylde and Wyre CCG
C70: Southampton | D70: Craven | E70: NHS Greater Preston CCG
C71: Southend-on-Sea | D71: Crawley | E71: NHS West Lancashire CCG
C72: Staffordshire | D72: Croydon | E72: NHS Morecambe Bay CCG
C73: Stockton-on-Tees | D73: Dacorum
C74: Stoke-on-Trent | D74: Darlington
C75: Suffolk | D75: Dartford | E75: NHS England Midlands and East (Central Midlands)
C76: Surrey | D76: Daventry | E76: NHS East Leicestershire and Rutland CCG
C77: Swindon | D77: Derby | E77: NHS Herts Valleys CCG
C78: Telford and Wrekin | D78: Derbyshire Dales | E78: NHS Leicester City CCG
C79: Thurrock | D79: Doncaster | E79: NHS Lincolnshire East CCG
C80: Torbay | D80: Dover | E80: NHS Lincolnshire West CCG
C81: Tyne and Wear (Met County) | D81: Dudley | E81: NHS Luton CCG
C82: Warrington | D82: Ealing | E82: NHS Milton Keynes CCG
C83: Warwickshire | D83: East Cambridgeshire | E83: NHS Nene CCG
C84: West Berkshire | D84: East Devon | E84: NHS South Lincolnshire CCG
C85: West Midlands (Met County) | D85: East Dorset | E85: NHS South West Lincolnshire CCG
C86: West Sussex | D86: East Hampshire | E86: NHS West Leicestershire CCG
C87: West Yorkshire (Met County) | D87: East Hertfordshire | E87: NHS Bedfordshire CCG
C88: Wiltshire | D88: East Lindsey | E88: NHS Corby CCG
C89: Windsor and Maidenhead | D89: East Northamptonshire | E89: NHS East and North Hertfordshire CCG
C90: Wokingham | D90: East Riding of Yorkshire
C91: Worcestershire | D91: East Staffordshire | E91: NHS England Midlands and East (East)
C92: York | D92: Eastbourne | E92: NHS Basildon and Brentwood CCG
D93: Eastleigh | E93: NHS Cambridgeshire and Peterborough CCG
D94: Eden | E94: NHS Castle Point and Rochford CCG
D95: Elmbridge | E95: NHS Great Yarmouth and Waveney CCG
D96: Enfield | E96: NHS Ipswich and East Suffolk CCG
D97: Epping Forest | E97: NHS Mid Essex CCG
D98: Epsom and Ewell | E98: NHS North East Essex CCG
D99: Erewash | E99: NHS North Norfolk CCG
D100: Exeter | E100: NHS Southend CCG
D101: Fareham | E101: NHS Thurrock CCG
D102: Fenland | E102: NHS West Essex CCG
D103: Forest Heath | E103: NHS West Norfolk CCG
D104: Forest of Dean | E104: NHS West Suffolk CCG
D105: Fylde | E105: NHS Norwich CCG
D106: Gateshead | E106: NHS South Norfolk CCG
D107: Gedling
D108: Gloucester | E108: NHS England Midlands and East (North Midlands)
D109: Gosport | E109: NHS Cannock Chase CCG
D110: Gravesham | E110: NHS East Staffordshire CCG
D111: Great Yarmouth | E111: NHS Erewash CCG
D112: Greenwich | E112: NHS Hardwick CCG
D113: Guildford | E113: NHS Mansfield and Ashfield CCG
D114: Hackney | E114: NHS Newark and Sherwood CCG
D115: Halton | E115: NHS North Derbyshire CCG
D116: Hambleton | E116: NHS North Staffordshire CCG
D117: Hammersmith and Fulham | E117: NHS Nottingham City CCG
D118: Harborough | E118: NHS Nottingham North and East CCG
D119: Haringey | E119: NHS Nottingham West CCG
D120: Harlow | E120: NHS Rushcliffe CCG
D121: Harrogate | E121: NHS Shropshire CCG
D122: Harrow | E122: NHS South East Staffordshire and Seisdon Peninsula CCG
D123: Hart | E123: NHS Southern Derbyshire CCG
D124: Hartlepool | E124: NHS Stafford and Surrounds CCG
D125: Hastings | E125: NHS Stoke on Trent CCG
D126: Havant | E126: NHS Telford and Wrekin CCG
D127: Havering
D128: Herefordshire, County of | E128: NHS England Midlands and East (West Midlands)
D129: Hertsmere | E129: NHS Coventry and Rugby CCG
D130: High Peak | E130: NHS Dudley CCG
D131: Hillingdon | E131: NHS Herefordshire CCG
D132: Hinckley and Bosworth | E132: NHS Redditch and Bromsgrove CCG
D133: Horsham | E133: NHS Sandwell and West Birmingham CCG
D134: Hounslow | E134: NHS South Warwickshire CCG
D135: Huntingdonshire | E135: NHS South Worcestershire CCG
D136: Hyndburn | E136: NHS Walsall CCG
D137: Ipswich | E137: NHS Warwickshire North CCG
D138: Isle of Wight | E138: NHS Wolverhampton CCG
D139: Isles of Scilly | E139: NHS Wyre Forest CCG
D140: Islington | E140: NHS Birmingham and Solihull CCG
D141: Kensington and Chelsea
D142: Kettering
D143: King's Lynn and West Norfolk | E143: NHS England London
D144: Kingston upon Hull, City of | E144: NHS Ealing CCG
D145: Kingston upon Thames | E145: NHS Enfield CCG
D146: Kirklees | E146: NHS Greenwich CCG
D147: Knowsley | E147: NHS Hammersmith and Fulham CCG
D148: Lambeth | E148: NHS Haringey CCG
D149: Lancaster | E149: NHS Harrow CCG
D150: Leeds | E150: NHS Havering CCG
D151: Leicester | E151: NHS Hillingdon CCG
D152: Lewes | E152: NHS Hounslow CCG
D153: Lewisham | E153: NHS Islington CCG
D154: Lichfield | E154: NHS Kingston CCG
D155: Lincoln | E155: NHS Lambeth CCG
D156: Liverpool | E156: NHS Lewisham CCG
D157: Luton | E157: NHS Merton CCG
D158: Maidstone | E158: NHS Newham CCG
D159: Maldon | E159: NHS Redbridge CCG
D160: Malvern Hills | E160: NHS Richmond CCG
D161: Manchester | E161: NHS Southwark CCG
D162: Mansfield | E162: NHS Sutton CCG
D163: Medway | E163: NHS Tower Hamlets CCG
D164: Melton | E164: NHS Waltham Forest CCG
D165: Mendip | E165: NHS Wandsworth CCG
D166: Merton | E166: NHS West London CCG
D167: Mid Devon | E167: NHS Barking and Dagenham CCG
D168: Mid Suffolk | E168: NHS Barnet CCG
D169: Mid Sussex | E169: NHS Bexley CCG
D170: Middlesbrough | E170: NHS Brent CCG
D171: Milton Keynes | E171: NHS Bromley CCG
D172: Mole Valley | E172: NHS Camden CCG
D173: New Forest | E173: NHS Central London (Westminster) CCG
D174: Newark and Sherwood | E174: NHS City and Hackney CCG
D175: Newcastle upon Tyne | E175: NHS Croydon CCG
D176: Newcastle-under-Lyme
D177: Newham
D178: North Devon | E178: NHS England South East (Hampshire, Isle of Wight and Thames Valley)
D179: North Dorset | E179: NHS Fareham and Gosport CCG
D180: North East Derbyshire | E180: NHS Isle of Wight CCG
D181: North East Lincolnshire | E181: NHS North East Hampshire and Farnham CCG
D182: North Hertfordshire | E182: NHS North Hampshire CCG
D183: North Kesteven | E183: NHS Portsmouth CCG
D184: North Lincolnshire | E184: NHS South Eastern Hampshire CCG
D185: North Norfolk | E185: NHS Southampton CCG
D186: North Somerset | E186: NHS West Hampshire CCG
D187: North Tyneside | E187: NHS Oxfordshire CCG
D188: North Warwickshire | E188: NHS Berkshire West CCG
D189: North West Leicestershire | E189: NHS Buckinghamshire CCG
D190: Northampton | E190: NHS East Berkshire CCG
D191: Northumberland | E191: NHS Surrey Heath CCG
D192: Norwich
D193: Nottingham | E193: NHS England South East (Kent, Surrey and Sussex)
D194: Nuneaton and Bedworth | E194: NHS Ashford CCG
D195: Oadby and Wigston | E195: NHS Brighton and Hove CCG
D196: Oldham | E196: NHS Canterbury and Coastal CCG
D197: Oxford | E197: NHS Crawley CCG
D198: Pendle | E198: NHS Dartford, Gravesham and Swanley CCG
D199: Peterborough | E199: NHS East Surrey CCG
D200: Plymouth | E200: NHS Eastbourne, Hailsham and Seaford CCG
... 127 more rows

Sheet Controls (hidden)
A1: Controls
A3: UserGuide launch on load | B3: on
A4: Scenario to display in Dashboard | B4: =VLOOKUP(Dashboard!G122,Dropdowns!L2:M7, 2,FALSE) -> 1
A5: Intervention to display in Dashboard | B5: =VLOOKUP(Dashboard!G158,Dropdowns!I2:J9, 2,FALSE) -> 2
A6: Number of rows between interventions model per intervention | B6: =ROWS('Model v baseline'!$C$106:$C$218)-1 -> 112
A7: Number of rows between interventions diagnosis | B7: =ROWS('Diagnosis calculations'!$B$3:$B$14)-1 -> 11

Sheet Model Defaults (hidden)
A1: Model Default Values
A2: Total Rows | B2: =COUNTIF(A4:A56,"*") -> 8 | C2: formula
A3: Sheet | B3: Cell Ref | C3: Current Intervention Spending | D3: Current Uptake | E3: Current Effect Size | F3: Current Baseline Effect Size | G3: Future Intervention Spending | H3: Future Uptake | I3: Future Effect Size | J3: Future Baseline Effect Size | K3: Unit cost per person | L3: Updated Current Uptake | M3: Updated Future Uptake | N3: Current: Max spend to reach 100% uptake | O3: Future: Max spend to reach 100% uptake | P3: Intervention | S3: Source | T3: Link | U3: Notes
A4: Dashboard | B4: X38 | C4: =(Parameters!G46)*K4*(D4-E4) -> 24823399.12 | D4: 0.2952073759 | E4: 0.1424793899 | G4: =(Parameters!G46)*K4*(H4-I4) -> 24823399.12 | H4: 0.2952073759 | I4: 0.1424793899 | K4: 33.92 | L4: =MIN(1,(Dashboard!L40/C4)*(D4-E4)+E4) -> 0.2952073759 | M4: =MIN(1,(Dashboard!L44/G4)*(H4-I4)+I4) -> 0.2952073759 | N4: =(1-E4)*C4/(D4-E4) -> 139375741.9 | O4: =(1-I4)*G4/(H4-I4) -> 139375741.9 | P4: 2. Internet-based STI service (SH:24) | U4: Use the cost given to us by SH24 - will send separately
A5: Dashboard | B5: X48 | C5: =(Parameters!G46*D5)*K5 -> 2225389.936 | D5: 0.04 | E5: 0.8080421054 | F5: 0.439857671 | G5: =(Parameters!G46*H5)*K5 -> 2225389.936 | H5: 0.04 | I5: 0.8080421054 | J5: 0.439857671 | K5: 11.61072521 | L5: =MIN(1,(Dashboard!L50/C5)*D5) -> 0.04000000008 | M5: =MIN(1,(Dashboard!L54/G5)*H5) -> 0.04000000008 | N5: =C5/D5 -> 55634748.39 | O5: =G5/H5 -> 55634748.39 | P5: 3. C-card scheme | S5: Saddler | T5: https://www.nice.org.uk/guidance/ng68/documents/interim-findings | U5: Mean taken from three reports (small range)
A6: Dashboard | B6: X58 | C6: =Parameters!G49*D6*K6 -> 4369773.134 | D6: 0.5 | E6: 0.5751984928 | F6: 0.439857671 | G6: =Parameters!G49*D6*K6 -> 4369773.134 | H6: 0.5 | I6: 0.5751984928 | J6: 0.439857671 | K6: =(0.17354167*50+36/2)*0.4 -> 10.6708334 | L6: =MIN(1,(Dashboard!L60/C6)*D6) -> 0.4999999995 | M6: =MIN(1,(Dashboard!L64/C6)*D6) -> 0.4999999995 | N6: 8739546.268 | O6: 8739546.268 | P6: 4. Condom availability in schools | S6: NHS Supply Chain | T6: https://my.supplychain.nhs.uk/catalogue/browse/78/condoms-lubricants-and-associated-products?page=8 | U6: Assumes 10 condoms per person per year (enough for about 2x no. sex acts)
A7: Dashboard | B7: X68 | C7: =(Interventions!C192*D7)*K7 -> 110192.3234 | D7: 0.5 | E7: 0.5172090484 | F7: 0.4088780315 | G7: =(Interventions!D192*H7)*K7 -> 110192.3234 | H7: 0.5 | I7: 0.5172090484 | J7: 0.4088780315 | K7: 2 | L7: =MIN(1,(Dashboard!L70/C7)*D7) -> 0.4999999846 | M7: =MIN(1,(Dashboard!L74/G7)*H7) -> 0.4999999846 | N7: 220384.6468 | O7: 220384.6468 | P7: 5. SXT e-partner notification | S7: Oliveira | T7: SXT | U7: Cost per index patient
A8: Dashboard | B8: X78 | C8: =(Parameters!G46*Dashboard!F20)*K8*(D8-E8) -> 26397814.04 | D8: 0.3868078915 | E8: 0.1788123448 | G8: =(Parameters!G46*Dashboard!F20)*K8*(H8-I8) -> 26397814.04 | H8: 0.3868078915 | I8: 0.1788123448 | K8: 54.48 | L8: =MIN(1,(Dashboard!L80/C8)*(D8-E8)+E8) -> 0.3868078915 | M8: =MIN(1,(Dashboard!L84/G8)*(H8-I8)+I8) -> 0.3868078915 | N8: =(1-E8)*C8/(D8-E8) -> 104221265.1 | O8: =(1-I8)*G8/(H8-I8) -> 104221265.1 | P8: 6: Chlamydia screening: women | S8: Turner (2011) | T8: https://www.bmj.com/content/342/bmj.c7250 | U8: Don't have a cost - universal intervention so users can just adjust effectiveness
A9: Dashboard | B9: X88 | C9: =(Interventions!C254*D9)*K9 -> 431868.2257 | D9: 0.5 | E9: 0.0147 | F9: 0.0819 | G9: =(Interventions!D254*H9)*K9 -> 431868.2257 | H9: 0.5 | I9: 0.0147 | J9: 0.0819 | K9: 5.2 | L9: =MIN(1,(Dashboard!L90/G9)*H9) -> 0.500000005 | M9: =MIN(1,(Dashboard!L94/C9)*D9) -> 0.500000005 | N9: 863736.4514 | O9: 863736.4514 | P9: 7: Prior emergency contraception | S9: BNF | T9: https://bnf.nice.org.uk/medicinal-forms/levonorgestrel.html | U9: Tariff AND indicative price for NHS
A10: Dashboard | B10: X98 | C10: =(Interventions!C254*D10)*K10 -> 4170118.04 | D10: 0.5 | E10: 0.336 | F10: 0.096 | G10: =(Interventions!D254*H10)*K10 -> 4170118.04 | H10: 0.5 | I10: 0.336 | J10: 0.096 | K10: =0.92+0.46/0.98199*15+I10*(5/3)*AVERAGE('Parameter calculations'!F191:F192)+I10*0.92*11 -> 50.21118137 | L10: =MIN(1,(Dashboard!L100/G10)*H10) -> 0.5 | M10: =MIN(1,(Dashboard!L104/C10)*D10) -> 0.5 | N10: 8340236.08 | O10: 8340236.08 | P10: 8: Contraception for EHC recipients | S10: BNF | T10: https://bnf.nice.org.uk/medicinal-forms/levonorgestrel.html | U10: Individual pill is cheap but ineffective as needs to be taken daily, better to give them whole box. Box:NHS = £0.92 (https://bnf.nice.org.uk/medicinal-forms/levonorgestrel.html), Box:Pharmacy = £10.00 (https://onlinedoctor.lloydspharmacy.com/uk/mini-pill/norgeston). Also included 15 mins pharmacist time. Pharmacist cost including on-costs 0.46 per minute at 2017/18 prices from NICE resource template (http://www.nice.org.uk/guidance/ng102/resources), uplifted
A11: Dashboard | B11: X108 | E11: 0.27 | F11: 8.95 | I11: 0.27 | J11: 8.95 | L11: =D11 -> 0 | M11: =H11 -> 0 | P11: 1. Reduced time to test result | S11: Turner (2013) | T11: https://sti.bmj.com/content/sextrans/90/2/104.full.pdf | U11: Don't have a cost - this intervention is quite specific and the PoC costs don't really work. Would leave cost blank for the user to enter

Sheet iButtons (hidden)
A1: iButton Content
A2: Total Rows | B2: =COUNTIF(A4:A38,"*") -> 31
A3: Sheet | B3: Cell Ref | C3: MsgBox Title | D3: MsgBox Content Line 1 | E3: MsgBox Content Line 2
A4: Dashboard | B4: B12 | C4: Total Population | D4: ="Total residential population"&IF(area="[Please Select]", "", " of "&area) -> Total residential population of England | E4: [source: ONS, 2018]
A5: Dashboard | B5: B13 | C5: Population 15-24 | D5: ="The proportion of the population aged between 15-24"&IF(area="[Please Select]", "", " of "&area) -> The proportion of the population aged between 15-24 of England | E5: [source: ONS, 2018]
A6: Dashboard | B6: B19 | C6: Proportion Male | D6: ="The male proportion of the total population"&IF(area="[Please Select]", "", " of "&area)&". This refers to biological sex, as opposed to gender identity, as many STIs have different symptoms and risks depending on sex." -> The male proportion of the total population of England. This refers to biological sex, as opposed to gender identity, as many STIs have different symptoms and risks depending on sex. | E6: [source: ONS, 2018]
A7: Dashboard | B7: B20 | C7: Proportion Female | D7: ="The female proportion of the total population"&IF(area="[Please Select]", "", " of "&area)&". This refers to biological sex, as opposed to gender identity, as many STIs have different symptoms and risks depending on sex." -> The female proportion of the total population of England. This refers to biological sex, as opposed to gender identity, as many STIs have different symptoms and risks depending on sex. | E7: [source: ONS, 2018]
A8: Dashboard | B8: B24 | C8: Chlamydia | D8: ="Modelled Chlamydia prevalence"&IF(area="[Please Select]", "", " of "&area&" based on national data") -> Modelled Chlamydia prevalence of England based on national data | E8: [source: Sonnenberg et al, 2013]
A9: Dashboard | B9: B25 | C9: Gonorrohea | D9: ="Modelled Gonorrohea prevalence"&IF(area="[Please Select]", "", " of "&area&" based on national data") -> Modelled Gonorrohea prevalence of England based on national data | E9: [source: Sonnenberg et al, 2013]
A10: Dashboard | B10: B26 | C10: Genital warts | D10: ="Modelled Genital Warts prevalence"&IF(area="[Please Select]", "", " of "&area&" based on national data") -> Modelled Genital Warts prevalence of England based on national data | E10: [source: Sonnenberg et al, 2019]
A11: Dashboard | B11: B27 | C11: Syphilis | D11: ="Modelled Syphilis prevalence"&IF(area="[Please Select]", "", " of "&area&" based on national data") -> Modelled Syphilis prevalence of England based on national data | E11: [source: Korenromp et al, 2018]
A12: Dashboard | B12: B28 | C12: HIV | D12: ="Modelled HIV prevalence"&IF(area="[Please Select]", "", " of "&area&" based on national data") -> Modelled HIV prevalence of England based on national data | E12: [source: Sonnenberg et al, 2013]
A13: Dashboard | B13: B31 | C13: Monetary value of a QALY | D13: The monetary value attributed to each quality adjusted life year gained through intervention as valued by HM Treasury and the Department of Health and Social Care
A14: Dashboard | B14: L37 | C14: Total Cost | D14: Programme costs associated with each intervention, different costs can be modelled under the different scenarios to assess the net budget impact associated with the scenario. | E14: These are annual programme costs.
A15: Dashboard | B15: P37 | C15: Uptake | D15: The proportion of the population who receive the intervention under different scenarios
A16: Dashboard | B16: T37 | C16: Effectiveness Measure | D16: A brief summary of how the intervention impacts the population
A17: Dashboard | B17: G38 | C17: Internet-based STI service | D17: Online ordering of home-testing kit, self-test, then results delivered online. Cost per test based on a HIV, Syphilis, Chlamydia and Gonorrhoea test as per Wilson et al. (2017). Gender, sexual orientation and ethnicity of the young person will impact the cost per test. Different types of tests are available for different risk profiles, with different balances available between cost and breadth of testing. Adherence to NHS information and clinical standards will impact the cost per test of online STI testing providers. | E17: ="Note: Uptake is the % of sexually active young people who are offered a full online STI test, not the number who adopt." -> Note: Uptake is the % of sexually active young people who are offered a full online STI test, not the number who adopt. | F17: Source: Wilson et al (2017)
A18: Dashboard | B18: G48 | C18: C-card scheme | D18: Multi-component condom distribution scheme in young people, based around C-Card services. | E18: ="Note: Uptake is the % of sexually active young people who register / use a C-card in a given year. Costs vary across different C-card schemes, so default costs are based on the average across several schemes" -> Note: Uptake is the % of sexually active young people who register / use a C-card in a given year. Costs vary across different C-card schemes, so default costs are based on the average across several schemes | F18: Source: Sadler (2016)
A19: Dashboard | B19: G58 | C19: Condom availability in schools | D19: Condom distribution programmes in schools (note: condom use increases but usage of other contraceptive methods fall as a result). | E19: ="Note: Uptake is the % of sexually 15-17 year olds who go to an educational establishment where condoms are made available for free. Costs include nurse time to distribute condoms." -> Note: Uptake is the % of sexually 15-17 year olds who go to an educational establishment where condoms are made available for free. Costs include nurse time to distribute condoms. | F19: Source: Blake et al (2003)
A20: Dashboard | B20: G68 | C20: E-partner notification | D20: Online discrete partner notification system including follow-up of partners notified | E20: ="Note: Uptake is the % of people diagnosed with an STI whose partners who are notified with the online system." -> Note: Uptake is the % of people diagnosed with an STI whose partners who are notified with the online system. | F20: Source: Oliveira et al (2019)
A21: Dashboard | B21: G78 | C21: Chlamydia screening: women | D21: Screening of women aged 15-24 under the National Chlamydia Screening Programme | E21: Note: Uptake is the % of sexually active young women who are offered chlamydia screening. | F21: Source: PHE National chlamydia screening programme (NCSP) - data tables (2019)
A22: Dashboard | B22: G88 | C22: Prior emergency contraception | D22: Advanced provision of emergency hormonal contraception | E22: ="Note: Uptake is the % of young people who access emergency contraception (in a pharmacy or other setting) who are given additional emergency contraception." -> Note: Uptake is the % of young people who access emergency contraception (in a pharmacy or other setting) who are given additional emergency contraception. | F22: Source: Ekstrand et al (2010)
A23: Dashboard | B23: G98 | C23: Condoms for EHC recipients | D23: Provision of oral contraceptives to women in pharmacies obtaining emergency hormonal contraceptives | E23: ="Note: Uptake is the % of young people who access emergency contraception (in a pharmacy or other setting) who are given oral contraception. Costs include the cost of SRH services to prescribe additional oral contraception to those who continue" -> Note: Uptake is the % of young people who access emergency contraception (in a pharmacy or other setting) who are given oral contraception. Costs include the cost of SRH services to prescribe additional oral contraception to those who continue | F23: Source: Michie et al (2014)
A24: Dashboard | B24: G108 | C24: Reduced time to test result | D24: A rapid point-of-care diagnostic test | E24: Note: Uptake is the % of young people infected with chlamydia or gonorrhoea whose test is processed in the shorter timeframe. | F24: Source: Whitlock et al (2018)
A25: Dashboard | B25: F125 | C25: Extra program cost | D25: The difference in cost due to the difference of uptake of the interventions in the different scenarios selected | E25: e.g. if current vs no intervention is selected then the extra programme costs would be those associated with uptake in the current scenario compared to if there was no intervention
A26: Dashboard | B26: H125 | C26: STI cases | D26: The change in total sexually transmitted infection cases (chlamydia, gonorrhoea, genital warts, syphilis, HIV) given the change in spend on this intervention
A27: Dashboard | B27: J125 | C27: STI diagnoses | D27: The change in total sexually transmitted infection cases that are diagnosed (chlamydia, gonorrhoea, genital warts, syphilis, HIV) given the change in spend on this intervention
A28: Dashboard | B28: L125 | C28: STI sequelae | D28: The change in total sexually transmitted infection sequelae (pelvic inflammatory disorder, tubal factor infertility, neurosyphilis, tertiary syphilis) given the change in spend on this intervention
A29: Dashboard | B29: N125 | C29: Unintended pregnancies | D29: The change in unintended pregnancies given the change in spend on this intervention. Unintended pregnancies can either be unwanted (the mother never wants to be pregnant) or mistimed (the mother intended to become pregnant in the future)
A30: Dashboard | B30: P125 | C30: Local authority cost savings | D30: The amount of money saved by the local authority given the change in spend on this intervention. This includes spending on sexual health treatment (excluding HIV and disease sequelae) and testing.
A31: Dashboard | B31: R125 | C31: NHS cost savings | D31: The NHS cost savings given the change in spend on this intervention. This includes spending on treating STI sequelae and HIV, as well as health care costs associated with unintended pregnancies (e.g. birth costs).
A32: Dashboard | B32: T125 | C32: Other cost savings | D32: The other government cost savings given the change in spend on this intervention. This includes costs associated with unintended pregnancies such as the child's education, or child benefits / tax credits.
A33: Dashboard | B33: V125 | C33: Return on investment exc. QALYs | D33: This return on investment figure is the total FINANCIAL benefits associated with an intervention (e.g. cost savings) divided by the upfront cost of the intervention. | E33: These benefits are the total benefits associated with the investment in a given financial year; however, they do not all occur within a financial year.
A34: Dashboard | B34: X125 | C34: Return on investment inc. QALYs | D34: This return on investment figure is the total benefits associated with an intervention divided by the upfront cost of the intervention. These benefits include a monetary value of health gains, even though these gains are non-financial. | E34: These benefits are the total benefits associated with the investment in a given financial year; however, they do not all occur within a financial year.
A42: Step 2 Text
A43: Current Tab row | B43: Dashboard button location | C43: MsgBox Title | D43: MsgBox Content Line 1
A44: Row 36 | B44: Q40 | C44: Intervention spending and uptake | D44: ="New uptake rate is now above 100% at this spending level, to achieve 100% exactly enter " & TEXT('Model Defaults'!N4,"£#,###") & " for scenario intervention spending" -> New uptake rate is now above 100% at this spending level, to achieve 100% exactly enter £139,375,742 for scenario intervention spending
A45: Row 37 | B45: Q44 | C45: Intervention spending and uptake | D45: ="New uptake rate is now above 100% at this spending level, to achieve 100% exactly enter " & TEXT('Model Defaults'!O4,"£#,###") & " for scenario intervention spending" -> New uptake rate is now above 100% at this spending level, to achieve 100% exactly enter £139,375,742 for scenario intervention spending
A46: Row 38 | B46: Q50 | C46: Intervention spending and uptake | D46: ="New uptake rate is now above 100% at this spending level, to achieve 100% exactly enter " & TEXT('Model Defaults'!N5,"£#,###") & " for scenario intervention spending" -> New uptake rate is now above 100% at this spending level, to achieve 100% exactly enter £55,634,748 for scenario intervention spending
A47: Row 39 | B47: Q54 | C47: Intervention spending and uptake | D47: ="New uptake rate is now above 100% at this spending level, to achieve 100% exactly enter " & TEXT('Model Defaults'!O5,"£#,###") & " for scenario intervention spending" -> New uptake rate is now above 100% at this spending level, to achieve 100% exactly enter £55,634,748 for scenario intervention spending
A48: Row 40 | B48: Q60 | C48: Intervention spending and uptake | D48: ="New uptake rate is now above 100% at this spending level, to achieve 100% exactly enter " & TEXT('Model Defaults'!N6,"£#,###") & " for scenario intervention spending" -> New uptake rate is now above 100% at this spending level, to achieve 100% exactly enter £8,739,546 for scenario intervention spending
A49: Row 41 | B49: Q64 | C49: Intervention spending and uptake | D49: ="New uptake rate is now above 100% at this spending level, to achieve 100% exactly enter " & TEXT('Model Defaults'!O6,"£#,###") & " for scenario intervention spending" -> New uptake rate is now above 100% at this spending level, to achieve 100% exactly enter £8,739,546 for scenario intervention spending
A50: Row 42 | B50: Q70 | C50: Intervention spending and uptake | D50: ="New uptake rate is now above 100% at this spending level, to achieve 100% exactly enter " & TEXT('Model Defaults'!N7,"£#,###") & " for scenario intervention spending" -> New uptake rate is now above 100% at this spending level, to achieve 100% exactly enter £220,385 for scenario intervention spending
A51: Row 43 | B51: Q74 | C51: Intervention spending and uptake | D51: ="New uptake rate is now above 100% at this spending level, to achieve 100% exactly enter " & TEXT('Model Defaults'!O7,"£#,###") & " for scenario intervention spending" -> New uptake rate is now above 100% at this spending level, to achieve 100% exactly enter £220,385 for scenario intervention spending
A52: Row 44 | B52: Q80 | C52: Intervention spending and uptake | D52: ="New uptake rate is now above 100% at this spending level, to achieve 100% exactly enter " & TEXT('Model Defaults'!N8,"£#,###") & " for scenario intervention spending" -> New uptake rate is now above 100% at this spending level, to achieve 100% exactly enter £104,221,265 for scenario intervention spending
A53: Row 45 | B53: Q84 | C53: Intervention spending and uptake | D53: ="New uptake rate is now above 100% at this spending level, to achieve 100% exactly enter " & TEXT('Model Defaults'!O8,"£#,###") & " for scenario intervention spending" -> New uptake rate is now above 100% at this spending level, to achieve 100% exactly enter £104,221,265 for scenario intervention spending
A54: Row 46 | B54: Q90 | C54: Intervention spending and uptake | D54: ="New uptake rate is now above 100% at this spending level, to achieve 100% exactly enter " & TEXT('Model Defaults'!N9,"£#,###") & " for scenario intervention spending" -> New uptake rate is now above 100% at this spending level, to achieve 100% exactly enter £863,736 for scenario intervention spending
A55: Row 47 | B55: Q94 | C55: Intervention spending and uptake | D55: ="New uptake rate is now above 100% at this spending level, to achieve 100% exactly enter " & TEXT('Model Defaults'!O9,"£#,###") & " for scenario intervention spending" -> New uptake rate is now above 100% at this spending level, to achieve 100% exactly enter £863,736 for scenario intervention spending
A56: Row 48 | B56: Q100 | C56: Intervention spending and uptake | D56: ="New uptake rate is now above 100% at this spending level, to achieve 100% exactly enter " & TEXT('Model Defaults'!N10,"£#,###") & " for scenario intervention spending" -> New uptake rate is now above 100% at this spending level, to achieve 100% exactly enter £8,340,236 for scenario intervention spending
A57: Row 49 | B57: Q104 | C57: Intervention spending and uptake | D57: ="New uptake rate is now above 100% at this spending level, to achieve 100% exactly enter " & TEXT('Model Defaults'!O10,"£#,###") & " for scenario intervention spending" -> New uptake rate is now above 100% at this spending level, to achieve 100% exactly enter £8,340,236 for scenario intervention spending
A58: Row 50 | B58: Q110 | C58: N/A
A59: Row 51 | B59: Q114 | C59: N/A

Sheet Interventions (hidden)
B2: Population
B3: Female | C3: =Parameters!C12 -> 0.4861721177
B4: Male | C4: =default_prop_men -> 0.5138278823
B6: Intervention 1: In-house testing to reduce time to test result
B8: Source: | C8: Whitlock
B9: Description: | C9: In-house lab doing instant testing (blood off-site but results in 4 hours) - reduction in time to result notification
B10: Impact: | C10: Intervention arm (Dean Street Express, DSE) had delay "between eligible pairs of clinic appointments and test result notifications" of 0.27 days compared to 8.95 days for the control group (56 Dean Street, 56DS). Reduction of 8.68 days
B13: Notes: | C13: Chlamydia and gonorrhoea only
B14: Key result for modelling: | C14: Prevention of 196 CT and/or NG transmissions, per 60266
B16: Calculations for modelling | C16: Scenario 1 | D16: Scenario 2
B17: Baseline: Days to treatment | C17: =Dashboard!P112 -> 8.95 | D17: =Dashboard!P116 -> 8.95
B18: Intervention: Days to treatment | C18: =Dashboard!M112 -> 0.27 | D18: =Dashboard!M116 -> 0.27
B19: Difference | C19: =C17-C18 -> 8.68 | D19: =D17-D18 -> 8.68
B20: Prevented CT/NG transmissions | C20: =C19*C21 -> 196 | D20: =D19*D21 -> 196 | E20: From Whitlock
B21: Transmissions prevented per day (for cohort) | C21: 22.58064516 | D21: 22.58064516
B22: Denominator (n patients) | C22: 60266 | D22: 60266 | E22: From Whitlock
B23: CT/NG transmissions prevented per person taking up intervention | C23: =C20/C22 -> 0.003252248366 | D23: =D20/D22 -> 0.003252248366 | E23: Calculation
B24: Weighted average prevalence of chlamydia | C24: =SUMPRODUCT(Parameters!C195:AE195,Parameters!C36:AE36)/SUM(Parameters!C36:AE36) -> 0.04004108297 | D24: =SUMPRODUCT(Parameters!C195:AE195,Parameters!C36:AE36)/SUM(Parameters!C36:AE36) -> 0.04004108297 | E24: Calculation from parameters sheet
B25: Weighted average prevalence of gonorrhoea | C25: =SUMPRODUCT(Parameters!C201:AE201,Parameters!C36:AE36)/SUM(Parameters!C36:AE36) -> 0.001258125515 | D25: =SUMPRODUCT(Parameters!C201:AE201,Parameters!C36:AE36)/SUM(Parameters!C36:AE36) -> 0.001258125515 | E25: Calculation from parameters sheet
B26: Proportion of chlamydia or gonorrhoea infections chlamydia | C26: =C24/SUM(C24:C25) -> 0.9695363286 | D26: =D24/SUM(D24:D25) -> 0.9695363286 | E26: Calculation
B27: CT transmissions prevented per person taking up intervention | C27: =C23*C26 -> 0.00315317294 | D27: =D23*D26 -> 0.00315317294 | E27: Calculation assuming the split chlamydia/gonorrhoea is the same as overall prevalence
B28: NG transmissions prevented per person taking up intervention | C28: =C23*(1-C26) -> 9.907542542e-05 | D28: =D23*(1-D26) -> 9.907542542e-05 | E28: Calculation assuming the split chlamydia/gonorrhoea is the same as overall prevalence
B29: No. people taking up intervention | C29: =Dashboard!Q110*Parameters!G46*Parameters!C473 -> 0 | D29: =Dashboard!Q114*Parameters!G46*Parameters!C473 -> 0
B32: Scenario 1 | C32: 15 F | D32: 15 M | E32: 15 MSM | F32: 16 F | G32: 16 M | H32: 16 MSM | I32: 17 F | J32: 17 M | K32: 17 MSM | L32: 18 F | M32: 18 M | N32: 18 MSM | O32: 19 F | P32: 19 M | Q32: 19 MSM | R32: 20 F | S32: 20 M | T32: 20 MSM | U32: 21 F | V32: 21 M | W32: 21 MSM | X32: 22 F | Y32: 22 M | Z32: 22 MSM | AA32: 23 F | AB32: 23 M | AC32: 23 MSM | AD32: 24 F | AE32: 24 M | AF32: 24 MSM
B33: No. people taking up intervention by age and sex | C33: =$C$29*Parameters!C22 -> 0 | D33: =$C$29*Parameters!D22 -> 0 | E33: =$C$29*Parameters!E22 -> 0 | F33: =$C$29*Parameters!F22 -> 0 | G33: =$C$29*Parameters!G22 -> 0 | H33: =$C$29*Parameters!H22 -> 0 | I33: =$C$29*Parameters!I22 -> 0 | J33: =$C$29*Parameters!J22 -> 0 | K33: =$C$29*Parameters!K22 -> 0 | L33: =$C$29*Parameters!L22 -> 0 | M33: =$C$29*Parameters!M22 -> 0 | N33: =$C$29*Parameters!N22 -> 0 | O33: =$C$29*Parameters!O22 -> 0 | P33: =$C$29*Parameters!P22 -> 0 | Q33: =$C$29*Parameters!Q22 -> 0 | R33: =$C$29*Parameters!R22 -> 0 | S33: =$C$29*Parameters!S22 -> 0 | T33: =$C$29*Parameters!T22 -> 0 | U33: =$C$29*Parameters!U22 -> 0 | V33: =$C$29*Parameters!V22 -> 0 | W33: =$C$29*Parameters!W22 -> 0 | X33: =$C$29*Parameters!X22 -> 0 | Y33: =$C$29*Parameters!Y22 -> 0 | Z33: =$C$29*Parameters!Z22 -> 0 | AA33: =$C$29*Parameters!AA22 -> 0 | AB33: =$C$29*Parameters!AB22 -> 0 | AC33: =$C$29*Parameters!AC22 -> 0 | AD33: =$C$29*Parameters!AD22 -> 0 | AE33: =$C$29*Parameters!AE22 -> 0 | AF33: =$C$29*Parameters!AF22 -> 0
B34: CT transmissions prevented | C34: =C33*$C27 -> 0 | D34: =D33*$C27 -> 0 | E34: =E33*$C27 -> 0 | F34: 0 | G34: 0 | H34: 0 | I34: 0 | J34: 0 | K34: 0 | L34: 0 | M34: 0 | N34: 0 | O34: 0 | P34: 0 | Q34: 0 | R34: 0 | S34: 0 | T34: 0 | U34: 0 | V34: 0 | W34: 0 | X34: 0 | Y34: 0 | Z34: 0 | AA34: 0 | AB34: 0 | AC34: 0 | AD34: 0 | AE34: 0 | AF34: =AF33*$C27 -> 0
B35: NG transmissions prevented | C35: =C33*$C28 -> 0 | D35: =D33*$C28 -> 0 | E35: 0 | F35: 0 | G35: 0 | H35: 0 | I35: 0 | J35: 0 | K35: 0 | L35: 0 | M35: 0 | N35: 0 | O35: 0 | P35: 0 | Q35: 0 | R35: 0 | S35: 0 | T35: 0 | U35: 0 | V35: 0 | W35: 0 | X35: 0 | Y35: 0 | Z35: 0 | AA35: 0 | AB35: 0 | AC35: 0 | AD35: 0 | AE35: 0 | AF35: 0
B36: Applies total proportionately to the population ages
B38: Scenario 2 | C38: 15 F | D38: 15 M | E38: 15 MSM | F38: 16 F | G38: 16 M | H38: 16 MSM | I38: 17 F | J38: 17 M | K38: 17 MSM | L38: 18 F | M38: 18 M | N38: 18 MSM | O38: 19 F | P38: 19 M | Q38: 19 MSM | R38: 20 F | S38: 20 M | T38: 20 MSM | U38: 21 F | V38: 21 M | W38: 21 MSM | X38: 22 F | Y38: 22 M | Z38: 22 MSM | AA38: 23 F | AB38: 23 M | AC38: 23 MSM | AD38: 24 F | AE38: 24 M | AF38: 24 MSM
B39: No. people taking up intervention by age and sex | C39: =$D$29*Parameters!C22 -> 0 | D39: =$D$29*Parameters!D22 -> 0 | E39: =$D$29*Parameters!E22 -> 0 | F39: =$D$29*Parameters!F22 -> 0 | G39: =$D$29*Parameters!G22 -> 0 | H39: =$D$29*Parameters!H22 -> 0 | I39: =$D$29*Parameters!I22 -> 0 | J39: =$D$29*Parameters!J22 -> 0 | K39: =$D$29*Parameters!K22 -> 0 | L39: =$D$29*Parameters!L22 -> 0 | M39: =$D$29*Parameters!M22 -> 0 | N39: =$D$29*Parameters!N22 -> 0 | O39: =$D$29*Parameters!O22 -> 0 | P39: =$D$29*Parameters!P22 -> 0 | Q39: =$D$29*Parameters!Q22 -> 0 | R39: =$D$29*Parameters!R22 -> 0 | S39: =$D$29*Parameters!S22 -> 0 | T39: =$D$29*Parameters!T22 -> 0 | U39: =$D$29*Parameters!U22 -> 0 | V39: =$D$29*Parameters!V22 -> 0 | W39: =$D$29*Parameters!W22 -> 0 | X39: =$D$29*Parameters!X22 -> 0 | Y39: =$D$29*Parameters!Y22 -> 0 | Z39: =$D$29*Parameters!Z22 -> 0 | AA39: =$D$29*Parameters!AA22 -> 0 | AB39: =$D$29*Parameters!AB22 -> 0 | AC39: =$D$29*Parameters!AC22 -> 0 | AD39: =$D$29*Parameters!AD22 -> 0 | AE39: =$D$29*Parameters!AE22 -> 0 | AF39: =$D$29*Parameters!AF22 -> 0
B40: CT transmissions prevented | C40: =C39*$D27 -> 0 | D40: =D39*$D27 -> 0 | E40: 0 | F40: 0 | G40: 0 | H40: 0 | I40: 0 | J40: 0 | K40: 0 | L40: 0 | M40: 0 | N40: 0 | O40: 0 | P40: 0 | Q40: 0 | R40: 0 | S40: 0 | T40: 0 | U40: 0 | V40: 0 | W40: 0 | X40: 0 | Y40: 0 | Z40: 0 | AA40: 0 | AB40: 0 | AC40: 0 | AD40: 0 | AE40: 0 | AF40: =AF39*$D27 -> 0
B41: NG transmissions prevented | C41: =C39*$D28 -> 0 | D41: =D39*$D28 -> 0 | E41: 0 | F41: 0 | G41: 0 | H41: 0 | I41: 0 | J41: 0 | K41: 0 | L41: 0 | M41: 0 | N41: 0 | O41: 0 | P41: 0 | Q41: 0 | R41: 0 | S41: 0 | T41: 0 | U41: 0 | V41: 0 | W41: 0 | X41: 0 | Y41: 0 | Z41: 0 | AA41: 0 | AB41: 0 | AC41: 0 | AD41: 0 | AE41: 0 | AF41: 0
B42: Applies total proportionately to the population ages
B45: Intervention 2: Internet-based STI testing and results service
B47: Source: | C47: Wilson et al 2017
B48: Description: | C48: Self-sampling kits accessed via the internet
B49: Impact: | C49: Increase in nos. completing a test
B50: Notes: | C50: Chlamydia, gonorrohea, HIV and syphilis
B51: Key result for modelling: | C51: Based on Figure 2 - which is most relevant for 15-24 year olds. XX% of the intervention group completed an STI test compared with XX% of the control group, RR XX
C53: SH24 tested | D53: SH24 offered | E53: Control tested | F53: Control offered
B54: 16 to 19 | C54: 60 | D54: 171 | E54: 29 | F54: 169
B55: 20 to 24 | C55: 168 | D55: 390 | E55: 73 | F55: 351
B56: Total | C56: =SUM(C54:C55) -> 228 | D56: =SUM(D54:D55) -> 561 | E56: =SUM(E54:E55) -> 102 | F56: =SUM(F54:F55) -> 520
C58: SH24 prop. tested | D58: Control prop. tested | E58: RR
B59: Total | C59: =C56/D56 -> 0.4064171123 | D59: =E56/F56 -> 0.1961538462 | E59: =C59/D59 -> 2.071930376
C61: With intervention | D61: Baseline
B62: Model default | C62: =C59/D59*D62 -> 0.2952073759 | D62: =(Parameters!C474+Parameters!C476)/2 -> 0.1424793899 | E62: Just take the relative risk of testing increase due to the online nature - ignore the rest
C64: Scenario 1 | D64: Scenario 2
B65: RR of test uptake | C65: =Dashboard!Q40 -> 0.2952073759 | D65: =Dashboard!Q44 -> 0.2952073759 | E65: As is currently being used in the model (user may have overwritten)
B67: Baseline test cost | C67: =Parameters!C521 -> 89.22
B68: Cost for SH24 cost | C68: 33.92 | D68: Reflects cost in dashboard. Default cost of 33.92 provided by SH24 with following caveats:
D69: Cost per test based on T4 - HIV, Syphilis, Chlamydia and Gonorrhoea Test as per Wilson et al. 2017.
D70: - Gender, sexuality and ethnicity of the young person will impact the cost per test. Different types of tests are available for different risk profiles, with different balances available between cost and breadth of testing.
D71: - Adherence to NHS Information and Clinical standards will impact the cost per test of online STI testing providers.
B75: Intervention 3: C-card scheme
B77: Source: | C77: Sadler
B78: Description: | C78: Multi-component condom distribution scheme in young people, based around C-Card services
B79: Impact: | C79: Increased condom usage
B80: Notes:
B81: Key result for modelling: | C81: Relative risk of ever using a condom of 1.23
C82: Scenario 1 | D82: Scenario 2
B83: RR risk of condom usage | C83: =79/64 -> 1.234375 | D83: =79/64 -> 1.234375
B85: Assume this applies to those taking up VIP condom card in Larsson | C85: 0.28 | E85: https://www.researchgate.net/profile/Margareta_Larsson/publication/7197589_Evaluation_of_a_sexual_education_intervention_among_Swedish_high_school_students/links/54201ef40cf203f155c2a90f.pdf
B87: Relative risk if you had full uptake of C-card | C87: =(C83-(1-C85*1))/C85 -> 1.837053571
B89: Uptake from Sadler:
C90: Target population | D90: New registrations per annum | E90: Total registrations | F90: % population new registrants | G90: % population registrants at end of evaluation (3-6 years) | H90: % repeat users
B91: Lincolnshire | C91: 102260 | D91: 2571 | E91: 15424 | F91: =D91/C91 -> 0.02514179542 | G91: =E91/C91 -> 0.1508312146
B92: Nottinghamshire | C92: 111444 | D92: 3277 | E92: 22966 | F92: =D92/C92 -> 0.02940490291 | G92: =E92/C92 -> 0.2060765945
B93: Newcastle & North Tyneside | C93: 106846 | D93: 4344 | F93: =D93/C93 -> 0.04065664601
B94: London | C94: =D94/0.032 -> 1033406.25 | D94: 33069 | E94: 98319 | F94: =D94/C94 -> 0.032 | G94: =E94/C94 -> 0.0951407058 | H94: 0.3
B95: Average | F95: =AVERAGE(F91:F94) -> 0.03180083609 | G95: =AVERAGE(G91:G94) -> 0.1506828383
B98: New RR default | C98: =(C83-1)/C85+1 -> 1.837053571 | D98: =(C83-1)/C85+1 -> 1.837053571 | I98: Cost per eligible person | J98: =0.48 -> 0.48
B99: New RR (used) | C99: =Dashboard!M52/Dashboard!P52 -> 1.837053571 | D99: =Dashboard!M56/Dashboard!P56 -> 1.837053571 | I99: Cost per user | J99: =J98/(F95*(1+H94)) -> 11.61072521
C100: Scenario 1 | D100: Scenario 2
B102: % of people taking up intervention | C102: =Dashboard!Q50 -> 0.04 | D102: =Dashboard!Q54 -> 0.04
B103: Adjusted relative risk | C103: =C102*C99+(1-C102) -> 1.033482143 | D103: =D102*D99+(1-D102) -> 1.033482143
C106: Female | D106: Male | E106: Average
B107: Baseline condom use | C107: 0.315 | D107: 0.562 | E107: =(C107*C3)+(D107*C4) -> 0.4419154869
B108: Relative distribition | C108: =C107/($C107*$C$3+$D$107*$C$4) -> 0.7128059761 | D108: =D107/($C107*$C$3+$D$107*$C$4) -> 1.271736376
B110: other methods % | D110: adjusted | E110: proportional relative risk sc 1 | F110: proportional relative risk sc 2
B111: =Parameters!C63 -> 0.435 | C111: pill | D111: =B111/SUM($B$111:$B$112) -> 0.8115671642 | E111: =1-(C$103-1)*$F$132*D111 -> 0.9813185572 | F111: =1-(D$103-1)*$F$132*D111 -> 0.9813185572 | H111: based on the same assumption for the other contra methods as int 4
B112: =Parameters!C65 -> 0.101 | C112: implant | D112: =B112/SUM($B$111:$B$112) -> 0.1884328358 | E112: =1-(C$103-1)*$F$132*D112 -> 0.9956624696 | F112: =1-(D$103-1)*$F$132*D112 -> 0.9956624696
B121: Intervention 4: Condom availability programmes at schools
B123: Source: | C123: Blake
B124: Description: | C124: Comparison of schools where condoms were available with those that aren't
B125: Impact: | C125: Increased condom usage
B126: Notes:
B127: Key result for modelling: | C127: Odds ratio of condom usage 2.1, of other contraception 0.5
B129: % without intervention using condoms at last sex | C129: 0.52 | D129: From Blake | F129: An increase in condom use of 16% results in a fall in pill use of 11%
B130: % with intervention | C130: 0.68 | D130: From Blake | F130: Therefore, every percentage point in increase in condom use results in a fall in other contraceptive use of
B131: Default RR of condom use | C131: =C130/C129 -> 1.307692308
B132: Implemented RR of condom usage | C132: =Dashboard!M62/Dashboard!P62 -> 1.307692308 | D132: Calculation | F132: =11/16 -> 0.6875
C134: Scenario 1 | D134: Scenario 2
B136: % of 15-17 years olds taking up intervention | C136: =Dashboard!Q60 -> 0.5 | D136: =Dashboard!Q64 -> 0.5
B137: Adjusted relative risk | C137: =C136*C132+(1-C136) -> 1.153846154 | D137: =D136*C132+(1-D136) -> 1.153846154
B139: % without intervention using other contra at least sex | C139: 0.21 | D139: From Blake
B140: % with intervention | C140: 0.1 | D140: From Blake
B141: RR of other contra usage | C141: =C140/C139 -> 0.4761904762
C144: Scenario 1 | D144: Scenario 2
B145: Adjusted relative risk for take up | C145: =C136*C141+(1-C136) -> 0.7380952381 | D145: =D136*C141+(1-D136) -> 0.7380952381
B147: Baseline contraceptive use | C147: Female | D147: Male
B148: Pill | C148: =Parameters!C63 -> 0.435 | D148: =Parameters!D63 -> 0.305
B149: Condom | C149: =Parameters!C64 -> 0.3135331765 | D149: =Parameters!D64 -> 0.5593830006
B150: Implant | C150: =Parameters!C65 -> 0.101 | D150: =Parameters!D65 -> 0.052
B151: IUD | C151: =Parameters!C66 -> 0.018 | D151: =Parameters!D66 -> 0.0075
B152: No method | C152: =Parameters!C67 -> 0.1324668235 | D152: =Parameters!D67 -> 0.07611699939
C154: Scenario 1 | E154: Scenario 2
C155: Female | D155: Male | E155: Female | F155: Male
B156: Pill | C156: =C148-((C157-C149)*(C148/(C148+C150+C151))*$F$132) -> 0.4089611176 | D156: =D148-((D157-D149)*(D148/(D148+D150+D151))*$F$132) -> 0.255492509 | E156: =C148-((E157-C149)*(C148/(C148+C150+C151))*$F$132) -> 0.4089611176 | F156: =D148-((F157-D149)*(D148/(D148+D150+D151))*$F$132) -> 0.255492509
B157: Condom | C157: =C149*$C$137 -> 0.3617690498 | D157: =D149*$C$137 -> 0.6454419238 | E157: =C149*$D$137 -> 0.3617690498 | F157: =D149*$D$137 -> 0.6454419238
B158: Implant | C158: =C150-((C157-C149)*(C150/(C148+C150+C151))*$F$132) -> 0.09495419052 | D158: =D150-((D157-D149)*(D150/(D148+D150+D151))*$F$132) -> 0.04355937859 | E158: =C150-((E157-C149)*(C150/(C148+C150+C151))*$F$132) -> 0.09495419052 | F158: =D150-((F157-D149)*(D150/(D148+D150+D151))*$F$132) -> 0.04355937859
B159: IUD | C159: =C151-((C157-C149)*(C151/(C148+C150+C151))*$F$132) -> 0.016922529 | D159: =D151-((D157-D149)*(D151/(D148+D150+D151))*$F$132) -> 0.006282602681 | E159: =C151-((E157-C149)*(C151/(C148+C150+C151))*$F$132) -> 0.016922529 | F159: =D151-((F157-D149)*(D151/(D148+D150+D151))*$F$132) -> 0.006282602681
B160: No method | C160: =1-SUM(C156:C159) -> 0.1173931131 | D160: =1-SUM(D156:D159) -> 0.0492235859 | E160: =1-SUM(E156:E159) -> 0.1173931131 | F160: =1-SUM(F156:F159) -> 0.0492235859
B162: Relative to average | C162: Female | D162: Male
B163: Pill | C163: =C148/($C148*$C$3+$D148*$C$4) -> 1.181415518 | D163: 0.8283488116
B164: Condom | C164: 0.7128059761 | D164: 1.271736376
B165: Implant | C165: 1.332059589 | D165: 0.685812858
B167: Intervention 5: SXT electronic partner notification tool
B169: Source: | C169: Oliveira
B170: Description: | C170: Retrospective analysis of PN initatied via SXT vs. national data, for chlamydia, gonorrhoea and syphilis
B171: Impact: | C171: Increased no. contacts tested per index case
B172: Notes: | C172: N.B. Data on HIV was also provided separately by the author
B173: Key result for modelling: | C173: Tested partners per index patient: chlamydia increased from 0.52 to 0.57; gonorrhoea 0.41 to 0.72; syphilis 0.6 to 0.9; HIV 0.69 with intervention
B176: Partners tested per index patient | C176: Baseline | D176: Effect | E176: RR | F176: RR adjusted to uptake (Scenario 1) | G176: RR adjusted to uptake (Scenario 2) | H176: Baseline cases | I176: Baseline cases(%) | J176: Relative to (baseline) average
B177: Chlamydia | C177: =Parameters!C496 -> 0.4259348752 | D177: =E177*C177 -> 0.4668901516 | E177: =0.57/0.52 -> 1.096153846 | F177: =$C$188*E177+(1-$C$188) -> 1.048076923 | G177: =$D$188*E177+(1-$D$188) -> 1.048076923 | H177: ='Parameter calculations'!G384 -> 130365 | I177: =H177/SUM(H$177:H$180) -> 0.6816078552 | J177: =C177/C$181 -> 1.041716215
B178: Gonorrhoea | C178: =Parameters!C500 -> 0.3471327754 | D178: =E178*C178 -> 0.6095990203 | E178: =0.72/0.41 -> 1.756097561 | F178: =$C$188*E178+(1-$C$188) -> 1.37804878 | G178: =$D$188*E178+(1-$D$188) -> 1.37804878 | H178: ='Parameter calculations'!L384 -> 51862 | I178: =H178/SUM(H$177:H$180) -> 0.2711582602 | J178: =C178/C$181 -> 0.8489885705
B179: Syphilis | C179: =Parameters!C508 -> 0.4777792787 | D179: =E179*C179 -> 0.716668918 | E179: =0.9/0.6 -> 1.5 | F179: =$C$188*E179+(1-$C$188) -> 1.25 | G179: =$D$188*E179+(1-$D$188) -> 1.25 | H179: ='Parameter calculations'!W384 -> 6709 | I179: =H179/SUM(H$177:H$180) -> 0.03507772102 | J179: =C179/C$181 -> 1.16851296
B180: HIV | C180: =Parameters!C512 -> 0.6309677419 | D180: =E180*C180 -> 0.7022060354 | E180: =0.69/0.62 -> 1.112903226 | F180: =$C$188*E180+(1-$C$188) -> 1.056451613 | G180: =$D$188*E180+(1-$D$188) -> 1.056451613 | H180: ='Parameter calculations'!Q384 -> 2325 | I180: =H180/SUM(H$177:H$180) -> 0.01215616357 | J180: =C180/C$181 -> 1.543168606
B181: Weighted average | C181: =SUMPRODUCT(C177:C180,I177:I180) -> 0.4088780315 | D181: =SUMPRODUCT(C177:C180,E177:E180,I177:I180) -> 0.5172090484 | J181: =C181/C$181 -> 1
B182: All bar HIV numbers from Oliveira. HIV baseline from PHE STI data tables, with intervention directly from Anatole Menon-Johansson from SXT
C186: Scenario 1 | D186: Scenario 2 | H186: Adjusted RR relative to average | I186: Scenario 1 | J186: Scenario 2
B187: No. index patients taking up intervention | C187: =Dashboard!Q70*C192 -> 55096.16169 | D187: =Dashboard!Q74*D192 -> 55096.16169 | H187: Chlamydia | I187: =F177/C$190 -> 0.9254758833 | J187: 0.9254758833
B188: % of index patients taking up intervention | C188: =Dashboard!Q70 -> 0.5 | D188: =Dashboard!Q74 -> 0.5 | H188: Gonorrhoea | I188: 1.216848577 | J188: 1.216848577
B189: Weighted average RR | C189: =Dashboard!M72/Dashboard!P72 -> 1.264947022 | D189: =Dashboard!M76/Dashboard!P76 -> 1.264947022 | H189: Syphilis | I189: 1.103778576 | J189: 1.103778576
B190: Weighted average RR adjusted to population | C190: =$C$188*C189+(1-$C$188) -> 1.132473511 | D190: =$D$188*D189+(1-$D$188) -> 1.132473511 | H190: HIV | I190: 0.9328709259 | J190: 0.9328709259
B192: Total no. index patients | C192: =SUM(C197:AF197,C200:AF200,C203:AF203,C206:AF206,C209:AF209) -> 110192.3234 | D192: =SUM(C214:AF214,C217:AF217,C220:AF220,C223:AF223,C226:AF226) -> 110192.3234
B194: Scenario 1 | C194: 15 F | D194: 15 M | E194: 15 MSM | F194: 16 F | G194: 16 M | H194: 16 MSM | I194: 17 F | J194: 17 M | K194: 17 MSM | L194: 18 F | M194: 18 M | N194: 18 MSM | O194: 19 F | P194: 19 M | Q194: 19 MSM | R194: 20 F | S194: 20 M | T194: 20 MSM | U194: 21 F | V194: 21 M | W194: 21 MSM | X194: 22 F | Y194: 22 M | Z194: 22 MSM | AA194: 23 F | AB194: 23 M | AC194: 23 MSM | AD194: 24 F | AE194: 24 M | AF194: 24 MSM
B195: CT prevalence | C195: ='Model per intervention'!E$3*Parameters!C195 -> 2950.066811 | D195: ='Model per intervention'!F$3*Parameters!D195 -> 149.9826587 | E195: ='Model per intervention'!G$3*Parameters!E195 -> 0 | F195: ='Model per intervention'!H$3*Parameters!F195 -> 4768.298267 | G195: ='Model per intervention'!I$3*Parameters!G195 -> 267.1564212 | H195: ='Model per intervention'!J$3*Parameters!H195 -> 0 | I195: ='Model per intervention'!K$3*Parameters!I195 -> 6683.365905 | J195: ='Model per intervention'!L$3*Parameters!J195 -> 313.6894651 | K195: ='Model per intervention'!M$3*Parameters!K195 -> 0 | L195: ='Model per intervention'!N$3*Parameters!L195 -> 17717.20277 | M195: ='Model per intervention'!O$3*Parameters!M195 -> 2071.616446 | N195: ='Model per intervention'!P$3*Parameters!N195 -> 0 | O195: ='Model per intervention'!Q$3*Parameters!O195 -> 18060.15426 | P195: ='Model per intervention'!R$3*Parameters!P195 -> 2291.297121 | Q195: ='Model per intervention'!S$3*Parameters!Q195 -> 0 | R195: ='Model per intervention'!T$3*Parameters!R195 -> 11806.80555 | S195: ='Model per intervention'!U$3*Parameters!S195 -> 16202.94169 | T195: ='Model per intervention'!V$3*Parameters!T195 -> 0 | U195: ='Model per intervention'!W$3*Parameters!U195 -> 12331.75345 | V195: ='Model per intervention'!X$3*Parameters!V195 -> 17972.42694 | W195: ='Model per intervention'!Y$3*Parameters!W195 -> 0 | X195: ='Model per intervention'!Z$3*Parameters!X195 -> 11825.07036 | Y195: ='Model per intervention'!AA$3*Parameters!Y195 -> 17862.62755 | Z195: ='Model per intervention'!AB$3*Parameters!Z195 -> 0 | AA195: ='Model per intervention'!AC$3*Parameters!AA195 -> 12710.56133 | AB195: ='Model per intervention'!AD$3*Parameters!AB195 -> 18810.07291 | AC195: ='Model per intervention'!AE$3*Parameters!AC195 -> 0 | AD195: ='Model per intervention'!AF$3*Parameters!AD195 -> 13476.24295 | AE195: ='Model per intervention'!AG$3*Parameters!AE195 -> 19045.49809 | AF195: ='Model per intervention'!AH$3*Parameters!AF195 -> 0
B196: CT % treated | C196: =Parameters!C293 -> 0.3411007953 | D196: =Parameters!D293 -> 0.4762008152 | E196: =Parameters!E293 -> 0 | F196: =Parameters!F293 -> 0.3411007953 | G196: =Parameters!G293 -> 0.4762008152 | H196: =Parameters!H293 -> 0 | I196: =Parameters!I293 -> 0.3411007953 | J196: =Parameters!J293 -> 0.4762008152 | K196: =Parameters!K293 -> 0 | L196: =Parameters!L293 -> 0.3411007953 | M196: =Parameters!M293 -> 0.4762008152 | N196: =Parameters!N293 -> 0 | O196: =Parameters!O293 -> 0.3411007953 | P196: =Parameters!P293 -> 0.4762008152 | Q196: =Parameters!Q293 -> 0 | R196: =Parameters!R293 -> 0.3411007953 | S196: =Parameters!S293 -> 0.4762008152 | T196: =Parameters!T293 -> 0 | U196: =Parameters!U293 -> 0.3411007953 | V196: =Parameters!V293 -> 0.4762008152 | W196: =Parameters!W293 -> 0 | X196: =Parameters!X293 -> 0.3411007953 | Y196: =Parameters!Y293 -> 0.4762008152 | Z196: =Parameters!Z293 -> 0 | AA196: =Parameters!AA293 -> 0.3411007953 | AB196: =Parameters!AB293 -> 0.4762008152 | AC196: =Parameters!AC293 -> 0 | AD196: =Parameters!AD293 -> 0.3411007953 | AE196: =Parameters!AE293 -> 0.4762008152 | AF196: =Parameters!AF293 -> 0
B197: CT no. treated | C197: =C195*C196 -> 1006.270135 | D197: 71.42186433 | E197: 0 | F197: 1626.470331 | G197: 127.2201056 | H197: 0 | I197: 2279.701425 | J197: 149.379179 | K197: 0 | L197: 6043.351955 | M197: 986.5054406 | N197: 0 | O197: 6160.332981 | P197: 1091.117557 | Q197: 0 | R197: 4027.310764 | S197: 7715.85404 | T197: 0 | U197: 4206.37091 | V197: 8558.484363 | W197: 0 | X197: 4033.540905 | Y197: 8506.197799 | Z197: 0 | AA197: 4335.58258 | AB197: 8957.372053 | AC197: 0 | AD197: 4596.757188 | AE197: 9069.481716 | AF197: 0
B198: NG prevalence | C198: ='Model per intervention'!E$3*Parameters!C201 -> 81.33649012 | D198: ='Model per intervention'!F$3*Parameters!D201 -> 86.59199101 | E198: ='Model per intervention'!G$3*Parameters!E201 -> 0 | F198: ='Model per intervention'!H$3*Parameters!F201 -> 131.4670717 | G198: ='Model per intervention'!I$3*Parameters!G201 -> 154.2418746 | H198: ='Model per intervention'!J$3*Parameters!H201 -> 0 | I198: ='Model per intervention'!K$3*Parameters!I201 -> 184.2675301 | J198: ='Model per intervention'!L$3*Parameters!J201 -> 181.1075733 | K198: ='Model per intervention'!M$3*Parameters!K201 -> 0 | L198: ='Model per intervention'!N$3*Parameters!L201 -> 239.0444745 | M198: ='Model per intervention'!O$3*Parameters!M201 -> 239.2081782 | N198: ='Model per intervention'!P$3*Parameters!N201 -> 0 | O198: ='Model per intervention'!Q$3*Parameters!O201 -> 243.671653 | P198: ='Model per intervention'!R$3*Parameters!P201 -> 264.5745602 | Q198: ='Model per intervention'!S$3*Parameters!Q201 -> 0 | R198: ='Model per intervention'!T$3*Parameters!R201 -> 554.6002413 | S198: ='Model per intervention'!U$3*Parameters!S201 -> 275.1386675 | T198: ='Model per intervention'!V$3*Parameters!T201 -> 0 | U198: ='Model per intervention'!W$3*Parameters!U201 -> 579.2585819 | V198: ='Model per intervention'!X$3*Parameters!V201 -> 305.185916 | W198: ='Model per intervention'!Y$3*Parameters!W201 -> 0 | X198: ='Model per intervention'!Z$3*Parameters!X201 -> 555.458193 | Y198: ='Model per intervention'!AA$3*Parameters!Y201 -> 303.3214361 | Z198: ='Model per intervention'!AB$3*Parameters!Z201 -> 0 | AA198: ='Model per intervention'!AC$3*Parameters!AA201 -> 597.0522977 | AB198: ='Model per intervention'!AD$3*Parameters!AB201 -> 319.4098019 | AC198: ='Model per intervention'!AE$3*Parameters!AC201 -> 0 | AD198: ='Model per intervention'!AF$3*Parameters!AD201 -> 633.018606 | AE198: ='Model per intervention'!AG$3*Parameters!AE201 -> 323.4075063 | AF198: ='Model per intervention'!AH$3*Parameters!AF201 -> 0
B199: NG % treated | C199: =Parameters!C294 -> 0.4890176287 | D199: =Parameters!D294 -> 0.6633400489 | E199: =Parameters!E294 -> 0 | F199: =Parameters!F294 -> 0.4890176287 | G199: =Parameters!G294 -> 0.6633400489 | H199: =Parameters!H294 -> 0 | I199: =Parameters!I294 -> 0.4890176287 | J199: =Parameters!J294 -> 0.6633400489 | K199: =Parameters!K294 -> 0 | L199: =Parameters!L294 -> 0.4890176287 | M199: =Parameters!M294 -> 0.6633400489 | N199: =Parameters!N294 -> 0 | O199: =Parameters!O294 -> 0.4890176287 | P199: =Parameters!P294 -> 0.6633400489 | Q199: =Parameters!Q294 -> 0 | R199: =Parameters!R294 -> 0.4890176287 | S199: =Parameters!S294 -> 0.6633400489 | T199: =Parameters!T294 -> 0 | U199: =Parameters!U294 -> 0.4890176287 | V199: =Parameters!V294 -> 0.6633400489 | W199: =Parameters!W294 -> 0 | X199: =Parameters!X294 -> 0.4890176287 | Y199: =Parameters!Y294 -> 0.6633400489 | Z199: =Parameters!Z294 -> 0 | AA199: =Parameters!AA294 -> 0.4890176287 | AB199: =Parameters!AB294 -> 0.6633400489 | AC199: =Parameters!AC294 -> 0 | AD199: =Parameters!AD294 -> 0.4890176287 | AE199: =Parameters!AE294 -> 0.6633400489 | AF199: =Parameters!AF294 -> 0
B200: NG no. treated | C200: =C198*C199 -> 39.77497752 | D200: 57.43993555 | E200: 0 | F200: 64.28971564 | G200: 102.3148126 | H200: 0 | I200: 90.11007061 | J200: 120.1359065 | K200: 0 | L200: 116.8969621 | M200: 158.6763646 | N200: 0 | O200: 119.1597339 | P200: 175.5029017 | Q200: 0 | R200: 271.2092949 | S200: 182.5104971 | T200: 0 | U200: 283.2676581 | V200: 202.4420405 | W200: 0 | X200: 271.6288484 | Y200: 201.2052562 | Z200: 0 | AA200: 291.9690988 | AB200: 211.8773136 | AC200: 0 | AD200: 309.5572576 | AE200: 214.529151 | AF200: 0
B201: Warts prevalence | C201: ='Model per intervention'!E$3*Parameters!C207 -> 81.33649012 | D201: ='Model per intervention'!F$3*Parameters!D207 -> 173.183982 | E201: ='Model per intervention'!G$3*Parameters!E207 -> 0 | F201: ='Model per intervention'!H$3*Parameters!F207 -> 131.4670717 | G201: ='Model per intervention'!I$3*Parameters!G207 -> 308.4837492 | H201: ='Model per intervention'!J$3*Parameters!H207 -> 0 | I201: ='Model per intervention'!K$3*Parameters!I207 -> 184.2675301 | J201: ='Model per intervention'!L$3*Parameters!J207 -> 362.2151466 | K201: ='Model per intervention'!M$3*Parameters!K207 -> 0 | L201: ='Model per intervention'!N$3*Parameters!L207 -> 239.0444745 | M201: ='Model per intervention'!O$3*Parameters!M207 -> 478.4163564 | N201: ='Model per intervention'!P$3*Parameters!N207 -> 0 | O201: ='Model per intervention'!Q$3*Parameters!O207 -> 243.671653 | P201: ='Model per intervention'!R$3*Parameters!P207 -> 529.1491203 | Q201: ='Model per intervention'!S$3*Parameters!Q207 -> 0 | R201: ='Model per intervention'!T$3*Parameters!R207 -> 3327.601448 | S201: ='Model per intervention'!U$3*Parameters!S207 -> 1100.55467 | T201: ='Model per intervention'!V$3*Parameters!T207 -> 0 | U201: ='Model per intervention'!W$3*Parameters!U207 -> 3475.551492 | V201: ='Model per intervention'!X$3*Parameters!V207 -> 1220.743664 | W201: ='Model per intervention'!Y$3*Parameters!W207 -> 0 | X201: ='Model per intervention'!Z$3*Parameters!X207 -> 3332.749158 | Y201: ='Model per intervention'!AA$3*Parameters!Y207 -> 1213.285744 | Z201: ='Model per intervention'!AB$3*Parameters!Z207 -> 0 | AA201: ='Model per intervention'!AC$3*Parameters!AA207 -> 3582.313786 | AB201: ='Model per intervention'!AD$3*Parameters!AB207 -> 1277.639208 | AC201: ='Model per intervention'!AE$3*Parameters!AC207 -> 0 | AD201: ='Model per intervention'!AF$3*Parameters!AD207 -> 3798.111636 | AE201: ='Model per intervention'!AG$3*Parameters!AE207 -> 1293.630025 | AF201: ='Model per intervention'!AH$3*Parameters!AF207 -> 0
B202: Warts % treated | C202: =Parameters!C295 -> 0.6063318148 | D202: =Parameters!D295 -> 0.9068051519 | E202: =Parameters!E295 -> 0 | F202: =Parameters!F295 -> 0.6063318148 | G202: =Parameters!G295 -> 0.9068051519 | H202: =Parameters!H295 -> 0 | I202: =Parameters!I295 -> 0.6063318148 | J202: =Parameters!J295 -> 0.9068051519 | K202: =Parameters!K295 -> 0 | L202: =Parameters!L295 -> 0.6063318148 | M202: =Parameters!M295 -> 0.9068051519 | N202: =Parameters!N295 -> 0 | O202: =Parameters!O295 -> 0.6063318148 | P202: =Parameters!P295 -> 0.9068051519 | Q202: =Parameters!Q295 -> 0 | R202: =Parameters!R295 -> 0.6063318148 | S202: =Parameters!S295 -> 0.9068051519 | T202: =Parameters!T295 -> 0 | U202: =Parameters!U295 -> 0.6063318148 | V202: =Parameters!V295 -> 0.9068051519 | W202: =Parameters!W295 -> 0 | X202: =Parameters!X295 -> 0.6063318148 | Y202: =Parameters!Y295 -> 0.9068051519 | Z202: =Parameters!Z295 -> 0 | AA202: =Parameters!AA295 -> 0.6063318148 | AB202: =Parameters!AB295 -> 0.9068051519 | AC202: =Parameters!AC295 -> 0 | AD202: =Parameters!AD295 -> 0.6063318148 | AE202: =Parameters!AE295 -> 0.9068051519 | AF202: =Parameters!AF295 -> 0
B203: Warts no. treated | C203: =C201*C202 -> 49.31690166 | D203: 157.0441271 | E203: 0 | F203: 79.71266815 | G203: 279.734653 | H203: 0 | I203: 111.7272659 | J203: 328.458561 | K203: 0 | L203: 144.9402701 | M203: 433.8304167 | N203: 0 | O203: 147.7458756 | P203: 479.8351484 | Q203: 0 | R203: 2017.630625 | S203: 997.9886446 | T203: 0 | U203: 2107.337443 | V203: 1106.976644 | W203: 0 | X203: 2020.751845 | Y203: 1100.213764 | Z203: 0 | AA203: 2172.070819 | AB203: 1158.569816 | AC203: 0 | AD203: 2302.915921 | AE203: 1173.070372 | AF203: 0
B204: Syph prevalence | C204: ='Model per intervention'!E$3*Parameters!C213 -> 89.47013913 | D204: ='Model per intervention'!F$3*Parameters!D213 -> 95.25119011 | E204: ='Model per intervention'!G$3*Parameters!E213 -> 0 | F204: ='Model per intervention'!H$3*Parameters!F213 -> 144.6137788 | G204: ='Model per intervention'!I$3*Parameters!G213 -> 169.666062 | H204: ='Model per intervention'!J$3*Parameters!H213 -> 0 | I204: ='Model per intervention'!K$3*Parameters!I213 -> 202.6942831 | J204: ='Model per intervention'!L$3*Parameters!J213 -> 199.2183306 | K204: ='Model per intervention'!M$3*Parameters!K213 -> 0 | L204: ='Model per intervention'!N$3*Parameters!L213 -> 262.948922 | M204: ='Model per intervention'!O$3*Parameters!M213 -> 263.128996 | N204: ='Model per intervention'!P$3*Parameters!N213 -> 0 | O204: ='Model per intervention'!Q$3*Parameters!O213 -> 268.0388183 | P204: ='Model per intervention'!R$3*Parameters!P213 -> 291.0320162 | Q204: ='Model per intervention'!S$3*Parameters!Q213 -> 0 | R204: ='Model per intervention'!T$3*Parameters!R213 -> 305.0301327 | S204: ='Model per intervention'!U$3*Parameters!S213 -> 302.6525342 | T204: ='Model per intervention'!V$3*Parameters!T213 -> 0 | U204: ='Model per intervention'!W$3*Parameters!U213 -> 318.5922201 | V204: ='Model per intervention'!X$3*Parameters!V213 -> 335.7045076 | W204: ='Model per intervention'!Y$3*Parameters!W213 -> 0 | X204: ='Model per intervention'!Z$3*Parameters!X213 -> 305.5020061 | Y204: ='Model per intervention'!AA$3*Parameters!Y213 -> 333.6535797 | Z204: ='Model per intervention'!AB$3*Parameters!Z213 -> 0 | AA204: ='Model per intervention'!AC$3*Parameters!AA213 -> 328.3787638 | AB204: ='Model per intervention'!AD$3*Parameters!AB213 -> 351.3507821 | AC204: ='Model per intervention'!AE$3*Parameters!AC213 -> 0 | AD204: ='Model per intervention'!AF$3*Parameters!AD213 -> 348.1602333 | AE204: ='Model per intervention'!AG$3*Parameters!AE213 -> 355.7482569 | AF204: ='Model per intervention'!AH$3*Parameters!AF213 -> 0
B205: Syph % treated | C205: =Parameters!C296 -> 0.766 | D205: =Parameters!D296 -> 0.766 | E205: =Parameters!E296 -> 0 | F205: =Parameters!F296 -> 0.766 | G205: =Parameters!G296 -> 0.766 | H205: =Parameters!H296 -> 0 | I205: =Parameters!I296 -> 0.766 | J205: =Parameters!J296 -> 0.766 | K205: =Parameters!K296 -> 0 | L205: =Parameters!L296 -> 0.766 | M205: =Parameters!M296 -> 0.766 | N205: =Parameters!N296 -> 0 | O205: =Parameters!O296 -> 0.766 | P205: =Parameters!P296 -> 0.766 | Q205: =Parameters!Q296 -> 0 | R205: =Parameters!R296 -> 0.766 | S205: =Parameters!S296 -> 0.766 | T205: =Parameters!T296 -> 0 | U205: =Parameters!U296 -> 0.766 | V205: =Parameters!V296 -> 0.766 | W205: =Parameters!W296 -> 0 | X205: =Parameters!X296 -> 0.766 | Y205: =Parameters!Y296 -> 0.766 | Z205: =Parameters!Z296 -> 0 | AA205: =Parameters!AA296 -> 0.766 | AB205: =Parameters!AB296 -> 0.766 | AC205: =Parameters!AC296 -> 0 | AD205: =Parameters!AD296 -> 0.766 | AE205: =Parameters!AE296 -> 0.766 | AF205: =Parameters!AF296 -> 0
B206: Syph no. treated | C206: =C204*C205 -> 68.53412657 | D206: 72.96241163 | E206: 0 | F206: 110.7741546 | G206: 129.9642035 | H206: 0 | I206: 155.2638209 | J206: 152.6012413 | K206: 0 | L206: 201.4188742 | M206: 201.5568109 | N206: 0 | O206: 205.3177348 | P206: 222.9305244 | Q206: 0 | R206: 233.6530817 | S206: 231.8318412 | T206: 0 | U206: 244.0416406 | V206: 257.1496528 | W206: 0 | X206: 234.0145367 | Y206: 255.578642 | Z206: 0 | AA206: 251.538133 | AB206: 269.1346991 | AC206: 0 | AD206: 266.6907387 | AE206: 272.5031648 | AF206: 0
B207: HIV new cases | C207: ='Model per intervention'!E58 -> 21.20406304 | D207: ='Model per intervention'!F58 -> 2.553955612 | E207: ='Model per intervention'!G58 -> 0 | F207: ='Model per intervention'!H58 -> 34.27288381 | G207: ='Model per intervention'!I58 -> 4.549230207 | H207: ='Model per intervention'!J58 -> 0 | I207: ='Model per intervention'!K58 -> 80.08460698 | J207: ='Model per intervention'!L58 -> 4.700860404 | K207: ='Model per intervention'!M58 -> 0 | L207: ='Model per intervention'!N58 -> 96.31700233 | M207: ='Model per intervention'!O58 -> 10.42448121 | N207: ='Model per intervention'!P58 -> 0 | O207: ='Model per intervention'!Q58 -> 99.98549485 | P207: ='Model per intervention'!R58 -> 9.852492066 | Q207: ='Model per intervention'!S58 -> 0 | R207: ='Model per intervention'!T58 -> 136.307331 | S207: ='Model per intervention'!U58 -> 13.12505765 | T207: ='Model per intervention'!V58 -> 0 | U207: ='Model per intervention'!W58 -> 117.186232 | V207: ='Model per intervention'!X58 -> 11.13289245 | W207: ='Model per intervention'!Y58 -> 0 | X207: ='Model per intervention'!Z58 -> 125.2001432 | Y207: ='Model per intervention'!AA58 -> 12.01563029 | Z207: ='Model per intervention'!AB58 -> 0 | AA207: ='Model per intervention'!AC58 -> 123.8535697 | AB207: ='Model per intervention'!AD58 -> 14.96828625 | AC207: ='Model per intervention'!AE58 -> 0 | AD207: ='Model per intervention'!AF58 -> 125.001263 | AE207: ='Model per intervention'!AG58 -> 16.0961915 | AF207: ='Model per intervention'!AH58 -> 0
B208: HIV % treated | C208: =Parameters!C297 -> 0.71 | D208: =Parameters!D297 -> 0.71 | E208: =Parameters!E297 -> 0 | F208: =Parameters!F297 -> 0.71 | G208: =Parameters!G297 -> 0.71 | H208: =Parameters!H297 -> 0 | I208: =Parameters!I297 -> 0.71 | J208: =Parameters!J297 -> 0.71 | K208: =Parameters!K297 -> 0 | L208: =Parameters!L297 -> 0.71 | M208: =Parameters!M297 -> 0.71 | N208: =Parameters!N297 -> 0 | O208: =Parameters!O297 -> 0.71 | P208: =Parameters!P297 -> 0.71 | Q208: =Parameters!Q297 -> 0 | R208: =Parameters!R297 -> 0.71 | S208: =Parameters!S297 -> 0.71 | T208: =Parameters!T297 -> 0 | U208: =Parameters!U297 -> 0.71 | V208: =Parameters!V297 -> 0.71 | W208: =Parameters!W297 -> 0 | X208: =Parameters!X297 -> 0.71 | Y208: =Parameters!Y297 -> 0.71 | Z208: =Parameters!Z297 -> 0 | AA208: =Parameters!AA297 -> 0.71 | AB208: =Parameters!AB297 -> 0.71 | AC208: =Parameters!AC297 -> 0 | AD208: =Parameters!AD297 -> 0.71 | AE208: =Parameters!AE297 -> 0.71 | AF208: =Parameters!AF297 -> 0
B209: HIV no. treated | C209: =C207*C208 -> 15.05488476 | D209: 1.813308485 | E209: 0 | F209: 24.3337475 | G209: 3.229953447 | H209: 0 | I209: 56.86007095 | J209: 3.337610887 | K209: 0 | L209: 68.38507165 | M209: 7.401381659 | N209: 0 | O209: 70.98970134 | P209: 6.995269367 | Q209: 0 | R209: 96.778205 | S209: 9.318790932 | T209: 0 | U209: 83.20222471 | V209: 7.904353642 | W209: 0 | X209: 88.89210169 | Y209: 8.531097509 | Z209: 0 | AA209: 87.93603452 | AB209: 10.62748324 | AC209: 0 | AD209: 88.75089676 | AE209: 11.42829596 | AF209: 0
B211: Scenario 2 | C211: 15 F | D211: 15 M | E211: 15 MSM | F211: 16 F | G211: 16 M | H211: 16 MSM | I211: 17 F | J211: 17 M | K211: 17 MSM | L211: 18 F | M211: 18 M | N211: 18 MSM | O211: 19 F | P211: 19 M | Q211: 19 MSM | R211: 20 F | S211: 20 M | T211: 20 MSM | U211: 21 F | V211: 21 M | W211: 21 MSM | X211: 22 F | Y211: 22 M | Z211: 22 MSM | AA211: 23 F | AB211: 23 M | AC211: 23 MSM | AD211: 24 F | AE211: 24 M | AF211: 24 MSM
B212: CT new cases | C212: ='Model per intervention'!E$3*Parameters!C195 -> 2950.066811 | D212: ='Model per intervention'!F$3*Parameters!D195 -> 149.9826587 | E212: ='Model per intervention'!G$3*Parameters!E195 -> 0 | F212: ='Model per intervention'!H$3*Parameters!F195 -> 4768.298267 | G212: ='Model per intervention'!I$3*Parameters!G195 -> 267.1564212 | H212: ='Model per intervention'!J$3*Parameters!H195 -> 0 | I212: ='Model per intervention'!K$3*Parameters!I195 -> 6683.365905 | J212: ='Model per intervention'!L$3*Parameters!J195 -> 313.6894651 | K212: ='Model per intervention'!M$3*Parameters!K195 -> 0 | L212: ='Model per intervention'!N$3*Parameters!L195 -> 17717.20277 | M212: ='Model per intervention'!O$3*Parameters!M195 -> 2071.616446 | N212: ='Model per intervention'!P$3*Parameters!N195 -> 0 | O212: ='Model per intervention'!Q$3*Parameters!O195 -> 18060.15426 | P212: ='Model per intervention'!R$3*Parameters!P195 -> 2291.297121 | Q212: ='Model per intervention'!S$3*Parameters!Q195 -> 0 | R212: ='Model per intervention'!T$3*Parameters!R195 -> 11806.80555 | S212: ='Model per intervention'!U$3*Parameters!S195 -> 16202.94169 | T212: ='Model per intervention'!V$3*Parameters!T195 -> 0 | U212: ='Model per intervention'!W$3*Parameters!U195 -> 12331.75345 | V212: ='Model per intervention'!X$3*Parameters!V195 -> 17972.42694 | W212: ='Model per intervention'!Y$3*Parameters!W195 -> 0 | X212: ='Model per intervention'!Z$3*Parameters!X195 -> 11825.07036 | Y212: ='Model per intervention'!AA$3*Parameters!Y195 -> 17862.62755 | Z212: ='Model per intervention'!AB$3*Parameters!Z195 -> 0 | AA212: ='Model per intervention'!AC$3*Parameters!AA195 -> 12710.56133 | AB212: ='Model per intervention'!AD$3*Parameters!AB195 -> 18810.07291 | AC212: ='Model per intervention'!AE$3*Parameters!AC195 -> 0 | AD212: ='Model per intervention'!AF$3*Parameters!AD195 -> 13476.24295 | AE212: ='Model per intervention'!AG$3*Parameters!AE195 -> 19045.49809 | AF212: ='Model per intervention'!AH$3*Parameters!AF195 -> 0
B213: CT % treated | C213: =Parameters!C365 -> 0.3411007953 | D213: =Parameters!D365 -> 0.4762008152 | E213: =Parameters!E365 -> 0 | F213: =Parameters!F365 -> 0.3411007953 | G213: =Parameters!G365 -> 0.4762008152 | H213: =Parameters!H365 -> 0 | I213: =Parameters!I365 -> 0.3411007953 | J213: =Parameters!J365 -> 0.4762008152 | K213: =Parameters!K365 -> 0 | L213: =Parameters!L365 -> 0.3411007953 | M213: =Parameters!M365 -> 0.4762008152 | N213: =Parameters!N365 -> 0 | O213: =Parameters!O365 -> 0.3411007953 | P213: =Parameters!P365 -> 0.4762008152 | Q213: =Parameters!Q365 -> 0 | R213: =Parameters!R365 -> 0.3411007953 | S213: =Parameters!S365 -> 0.4762008152 | T213: =Parameters!T365 -> 0 | U213: =Parameters!U365 -> 0.3411007953 | V213: =Parameters!V365 -> 0.4762008152 | W213: =Parameters!W365 -> 0 | X213: =Parameters!X365 -> 0.3411007953 | Y213: =Parameters!Y365 -> 0.4762008152 | Z213: =Parameters!Z365 -> 0 | AA213: =Parameters!AA365 -> 0.3411007953 | AB213: =Parameters!AB365 -> 0.4762008152 | AC213: =Parameters!AC365 -> 0 | AD213: =Parameters!AD365 -> 0.3411007953 | AE213: =Parameters!AE365 -> 0.4762008152 | AF213: =Parameters!AF365 -> 0
B214: CT no. treated | C214: =C212*C213 -> 1006.270135 | D214: =D212*D213 -> 71.42186433 | E214: 0 | F214: 1626.470331 | G214: 127.2201056 | H214: 0 | I214: 2279.701425 | J214: 149.379179 | K214: 0 | L214: 6043.351955 | M214: 986.5054406 | N214: 0 | O214: 6160.332981 | P214: 1091.117557 | Q214: 0 | R214: 4027.310764 | S214: 7715.85404 | T214: 0 | U214: 4206.37091 | V214: 8558.484363 | W214: 0 | X214: 4033.540905 | Y214: 8506.197799 | Z214: 0 | AA214: 4335.58258 | AB214: 8957.372053 | AC214: 0 | AD214: 4596.757188 | AE214: 9069.481716 | AF214: 0
B215: NG new cases | C215: ='Model per intervention'!E$3*Parameters!C201 -> 81.33649012 | D215: ='Model per intervention'!F$3*Parameters!D201 -> 86.59199101 | E215: ='Model per intervention'!G$3*Parameters!E201 -> 0 | F215: ='Model per intervention'!H$3*Parameters!F201 -> 131.4670717 | G215: ='Model per intervention'!I$3*Parameters!G201 -> 154.2418746 | H215: ='Model per intervention'!J$3*Parameters!H201 -> 0 | I215: ='Model per intervention'!K$3*Parameters!I201 -> 184.2675301 | J215: ='Model per intervention'!L$3*Parameters!J201 -> 181.1075733 | K215: ='Model per intervention'!M$3*Parameters!K201 -> 0 | L215: ='Model per intervention'!N$3*Parameters!L201 -> 239.0444745 | M215: ='Model per intervention'!O$3*Parameters!M201 -> 239.2081782 | N215: ='Model per intervention'!P$3*Parameters!N201 -> 0 | O215: ='Model per intervention'!Q$3*Parameters!O201 -> 243.671653 | P215: ='Model per intervention'!R$3*Parameters!P201 -> 264.5745602 | Q215: ='Model per intervention'!S$3*Parameters!Q201 -> 0 | R215: ='Model per intervention'!T$3*Parameters!R201 -> 554.6002413 | S215: ='Model per intervention'!U$3*Parameters!S201 -> 275.1386675 | T215: ='Model per intervention'!V$3*Parameters!T201 -> 0 | U215: ='Model per intervention'!W$3*Parameters!U201 -> 579.2585819 | V215: ='Model per intervention'!X$3*Parameters!V201 -> 305.185916 | W215: ='Model per intervention'!Y$3*Parameters!W201 -> 0 | X215: ='Model per intervention'!Z$3*Parameters!X201 -> 555.458193 | Y215: ='Model per intervention'!AA$3*Parameters!Y201 -> 303.3214361 | Z215: ='Model per intervention'!AB$3*Parameters!Z201 -> 0 | AA215: ='Model per intervention'!AC$3*Parameters!AA201 -> 597.0522977 | AB215: ='Model per intervention'!AD$3*Parameters!AB201 -> 319.4098019 | AC215: ='Model per intervention'!AE$3*Parameters!AC201 -> 0 | AD215: ='Model per intervention'!AF$3*Parameters!AD201 -> 633.018606 | AE215: ='Model per intervention'!AG$3*Parameters!AE201 -> 323.4075063 | AF215: ='Model per intervention'!AH$3*Parameters!AF201 -> 0
B216: NG % treated | C216: =Parameters!C366 -> 0.4890176287 | D216: =Parameters!D366 -> 0.6633400489 | E216: =Parameters!E366 -> 0 | F216: =Parameters!F366 -> 0.4890176287 | G216: =Parameters!G366 -> 0.6633400489 | H216: =Parameters!H366 -> 0 | I216: =Parameters!I366 -> 0.4890176287 | J216: =Parameters!J366 -> 0.6633400489 | K216: =Parameters!K366 -> 0 | L216: =Parameters!L366 -> 0.4890176287 | M216: =Parameters!M366 -> 0.6633400489 | N216: =Parameters!N366 -> 0 | O216: =Parameters!O366 -> 0.4890176287 | P216: =Parameters!P366 -> 0.6633400489 | Q216: =Parameters!Q366 -> 0 | R216: =Parameters!R366 -> 0.4890176287 | S216: =Parameters!S366 -> 0.6633400489 | T216: =Parameters!T366 -> 0 | U216: =Parameters!U366 -> 0.4890176287 | V216: =Parameters!V366 -> 0.6633400489 | W216: =Parameters!W366 -> 0 | X216: =Parameters!X366 -> 0.4890176287 | Y216: =Parameters!Y366 -> 0.6633400489 | Z216: =Parameters!Z366 -> 0 | AA216: =Parameters!AA366 -> 0.4890176287 | AB216: =Parameters!AB366 -> 0.6633400489 | AC216: =Parameters!AC366 -> 0 | AD216: =Parameters!AD366 -> 0.4890176287 | AE216: =Parameters!AE366 -> 0.6633400489 | AF216: =Parameters!AF366 -> 0
B217: NG no. treated | C217: =C215*C216 -> 39.77497752 | D217: =D215*D216 -> 57.43993555 | E217: 0 | F217: 64.28971564 | G217: 102.3148126 | H217: 0 | I217: 90.11007061 | J217: 120.1359065 | K217: 0 | L217: 116.8969621 | M217: 158.6763646 | N217: 0 | O217: 119.1597339 | P217: 175.5029017 | Q217: 0 | R217: 271.2092949 | S217: 182.5104971 | T217: 0 | U217: 283.2676581 | V217: 202.4420405 | W217: 0 | X217: 271.6288484 | Y217: 201.2052562 | Z217: 0 | AA217: 291.9690988 | AB217: 211.8773136 | AC217: 0 | AD217: 309.5572576 | AE217: 214.529151 | AF217: 0
B218: Warts new cases | C218: ='Model per intervention'!E$3*Parameters!C207 -> 81.33649012 | D218: ='Model per intervention'!F$3*Parameters!D207 -> 173.183982 | E218: ='Model per intervention'!G$3*Parameters!E207 -> 0 | F218: ='Model per intervention'!H$3*Parameters!F207 -> 131.4670717 | G218: ='Model per intervention'!I$3*Parameters!G207 -> 308.4837492 | H218: ='Model per intervention'!J$3*Parameters!H207 -> 0 | I218: ='Model per intervention'!K$3*Parameters!I207 -> 184.2675301 | J218: ='Model per intervention'!L$3*Parameters!J207 -> 362.2151466 | K218: ='Model per intervention'!M$3*Parameters!K207 -> 0 | L218: ='Model per intervention'!N$3*Parameters!L207 -> 239.0444745 | M218: ='Model per intervention'!O$3*Parameters!M207 -> 478.4163564 | N218: ='Model per intervention'!P$3*Parameters!N207 -> 0 | O218: ='Model per intervention'!Q$3*Parameters!O207 -> 243.671653 | P218: ='Model per intervention'!R$3*Parameters!P207 -> 529.1491203 | Q218: ='Model per intervention'!S$3*Parameters!Q207 -> 0 | R218: ='Model per intervention'!T$3*Parameters!R207 -> 3327.601448 | S218: ='Model per intervention'!U$3*Parameters!S207 -> 1100.55467 | T218: ='Model per intervention'!V$3*Parameters!T207 -> 0 | U218: ='Model per intervention'!W$3*Parameters!U207 -> 3475.551492 | V218: ='Model per intervention'!X$3*Parameters!V207 -> 1220.743664 | W218: ='Model per intervention'!Y$3*Parameters!W207 -> 0 | X218: ='Model per intervention'!Z$3*Parameters!X207 -> 3332.749158 | Y218: ='Model per intervention'!AA$3*Parameters!Y207 -> 1213.285744 | Z218: ='Model per intervention'!AB$3*Parameters!Z207 -> 0 | AA218: ='Model per intervention'!AC$3*Parameters!AA207 -> 3582.313786 | AB218: ='Model per intervention'!AD$3*Parameters!AB207 -> 1277.639208 | AC218: ='Model per intervention'!AE$3*Parameters!AC207 -> 0 | AD218: ='Model per intervention'!AF$3*Parameters!AD207 -> 3798.111636 | AE218: ='Model per intervention'!AG$3*Parameters!AE207 -> 1293.630025 | AF218: ='Model per intervention'!AH$3*Parameters!AF207 -> 0
B219: Warts % treated | C219: =Parameters!C367 -> 0.6063318148 | D219: =Parameters!D367 -> 0.9068051519 | E219: =Parameters!E367 -> 0 | F219: =Parameters!F367 -> 0.6063318148 | G219: =Parameters!G367 -> 0.9068051519 | H219: =Parameters!H367 -> 0 | I219: =Parameters!I367 -> 0.6063318148 | J219: =Parameters!J367 -> 0.9068051519 | K219: =Parameters!K367 -> 0 | L219: =Parameters!L367 -> 0.6063318148 | M219: =Parameters!M367 -> 0.9068051519 | N219: =Parameters!N367 -> 0 | O219: =Parameters!O367 -> 0.6063318148 | P219: =Parameters!P367 -> 0.9068051519 | Q219: =Parameters!Q367 -> 0 | R219: =Parameters!R367 -> 0.6063318148 | S219: =Parameters!S367 -> 0.9068051519 | T219: =Parameters!T367 -> 0 | U219: =Parameters!U367 -> 0.6063318148 | V219: =Parameters!V367 -> 0.9068051519 | W219: =Parameters!W367 -> 0 | X219: =Parameters!X367 -> 0.6063318148 | Y219: =Parameters!Y367 -> 0.9068051519 | Z219: =Parameters!Z367 -> 0 | AA219: =Parameters!AA367 -> 0.6063318148 | AB219: =Parameters!AB367 -> 0.9068051519 | AC219: =Parameters!AC367 -> 0 | AD219: =Parameters!AD367 -> 0.6063318148 | AE219: =Parameters!AE367 -> 0.9068051519 | AF219: =Parameters!AF367 -> 0
B220: Warts no. treated | C220: =C218*C219 -> 49.31690166 | D220: =D218*D219 -> 157.0441271 | E220: 0 | F220: 79.71266815 | G220: 279.734653 | H220: 0 | I220: 111.7272659 | J220: 328.458561 | K220: 0 | L220: 144.9402701 | M220: 433.8304167 | N220: 0 | O220: 147.7458756 | P220: 479.8351484 | Q220: 0 | R220: 2017.630625 | S220: 997.9886446 | T220: 0 | U220: 2107.337443 | V220: 1106.976644 | W220: 0 | X220: 2020.751845 | Y220: 1100.213764 | Z220: 0 | AA220: 2172.070819 | AB220: 1158.569816 | AC220: 0 | AD220: 2302.915921 | AE220: 1173.070372 | AF220: 0
B221: Syph new cases | C221: ='Model per intervention'!E$3*Parameters!C213 -> 89.47013913 | D221: ='Model per intervention'!F$3*Parameters!D213 -> 95.25119011 | E221: ='Model per intervention'!G$3*Parameters!E213 -> 0 | F221: ='Model per intervention'!H$3*Parameters!F213 -> 144.6137788 | G221: ='Model per intervention'!I$3*Parameters!G213 -> 169.666062 | H221: ='Model per intervention'!J$3*Parameters!H213 -> 0 | I221: ='Model per intervention'!K$3*Parameters!I213 -> 202.6942831 | J221: ='Model per intervention'!L$3*Parameters!J213 -> 199.2183306 | K221: ='Model per intervention'!M$3*Parameters!K213 -> 0 | L221: ='Model per intervention'!N$3*Parameters!L213 -> 262.948922 | M221: ='Model per intervention'!O$3*Parameters!M213 -> 263.128996 | N221: ='Model per intervention'!P$3*Parameters!N213 -> 0 | O221: ='Model per intervention'!Q$3*Parameters!O213 -> 268.0388183 | P221: ='Model per intervention'!R$3*Parameters!P213 -> 291.0320162 | Q221: ='Model per intervention'!S$3*Parameters!Q213 -> 0 | R221: ='Model per intervention'!T$3*Parameters!R213 -> 305.0301327 | S221: ='Model per intervention'!U$3*Parameters!S213 -> 302.6525342 | T221: ='Model per intervention'!V$3*Parameters!T213 -> 0 | U221: ='Model per intervention'!W$3*Parameters!U213 -> 318.5922201 | V221: ='Model per intervention'!X$3*Parameters!V213 -> 335.7045076 | W221: ='Model per intervention'!Y$3*Parameters!W213 -> 0 | X221: ='Model per intervention'!Z$3*Parameters!X213 -> 305.5020061 | Y221: ='Model per intervention'!AA$3*Parameters!Y213 -> 333.6535797 | Z221: ='Model per intervention'!AB$3*Parameters!Z213 -> 0 | AA221: ='Model per intervention'!AC$3*Parameters!AA213 -> 328.3787638 | AB221: ='Model per intervention'!AD$3*Parameters!AB213 -> 351.3507821 | AC221: ='Model per intervention'!AE$3*Parameters!AC213 -> 0 | AD221: ='Model per intervention'!AF$3*Parameters!AD213 -> 348.1602333 | AE221: ='Model per intervention'!AG$3*Parameters!AE213 -> 355.7482569 | AF221: ='Model per intervention'!AH$3*Parameters!AF213 -> 0
B222: Syph % treated | C222: =Parameters!C368 -> 0.766 | D222: =Parameters!D368 -> 0.766 | E222: =Parameters!E368 -> 0 | F222: =Parameters!F368 -> 0.766 | G222: =Parameters!G368 -> 0.766 | H222: =Parameters!H368 -> 0 | I222: =Parameters!I368 -> 0.766 | J222: =Parameters!J368 -> 0.766 | K222: =Parameters!K368 -> 0 | L222: =Parameters!L368 -> 0.766 | M222: =Parameters!M368 -> 0.766 | N222: =Parameters!N368 -> 0 | O222: =Parameters!O368 -> 0.766 | P222: =Parameters!P368 -> 0.766 | Q222: =Parameters!Q368 -> 0 | R222: =Parameters!R368 -> 0.766 | S222: =Parameters!S368 -> 0.766 | T222: =Parameters!T368 -> 0 | U222: =Parameters!U368 -> 0.766 | V222: =Parameters!V368 -> 0.766 | W222: =Parameters!W368 -> 0 | X222: =Parameters!X368 -> 0.766 | Y222: =Parameters!Y368 -> 0.766 | Z222: =Parameters!Z368 -> 0 | AA222: =Parameters!AA368 -> 0.766 | AB222: =Parameters!AB368 -> 0.766 | AC222: =Parameters!AC368 -> 0 | AD222: =Parameters!AD368 -> 0.766 | AE222: =Parameters!AE368 -> 0.766 | AF222: =Parameters!AF368 -> 0
B223: Syph no. treated | C223: =C221*C222 -> 68.53412657 | D223: =D221*D222 -> 72.96241163 | E223: 0 | F223: 110.7741546 | G223: 129.9642035 | H223: 0 | I223: 155.2638209 | J223: 152.6012413 | K223: 0 | L223: 201.4188742 | M223: 201.5568109 | N223: 0 | O223: 205.3177348 | P223: 222.9305244 | Q223: 0 | R223: 233.6530817 | S223: 231.8318412 | T223: 0 | U223: 244.0416406 | V223: 257.1496528 | W223: 0 | X223: 234.0145367 | Y223: 255.578642 | Z223: 0 | AA223: 251.538133 | AB223: 269.1346991 | AC223: 0 | AD223: 266.6907387 | AE223: 272.5031648 | AF223: 0
B224: HIV new cases | C224: ='Model per intervention'!E58 -> 21.20406304 | D224: ='Model per intervention'!F58 -> 2.553955612 | E224: ='Model per intervention'!G58 -> 0 | F224: ='Model per intervention'!H58 -> 34.27288381 | G224: ='Model per intervention'!I58 -> 4.549230207 | H224: ='Model per intervention'!J58 -> 0 | I224: ='Model per intervention'!K58 -> 80.08460698 | J224: ='Model per intervention'!L58 -> 4.700860404 | K224: ='Model per intervention'!M58 -> 0 | L224: ='Model per intervention'!N58 -> 96.31700233 | M224: ='Model per intervention'!O58 -> 10.42448121 | N224: ='Model per intervention'!P58 -> 0 | O224: ='Model per intervention'!Q58 -> 99.98549485 | P224: ='Model per intervention'!R58 -> 9.852492066 | Q224: ='Model per intervention'!S58 -> 0 | R224: ='Model per intervention'!T58 -> 136.307331 | S224: ='Model per intervention'!U58 -> 13.12505765 | T224: ='Model per intervention'!V58 -> 0 | U224: ='Model per intervention'!W58 -> 117.186232 | V224: ='Model per intervention'!X58 -> 11.13289245 | W224: ='Model per intervention'!Y58 -> 0 | X224: ='Model per intervention'!Z58 -> 125.2001432 | Y224: ='Model per intervention'!AA58 -> 12.01563029 | Z224: ='Model per intervention'!AB58 -> 0 | AA224: ='Model per intervention'!AC58 -> 123.8535697 | AB224: ='Model per intervention'!AD58 -> 14.96828625 | AC224: ='Model per intervention'!AE58 -> 0 | AD224: ='Model per intervention'!AF58 -> 125.001263 | AE224: ='Model per intervention'!AG58 -> 16.0961915 | AF224: ='Model per intervention'!AH58 -> 0
B225: HIV % treated | C225: =Parameters!C369 -> 0.71 | D225: =Parameters!D369 -> 0.71 | E225: =Parameters!E369 -> 0 | F225: =Parameters!F369 -> 0.71 | G225: =Parameters!G369 -> 0.71 | H225: =Parameters!H369 -> 0 | I225: =Parameters!I369 -> 0.71 | J225: =Parameters!J369 -> 0.71 | K225: =Parameters!K369 -> 0 | L225: =Parameters!L369 -> 0.71 | M225: =Parameters!M369 -> 0.71 | N225: =Parameters!N369 -> 0 | O225: =Parameters!O369 -> 0.71 | P225: =Parameters!P369 -> 0.71 | Q225: =Parameters!Q369 -> 0 | R225: =Parameters!R369 -> 0.71 | S225: =Parameters!S369 -> 0.71 | T225: =Parameters!T369 -> 0 | U225: =Parameters!U369 -> 0.71 | V225: =Parameters!V369 -> 0.71 | W225: =Parameters!W369 -> 0 | X225: =Parameters!X369 -> 0.71 | Y225: =Parameters!Y369 -> 0.71 | Z225: =Parameters!Z369 -> 0 | AA225: =Parameters!AA369 -> 0.71 | AB225: =Parameters!AB369 -> 0.71 | AC225: =Parameters!AC369 -> 0 | AD225: =Parameters!AD369 -> 0.71 | AE225: =Parameters!AE369 -> 0.71 | AF225: =Parameters!AF369 -> 0
B226: HIV no. treated | C226: =C224*C225 -> 15.05488476 | D226: =D224*D225 -> 1.813308485 | E226: 0 | F226: 24.3337475 | G226: 3.229953447 | H226: 0 | I226: 56.86007095 | J226: 3.337610887 | K226: 0 | L226: 68.38507165 | M226: 7.401381659 | N226: 0 | O226: 70.98970134 | P226: 6.995269367 | Q226: 0 | R226: 96.778205 | S226: 9.318790932 | T226: 0 | U226: 83.20222471 | V226: 7.904353642 | W226: 0 | X226: 88.89210169 | Y226: 8.531097509 | Z226: 0 | AA226: 87.93603452 | AB226: 10.62748324 | AC226: 0 | AD226: 88.75089676 | AE226: 11.42829596 | AF226: 0
B228: Intervention 6: Chlamydia screening for women
B230: Source: | C230: National chlamydia screening programme data tables
B231: Description: | C231: Extra chlamydia tests for females under chlamydia screening programme
B232: Notes: | C232: 2018 data
B234: Total non screening programme tests, female | C234: ='Parameter calculations'!C28 -> 425561 | D234: Assumed total non-specialist SHS tests proxy for screening programmes
B235: Extra tests as % of whole 15-24 female population | C235: ='Parameter calculations'!C34 -> 0.2079955467 | D235: Link denominator to rest of model
G236: Testing rate | H236: Diagnosis rate
B237: Testing % | C237: =Parameters!D475 -> 0.1788123448 | F237: Standard testing | G237: =C237 -> 0.1788123448 | H237: 0.11
B238: Testing + Screening % | C238: =C235+C237 -> 0.3868078915 | F238: Screening | G238: =C235 -> 0.2079955467 | H238: 0.073
B242: Intervention 7: Advanced provision of emergency contraception
B244: Source: | C244: Ekstrand
B245: Description: | C245: Advanced provision of additional emergency contraception to those requesting emergency contraception
B246: Impact: | C246: Those provided with advanced provision were more likely to subsequently use emergency contraception
B247: Notes:
B248: Key result for modelling: | C248: 31% used emergency contraception vs. 19% in control group. (No difference in amount of unprotected sex the same across both groups)
C252: Scenario 1 | D252: Scenario 2
B253: Use of EC in past year among sexually active women (16-24) | C253: 0.071 | D253: 0.071 | E253: Black et al. 2016
B254: Numbers accessing emergency contraception | C254: =Parameters!$G$48*C253 -> 166103.1637 | D254: =SUM('Model per intervention'!E3,'Model per intervention'!H3,'Model per intervention'!K3,'Model per intervention'!N3,'Model per intervention'!Q3,'Model per intervention'!T3,'Model per intervention'!W3,'Model per intervention'!Z3,'Model per intervention'!AC3,'Model per intervention'!AF3)*Interventions!D253 -> 166103.1637
B255: % of people taking up intervention | C255: =Dashboard!Q90 -> 0.5 | D255: =Dashboard!Q94 -> 0.5
B256: Intervention arm uses ec after unprotected sex | C256: 0.31 | D256: 0.31
B257: Control arm uses ec after unprotected sex | C257: 0.19 | D257: 0.19
B258: Difference | C258: =C256-C257 -> 0.12 | D258: =D256-D257 -> 0.12
B260: Pregnancy risk per act of unprotected sex, without ec | C260: =Dashboard!P92 -> 0.0819 | D260: =Dashboard!P96 -> 0.0819
B261: Pregnancy risk per act of unprotected sex, with ec | C261: =Dashboard!M92 -> 0.0147 | D261: =Dashboard!M96 -> 0.0147
B262: Difference | C262: =C260-C261 -> 0.0672 | D262: =D260-D261 -> 0.0672
B263: Pregnancies averted | C263: =C254*C255*C258*C262 -> 669.7279562 | D263: =D254*D255*D258*D262 -> 669.7279562
B265: Scenario 1 | C265: 15 F | D265: 15 M | E265: 15 MSM | F265: 16 F | G265: 16 M | H265: 16 MSM | I265: 17 F | J265: 17 M | K265: 17 MSM | L265: 18 F | M265: 18 M | N265: 18 MSM | O265: 19 F | P265: 19 M | Q265: 19 MSM | R265: 20 F | S265: 20 M | T265: 20 MSM | U265: 21 F | V265: 21 M | W265: 21 MSM | X265: 22 F | Y265: 22 M | Z265: 22 MSM | AA265: 23 F | AB265: 23 M | AC265: 23 MSM | AD265: 24 F | AE265: 24 M
B266: % population | C266: =Parameters!C22 -> 0.04319355679 | D266: =Parameters!D22 -> 0.04551073731 | E266: =Parameters!E22 -> 0 | F266: =Parameters!F22 -> 0.04448544285 | G266: =Parameters!G22 -> 0.04664375162 | H266: =Parameters!H22 -> 0 | I266: =Parameters!I22 -> 0.0455454905 | J266: =Parameters!J22 -> 0.0482222387 | K266: =Parameters!K22 -> 0 | L266: =Parameters!L22 -> 0.04720070541 | M266: =Parameters!M22 -> 0.0498574442 | N266: =Parameters!N22 -> 0 | O266: =Parameters!O22 -> 0.0481143684 | P266: =Parameters!P22 -> 0.05072988478 | Q266: =Parameters!Q22 -> 0 | R266: =Parameters!R22 -> 0.05005332584 | S266: =Parameters!S22 -> 0.05273564057 | T266: =Parameters!T22 -> 0 | U266: =Parameters!U22 -> 0.05012117732 | V266: =Parameters!V22 -> 0.05361349724 | W266: =Parameters!W22 -> 0 | X266: =Parameters!X22 -> 0.05095405041 | Y266: =Parameters!Y22 -> 0.05382968919 | Z266: =Parameters!Z22 -> 0 | AA266: =Parameters!AA22 -> 0.0530956596 | AB266: =Parameters!AB22 -> 0.05601583061 | AC266: =Parameters!AC22 -> 0 | AD266: =Parameters!AD22 -> 0.05390130183 | AE266: =Parameters!AE22 -> 0.05617620682
B267: % female population | C267: =C266/SUM($C$266,$F$266,$I$266,$L$266,$O$266,$R$266,$U$266,$X$266,$AA$266,$AD$266) -> 0.08875417336 | F267: =F266/SUM($C$266,$F$266,$I$266,$L$266,$O$266,$R$266,$U$266,$X$266,$AA$266,$AD$266) -> 0.09140874243 | I267: =I266/SUM($C$266,$F$266,$I$266,$L$266,$O$266,$R$266,$U$266,$X$266,$AA$266,$AD$266) -> 0.09358692964 | L267: =L266/SUM($C$266,$F$266,$I$266,$L$266,$O$266,$R$266,$U$266,$X$266,$AA$266,$AD$266) -> 0.09698806727 | O267: =O266/SUM($C$266,$F$266,$I$266,$L$266,$O$266,$R$266,$U$266,$X$266,$AA$266,$AD$266) -> 0.09886546309 | R267: =R266/SUM($C$266,$F$266,$I$266,$L$266,$O$266,$R$266,$U$266,$X$266,$AA$266,$AD$266) -> 0.1028496352 | U267: =U266/SUM($C$266,$F$266,$I$266,$L$266,$O$266,$R$266,$U$266,$X$266,$AA$266,$AD$266) -> 0.1029890565 | X267: =X266/SUM($C$266,$F$266,$I$266,$L$266,$O$266,$R$266,$U$266,$X$266,$AA$266,$AD$266) -> 0.1047004452 | AA267: =AA266/SUM($C$266,$F$266,$I$266,$L$266,$O$266,$R$266,$U$266,$X$266,$AA$266,$AD$266) -> 0.1091010263 | AD267: =AD266/SUM($C$266,$F$266,$I$266,$L$266,$O$266,$R$266,$U$266,$X$266,$AA$266,$AD$266) -> 0.110756461
B268: Pregnancies averted per age, scenario 1 | C268: =C267*$C$263 -> 59.44115113 | F268: =F267*$C$263 -> 61.21899024 | I268: =I267*$C$263 -> 62.67778311 | L268: =L267*$C$263 -> 64.95562007 | O268: =O267*$C$263 -> 66.21296453 | R268: =R267*$C$263 -> 68.88127599 | U268: =U267*$C$263 -> 68.97465033 | X268: =X267*$C$263 -> 70.12081515 | AA268: =AA267*$C$263 -> 73.06800739 | AD268: =AD267*$C$263 -> 74.17669825
B269: Pregnancies averted per age, scenario 2 | C269: =C267*$D$263 -> 59.44115113 | F269: =F267*$D$263 -> 61.21899024 | I269: =I267*$D$263 -> 62.67778311 | L269: =L267*$D$263 -> 64.95562007 | O269: =O267*$D$263 -> 66.21296453 | R269: =R267*$D$263 -> 68.88127599 | U269: =U267*$D$263 -> 68.97465033 | X269: =X267*$D$263 -> 70.12081515 | AA269: =AA267*$D$263 -> 73.06800739 | AD269: =AD267*$D$263 -> 74.17669825
B270: Applies total proportionately to the population ages
... 54 more rows

Sheet Parameters (hidden)
B1: Parameters | C1: PASSWORD sexualhealth
B3: Population from Dashboard | C3: No.
B4: Area type | C4: =region -> National
B5: Actual Area | C5: =area -> England
B6: Total Population | C6: =IFERROR(IF(Parameters!C4="CCG",VLOOKUP(Parameters!C5,'Pop CCG Combined'!D9:M242,4,FALSE),(VLOOKUP(Parameters!C5&"All ages",'Pop LA Combined 2019'!D7:I8123,4,FALSE)*1000)),"") -> 56357500
B8: Population subgroups from Dashboard | C8: No.
C9: Default | F9: Live
B10: Population Aged 15-24 | C10: =IFERROR(IF(Parameters!C4="CCG",VLOOKUP(Parameters!C5,'Pop CCG Combined'!D9:M242,7,FALSE),(VLOOKUP(Parameters!C5&"15-24",'Pop LA Combined 2019'!D7:I8123,4,FALSE)*1000))/default_pop,"") -> 0.1159366544 | F10: =dash_prop_1524 -> 0.1159366544
B11: Proportion Men | C11: =IFERROR(IF(Parameters!C4="CCG",(VLOOKUP(Parameters!C5,'Pop CCG Combined'!D9:M242,5,FALSE)/VLOOKUP(Parameters!C5,'Pop CCG Combined'!D9:M242,7,FALSE)),(VLOOKUP(Parameters!C5&"15-24",'Pop LA Combined 2019'!D7:I8123,5,FALSE))),"") -> 0.5138278823 | F11: =dash_prop_men -> 0.5138278823
B12: Proportion Women | C12: =IF(default_prop_men="", "", 1-default_prop_men) -> 0.4861721177 | F12: =1-dash_prop_men -> 0.4861721177
B13: Proportion BAME | C13: n/a | F13: n/a
B14: Proportion (of men) MSM | C14: 0 | F14: 0
B15: Source: | C15: ONS
B16: Notes
B17: Assumption | C17: Assumes all sex is heterosexual sex
B19: Population distribution | C19: Female | D19: Male | F19: Female | G19: Male | I19: Female | J19: Male | L19: Female | M19: Male | O19: Female | P19: Male | R19: Female | S19: Male | U19: Female | V19: Male | X19: Female | Y19: Male | AA19: Female | AB19: Male | AD19: Female | AE19: Male
B20: Subgroup (age and sex) | C20: 15 F | D20: 15 M | E20: 15 MSM | F20: 16 F | G20: 16 M | H20: 16 MSM | I20: 17 F | J20: 17 M | K20: 17 MSM | L20: 18 F | M20: 18 M | N20: 18 MSM | O20: 19 F | P20: 19 M | Q20: 19 MSM | R20: 20 F | S20: 20 M | T20: 20 MSM | U20: 21 F | V20: 21 M | W20: 21 MSM | X20: 22 F | Y20: 22 M | Z20: 22 MSM | AA20: 23 F | AB20: 23 M | AC20: 23 MSM | AD20: 24 F | AE20: 24 M | AF20: 24 MSM
B21: No. | C21: 287102 | D21: 302504 | F21: 295689 | G21: 310035 | I21: 302735 | J21: 320527 | L21: 313737 | M21: 331396 | O21: 319810 | P21: 337195 | R21: 332698 | S21: 350527 | U21: 333149 | V21: 356362 | X21: 338685 | Y21: 357799 | AA21: 352920 | AB21: 372330 | AD21: 358275 | AE21: 373396
B22: % | C22: =C21/SUM($C$21:$AF$21) -> 0.04319355679 | D22: 0.04551073731 | E22: 0 | F22: 0.04448544285 | G22: 0.04664375162 | H22: 0 | I22: 0.0455454905 | J22: 0.0482222387 | K22: 0 | L22: 0.04720070541 | M22: 0.0498574442 | N22: 0 | O22: 0.0481143684 | P22: 0.05072988478 | Q22: 0 | R22: 0.05005332584 | S22: 0.05273564057 | T22: 0 | U22: 0.05012117732 | V22: 0.05361349724 | W22: 0 | X22: 0.05095405041 | Y22: 0.05382968919 | Z22: 0 | AA22: 0.0530956596 | AB22: 0.05601583061 | AC22: 0 | AD22: 0.05390130183 | AE22: 0.05617620682 | AF22: 0
B23: Source | C23: ONS (2017)
B24: Notes
B25: Assumption | C25: Assumes that the distribution across regions is that same as the national distribution
B27: Population size for back end model
B28: Subgroup (sex) | C28: F | D28: M | E28: Total | F28: =C28 -> F | G28: =D28 -> M | H28: Total | I28: F | J28: M | K28: Total | L28: F | M28: M | N28: Total | O28: F | P28: M | Q28: Total | R28: F | S28: M | T28: Total | U28: F | V28: M | W28: Total | X28: F | Y28: M | Z28: Total | AA28: F | AB28: M | AC28: Total | AD28: F | AE28: M
B29: No. | C29: =Dashboard!I19 -> 3357300 | D29: =Dashboard!I20 -> 3176600 | E29: =D29+C29 -> 6533900 | F29: =C29 -> 3357300 | G29: 3176600 | H29: 6533900 | I29: 3357300 | J29: 3176600 | K29: 6533900 | L29: 3357300 | M29: 3176600 | N29: 6533900 | O29: 3357300 | P29: 3176600 | Q29: 6533900 | R29: 3357300 | S29: 3176600 | T29: 6533900 | U29: 3357300 | V29: 3176600 | W29: 6533900 | X29: 3357300 | Y29: 3176600 | Z29: 6533900 | AA29: 3357300 | AB29: 3176600 | AC29: 6533900 | AD29: 3357300 | AE29: 3176600
B30: Source | C30: Dashboard
B31: Notes | C31: Equivalent to impact per person, greater number used to avoid lots of decimals
B32: Assumptions
B34: Population for back end model
B35: Subgroup (age and sex) | C35: 15 F | D35: 15 M | E35: 15 MSM | F35: 16 F | G35: 16 M | H35: 16 MSM | I35: 17 F | J35: 17 M | K35: 17 MSM | L35: 18 F | M35: 18 M | N35: 18 MSM | O35: 19 F | P35: 19 M | Q35: 19 MSM | R35: 20 F | S35: 20 M | T35: 20 MSM | U35: 21 F | V35: 21 M | W35: 21 MSM | X35: 22 F | Y35: 22 M | Z35: 22 MSM | AA35: 23 F | AB35: 23 M | AC35: 23 MSM | AD35: 24 F | AE35: 24 M | AF35: 24 MSM
B36: No. | C36: =C$22*SUM($C$29:$D$29) -> 282222.3807 | D36: =D$22*SUM($C$29:$D$29) -> 297362.6065 | E36: 0 | F36: 290663.435 | G36: 304765.6087 | H36: 0 | I36: 297589.6804 | J36: 315079.2855 | K36: 0 | L36: 308404.6891 | M36: 325763.5547 | N36: 0 | O36: 314374.4717 | P36: 331463.9942 | Q36: 0 | R36: 327043.4257 | S36: 344569.4019 | T36: 0 | U36: 327486.7605 | V36: 350305.2296 | W36: 0 | X36: 332928.67 | Y36: 351717.8062 | Z36: 0 | AA36: 346921.7302 | AB36: 366001.8356 | AC36: 0 | AD36: 352185.716 | AE36: 367049.7177 | AF36: =AF23*$C$29 -> 0
B37: Source | C37: Model calculation
B38: Notes
B39: Assumption
B41: Proportion of population that are sexually active (reported having had sex with someone of the opposite sex in the year prior to interview, by gender & age at interview)
B42: Subgroup (age and sex) | C42: 15 F | D42: 15 M | E42: 15 MSM | F42: 16 F | G42: 16 M | H42: 16 MSM | I42: 17 F | J42: 17 M | K42: 17 MSM | L42: 18 F | M42: 18 M | N42: 18 MSM | O42: 19 F | P42: 19 M | Q42: 19 MSM | R42: 20 F | S42: 20 M | T42: 20 MSM | U42: 21 F | V42: 21 M | W42: 21 MSM | X42: 22 F | Y42: 22 M | Z42: 22 MSM | AA42: 23 F | AB42: 23 M | AC42: 23 MSM | AD42: 24 F | AE42: 24 M | AF42: 24 MSM
B43: No. | C43: 0.2882 | D43: 0.2912 | F43: 0.4523 | G43: 0.5061 | I43: 0.6192 | J43: 0.5748 | L43: 0.7751 | M43: 0.7343 | O43: 0.7751 | P43: 0.7982 | R43: 0.8479 | S43: 0.7985 | U43: 0.8844 | V43: 0.8712 | X43: 0.8342 | Y43: 0.8624 | AA43: 0.8605 | AB43: 0.8727 | AD43: 0.8987 | AE43: 0.8811
B44: Source | C44: Natsal 3 (Cath Mercer has provided an estimate for 15 year olds as Natsal only captures for 16+)
B45: Notes
B46: Assumption | C46: total sexually active population: | G46: =SUMPRODUCT(C36:AE36,C43:AE43) -> 4791668.684
C47: Male sexually active | G47: =D36*D43+G36*G43+J36*J43+M36*M43+P36*P43+S36*S43+V36*V43+Y36*Y43+AB36*AB43+AE36*AE43 -> 2452187.505
C48: Female sexually active | G48: =C36*C43+F36*F43+I36*I43+L36*L43+O36*O43+R36*R43+U36*U43+X36*X43+AA36*AA43+AD36*AD43 -> 2339481.179
C49: 15-17 sexually active population: | G49: =SUMPRODUCT(C36:J36,C43:J43) -> 819012.5308
B50: Acts of sexual intercourse per annum for those who are sexually active (Mean number of sex acts with someone of the opposite, last 4 weeks (multiplied up for 52 weeks)
B51: Subgroup (age and sex) | C51: 15 F | D51: 15 M | E51: 15 MSM | F51: 16 F | G51: 16 M | H51: 16 MSM | I51: 17 F | J51: 17 M | K51: 17 MSM | L51: 18 F | M51: 18 M | N51: 18 MSM | O51: 19 F | P51: 19 M | Q51: 19 MSM | R51: 20 F | S51: 20 M | T51: 20 MSM | U51: 21 F | V51: 21 M | W51: 21 MSM | X51: 22 F | Y51: 22 M | Z51: 22 MSM | AA51: 23 F | AB51: 23 M | AC51: 23 MSM | AD51: 24 F | AE51: 24 M | AF51: 24 MSM
B52: Mean number of sex acts with someone regardless of whether opposite or same sex, last 4 weeks | C52: =F52 -> 3.625 | D52: =G52 -> 3.927083 | E52: =D52 -> 3.927083 | F52: 3.625 | G52: 3.927083 | H52: =G52 -> 3.927083 | I52: 6.044025 | J52: 3.456 | K52: =J52 -> 3.456 | L52: 5.603261 | M52: 5.802548 | N52: =M52 -> 5.802548 | O52: 5.70625 | P52: 4.958333 | Q52: =P52 -> 4.958333 | R52: 6.836158 | S52: 6.351724 | T52: =S52 -> 6.351724 | U52: 5.626667 | V52: 4.857143 | W52: =V52 -> 4.857143 | X52: 6.269231 | Y52: 5.27451 | Z52: =Y52 -> 5.27451 | AA52: 5.769608 | AB52: 6.239726 | AC52: =AB52 -> 6.239726 | AD52: 5.492147 | AE52: 6.626984 | AF52: =AE52 -> 6.626984
B53: Number of sex acts with someone regardless of whether opposite or same sex, Per 52 week period | C53: =C52*13 -> 47.125 | D53: 51.052079 | E53: 51.052079 | F53: 47.125 | G53: 51.052079 | H53: 51.052079 | I53: 78.572325 | J53: 44.928 | K53: 44.928 | L53: 72.842393 | M53: 75.433124 | N53: 75.433124 | O53: 74.18125 | P53: 64.458329 | Q53: 64.458329 | R53: 88.870054 | S53: 82.572412 | T53: 82.572412 | U53: 73.146671 | V53: 63.142859 | W53: 63.142859 | X53: 81.500003 | Y53: 68.56863 | Z53: 68.56863 | AA53: 75.004904 | AB53: 81.116438 | AC53: 81.116438 | AD53: 71.397911 | AE53: 86.150792 | AF53: 86.150792
B54: Source | C54: Natsal 3
B55: Notes | C55: Natsal only provides data for 16+.
B56: Assumptions | C56: Assumes that 'last four weeks' is a representative sample for the whole year, assumes that using ‘number of sex acts with someone regardless of whether opposite or same sex’ will be a good proxy for number of heterosexual sex acts, assumes that acts of sexual behaviour for sexually active 15 years olds are the same as for sexually active 16 year olds as
B58: Contraceptive used ("Which would you say is your most usual method [of contraception that you use with a partner] these days?")
B59: Source | C59: Natsal 3
B60: Notes
B61: Assumptions | C61: Assumes that the only contraceptives are condom, pill, implant and no method. 'No method' users are assumed to be the proportion not using any of condom, pill or implant. Thus, no method users are overestimated as the proportion of users using other methods are not included. (N.B. For emergency contraception interventions this will be built in to the model separately in terms of pregnancy outcomes). Assumes that the “usual” method it the method that is used for all sexual acts. Likewise, when no method is used it is assumed that no method is ever used. Assumes that contraceptive use within the young people subgroup is the same i.e. there is no variation in usage within the young person group.
B62: Baseline | C62: 15 F | D62: 15 M | E62: 15 MSM | F62: 16 F | G62: 16 M | H62: 16 MSM | I62: 17 F | J62: 17 M | K62: 17 MSM | L62: 18 F | M62: 18 M | N62: 18 MSM | O62: 19 F | P62: 19 M | Q62: 19 MSM | R62: 20 F | S62: 20 M | T62: 20 MSM | U62: 21 F | V62: 21 M | W62: 21 MSM | X62: 22 F | Y62: 22 M | Z62: 22 MSM | AA62: 23 F | AB62: 23 M | AC62: 23 MSM | AD62: 24 F | AE62: 24 M | AF62: 24 MSM
B63: Pill | C63: 0.435 | D63: 0.305 | E63: 0 | F63: =$C63 -> 0.435 | G63: 0.305 | H63: 0 | I63: =$C63 -> 0.435 | J63: 0.305 | K63: 0 | L63: =$C63 -> 0.435 | M63: 0.305 | N63: 0 | O63: =$C63 -> 0.435 | P63: 0.305 | Q63: 0 | R63: =$C63 -> 0.435 | S63: 0.305 | T63: 0 | U63: =$C63 -> 0.435 | V63: 0.305 | W63: 0 | X63: =$C63 -> 0.435 | Y63: 0.305 | Z63: 0 | AA63: =$C63 -> 0.435 | AB63: 0.305 | AC63: 0 | AD63: =$C63 -> 0.435 | AE63: 0.305 | AF63: 0
B64: Condom | C64: =Dashboard!P52*Interventions!C108 -> 0.3135331765 | D64: =Dashboard!P52*Interventions!D108 -> 0.5593830006 | E64: 0.527 | F64: =$C64 -> 0.3135331765 | G64: =$D64 -> 0.5593830006 | H64: =$D64 -> 0.5593830006 | I64: =$C64 -> 0.3135331765 | J64: =$D64 -> 0.5593830006 | K64: =$D64 -> 0.5593830006 | L64: =$C64 -> 0.3135331765 | M64: =$D64 -> 0.5593830006 | N64: =$D64 -> 0.5593830006 | O64: =$C64 -> 0.3135331765 | P64: =$D64 -> 0.5593830006 | Q64: =$D64 -> 0.5593830006 | R64: =$C64 -> 0.3135331765 | S64: =$D64 -> 0.5593830006 | T64: =$D64 -> 0.5593830006 | U64: =$C64 -> 0.3135331765 | V64: =$D64 -> 0.5593830006 | W64: =$D64 -> 0.5593830006 | X64: =$C64 -> 0.3135331765 | Y64: =$D64 -> 0.5593830006 | Z64: =$D64 -> 0.5593830006 | AA64: =$C64 -> 0.3135331765 | AB64: =$D64 -> 0.5593830006 | AC64: =$D64 -> 0.5593830006 | AD64: =$C64 -> 0.3135331765 | AE64: =$D64 -> 0.5593830006 | AF64: =$D64 -> 0.5593830006
B65: Implant | C65: 0.101 | D65: 0.052 | E65: 0 | F65: =$C65 -> 0.101 | G65: =$D65 -> 0.052 | H65: 0 | I65: =$C65 -> 0.101 | J65: =$D65 -> 0.052 | K65: 0 | L65: =$C65 -> 0.101 | M65: =$D65 -> 0.052 | N65: 0 | O65: =$C65 -> 0.101 | P65: =$D65 -> 0.052 | Q65: 0 | R65: =$C65 -> 0.101 | S65: =$D65 -> 0.052 | T65: 0 | U65: =$C65 -> 0.101 | V65: =$D65 -> 0.052 | W65: 0 | X65: =$C65 -> 0.101 | Y65: =$D65 -> 0.052 | Z65: 0 | AA65: =$C65 -> 0.101 | AB65: =$D65 -> 0.052 | AC65: 0 | AD65: =$C65 -> 0.101 | AE65: =$D65 -> 0.052 | AF65: 0
B66: IUD | C66: 0.018 | D66: 0.0075 | F66: =$C66 -> 0.018 | G66: =$D66 -> 0.0075 | H66: 0 | I66: =$C66 -> 0.018 | J66: =$D66 -> 0.0075 | K66: 0 | L66: =$C66 -> 0.018 | M66: =$D66 -> 0.0075 | N66: 0 | O66: =$C66 -> 0.018 | P66: =$D66 -> 0.0075 | Q66: 0 | R66: =$C66 -> 0.018 | S66: =$D66 -> 0.0075 | T66: 0 | U66: =$C66 -> 0.018 | V66: =$D66 -> 0.0075 | W66: 0 | X66: =$C66 -> 0.018 | Y66: =$D66 -> 0.0075 | Z66: 0 | AA66: =$C66 -> 0.018 | AB66: =$D66 -> 0.0075 | AC66: 0 | AD66: =$C66 -> 0.018 | AE66: =$D66 -> 0.0075
B67: No method | C67: =1-SUM(C63:C66) -> 0.1324668235 | D67: =1-SUM(D63:D66) -> 0.07611699939 | E67: =1-SUM(E63:E65) -> 0.473 | F67: =1-SUM(F63:F66) -> 0.1324668235 | G67: =1-SUM(G63:G66) -> 0.07611699939 | H67: =1-SUM(H63:H65) -> 0.4406169994 | I67: =1-SUM(I63:I66) -> 0.1324668235 | J67: =1-SUM(J63:J66) -> 0.07611699939 | K67: =1-SUM(K63:K65) -> 0.4406169994 | L67: =1-SUM(L63:L66) -> 0.1324668235 | M67: =1-SUM(M63:M66) -> 0.07611699939 | N67: =1-SUM(N63:N65) -> 0.4406169994 | O67: =1-SUM(O63:O66) -> 0.1324668235 | P67: =1-SUM(P63:P66) -> 0.07611699939 | Q67: =1-SUM(Q63:Q65) -> 0.4406169994 | R67: =1-SUM(R63:R66) -> 0.1324668235 | S67: =1-SUM(S63:S66) -> 0.07611699939 | T67: 0.4406169994 | U67: 0.1324668235 | V67: 0.07611699939 | W67: 0.4406169994 | X67: 0.1324668235 | Y67: 0.07611699939 | Z67: 0.4406169994 | AA67: 0.1324668235 | AB67: 0.07611699939 | AC67: 0.4406169994 | AD67: 0.1324668235 | AE67: 0.07611699939 | AF67: =1-AF64 -> 0.4406169994
B68: Scenario 1, Intervention 1
B69: Pill | C69: =$C$63 -> 0.435 | D69: =$D$63 -> 0.305 | E69: =E63 -> 0 | F69: 0.435 | G69: 0.305 | H69: 0 | I69: 0.435 | J69: 0.305 | K69: 0 | L69: 0.435 | M69: 0.305 | N69: 0 | O69: 0.435 | P69: 0.305 | Q69: 0 | R69: 0.435 | S69: 0.305 | T69: 0 | U69: 0.435 | V69: 0.305 | W69: 0 | X69: 0.435 | Y69: 0.305 | Z69: 0 | AA69: 0.435 | AB69: 0.305 | AC69: 0 | AD69: 0.435 | AE69: 0.305 | AF69: 0
B70: Condom | C70: =$C$64 -> 0.3135331765 | D70: =$D$64 -> 0.5593830006 | E70: =E64 -> 0.527 | F70: 0.3135331765 | G70: 0.5593830006 | H70: 0.5593830006 | I70: 0.3135331765 | J70: 0.5593830006 | K70: 0.5593830006 | L70: 0.3135331765 | M70: 0.5593830006 | N70: 0.5593830006 | O70: 0.3135331765 | P70: 0.5593830006 | Q70: 0.5593830006 | R70: 0.3135331765 | S70: 0.5593830006 | T70: 0.5593830006 | U70: 0.3135331765 | V70: 0.5593830006 | W70: 0.5593830006 | X70: 0.3135331765 | Y70: 0.5593830006 | Z70: 0.5593830006 | AA70: 0.3135331765 | AB70: 0.5593830006 | AC70: 0.5593830006 | AD70: 0.3135331765 | AE70: 0.5593830006 | AF70: =AF64+0.04 -> 0.5993830006
B71: Implant | C71: =$C$65 -> 0.101 | D71: =$D$65 -> 0.052 | E71: =E65 -> 0 | F71: 0.101 | G71: 0.052 | H71: 0 | I71: 0.101 | J71: 0.052 | K71: 0 | L71: 0.101 | M71: 0.052 | N71: 0 | O71: 0.101 | P71: 0.052 | Q71: 0 | R71: 0.101 | S71: 0.052 | T71: 0 | U71: 0.101 | V71: 0.052 | W71: 0 | X71: 0.101 | Y71: 0.052 | Z71: 0 | AA71: 0.101 | AB71: 0.052 | AC71: 0 | AD71: 0.101 | AE71: 0.052 | AF71: 0
B72: IUD | C72: =C$66 -> 0.018 | D72: =D$66 -> 0.0075 | E72: 0 | F72: 0.018 | G72: 0.0075 | H72: 0 | I72: 0.018 | J72: 0.0075 | K72: 0 | L72: 0.018 | M72: 0.0075 | N72: 0 | O72: 0.018 | P72: 0.0075 | Q72: 0 | R72: 0.018 | S72: 0.0075 | T72: 0 | U72: 0.018 | V72: 0.0075 | W72: 0 | X72: 0.018 | Y72: 0.0075 | Z72: 0 | AA72: 0.018 | AB72: 0.0075 | AC72: 0 | AD72: 0.018 | AE72: 0.0075
B73: No method | C73: =1-SUM(C69:C72) -> 0.1324668235 | D73: =1-SUM(D69:D72) -> 0.07611699939 | E73: =1-SUM(E69:E71) -> 0.473 | F73: =1-SUM(F69:F72) -> 0.1324668235 | G73: =1-SUM(G69:G72) -> 0.07611699939 | H73: =1-SUM(H69:H71) -> 0.4406169994 | I73: =1-SUM(I69:I72) -> 0.1324668235 | J73: =1-SUM(J69:J72) -> 0.07611699939 | K73: =1-SUM(K69:K71) -> 0.4406169994 | L73: =1-SUM(L69:L72) -> 0.1324668235 | M73: =1-SUM(M69:M72) -> 0.07611699939 | N73: =1-SUM(N69:N71) -> 0.4406169994 | O73: =1-SUM(O69:O72) -> 0.1324668235 | P73: =1-SUM(P69:P72) -> 0.07611699939 | Q73: =1-SUM(Q69:Q71) -> 0.4406169994 | R73: =1-SUM(R69:R72) -> 0.1324668235 | S73: 0.07611699939 | T73: 0.4406169994 | U73: 0.1324668235 | V73: 0.07611699939 | W73: 0.4406169994 | X73: 0.1324668235 | Y73: 0.07611699939 | Z73: 0.4406169994 | AA73: 0.1324668235 | AB73: 0.07611699939 | AC73: 0.4406169994 | AD73: 0.1324668235 | AE73: 0.07611699939 | AF73: =1-SUM(AF69:AF71) -> 0.4006169994
B74: Scenario 1, Intervention 2
B75: Pill | C75: =C63 -> 0.435 | D75: =D63 -> 0.305 | E75: 0 | F75: 0.435 | G75: 0.305 | H75: 0 | I75: 0.435 | J75: 0.305 | K75: 0 | L75: 0.435 | M75: 0.305 | N75: 0 | O75: 0.435 | P75: 0.305 | Q75: 0 | R75: 0.435 | S75: 0.305 | T75: 0 | U75: 0.435 | V75: 0.305 | W75: 0 | X75: 0.435 | Y75: 0.305 | Z75: 0 | AA75: 0.435 | AB75: 0.305 | AC75: 0 | AD75: 0.435 | AE75: 0.305 | AF75: 0
B76: Condom | C76: =C64 -> 0.3135331765 | D76: =D64 -> 0.5593830006 | E76: 0.527 | F76: 0.3135331765 | G76: 0.5593830006 | H76: 0.5593830006 | I76: 0.3135331765 | J76: 0.5593830006 | K76: 0.5593830006 | L76: 0.3135331765 | M76: 0.5593830006 | N76: 0.5593830006 | O76: 0.3135331765 | P76: 0.5593830006 | Q76: 0.5593830006 | R76: 0.3135331765 | S76: 0.5593830006 | T76: 0.5593830006 | U76: 0.3135331765 | V76: 0.5593830006 | W76: 0.5593830006 | X76: 0.3135331765 | Y76: 0.5593830006 | Z76: 0.5593830006 | AA76: 0.3135331765 | AB76: 0.5593830006 | AC76: 0.5593830006 | AD76: 0.3135331765 | AE76: 0.5593830006 | AF76: 0.527
B77: Implant | C77: =C65 -> 0.101 | D77: =D65 -> 0.052 | E77: 0 | F77: 0.101 | G77: 0.052 | H77: 0 | I77: 0.101 | J77: 0.052 | K77: 0 | L77: 0.101 | M77: 0.052 | N77: 0 | O77: 0.101 | P77: 0.052 | Q77: 0 | R77: 0.101 | S77: 0.052 | T77: 0 | U77: 0.101 | V77: 0.052 | W77: 0 | X77: 0.101 | Y77: 0.052 | Z77: 0 | AA77: 0.101 | AB77: 0.052 | AC77: 0 | AD77: 0.101 | AE77: 0.052 | AF77: 0
B78: IUD | C78: =C$66 -> 0.018 | D78: =D$66 -> 0.0075 | E78: 0 | F78: 0.018 | G78: 0.0075 | H78: 0 | I78: 0.018 | J78: 0.0075 | K78: 0 | L78: 0.018 | M78: 0.0075 | N78: 0 | O78: 0.018 | P78: 0.0075 | Q78: 0 | R78: 0.018 | S78: 0.0075 | T78: 0 | U78: 0.018 | V78: 0.0075 | W78: 0 | X78: 0.018 | Y78: 0.0075 | Z78: 0 | AA78: 0.018 | AB78: 0.0075 | AC78: 0 | AD78: 0.018 | AE78: 0.0075
B79: No method | C79: =1-SUM(C75:C78) -> 0.1324668235 | D79: =1-SUM(D75:D78) -> 0.07611699939 | E79: =1-SUM(E75:E77) -> 0.473 | F79: =1-SUM(F75:F78) -> 0.1324668235 | G79: =1-SUM(G75:G78) -> 0.07611699939 | H79: =1-SUM(H75:H77) -> 0.4406169994 | I79: =1-SUM(I75:I78) -> 0.1324668235 | J79: =1-SUM(J75:J78) -> 0.07611699939 | K79: =1-SUM(K75:K77) -> 0.4406169994 | L79: =1-SUM(L75:L78) -> 0.1324668235 | M79: =1-SUM(M75:M78) -> 0.07611699939 | N79: =1-SUM(N75:N77) -> 0.4406169994 | O79: =1-SUM(O75:O78) -> 0.1324668235 | P79: =1-SUM(P75:P78) -> 0.07611699939 | Q79: =1-SUM(Q75:Q77) -> 0.4406169994 | R79: =1-SUM(R75:R78) -> 0.1324668235 | S79: 0.07611699939 | T79: 0.4406169994 | U79: 0.1324668235 | V79: 0.07611699939 | W79: 0.4406169994 | X79: 0.1324668235 | Y79: 0.07611699939 | Z79: 0.4406169994 | AA79: 0.1324668235 | AB79: 0.07611699939 | AC79: 0.4406169994 | AD79: 0.1324668235 | AE79: 0.07611699939 | AF79: =1-SUM(AF75:AF77) -> 0.473
B80: Scenario 1, Intervention 3
B81: Pill | C81: =C63*Interventions!$E$111 -> 0.4268735724 | D81: =D63*Interventions!$E$111 -> 0.2993021599 | E81: =E63*Interventions!$E$111 -> 0 | F81: =F63*Interventions!$E$111 -> 0.4268735724 | G81: =G63*Interventions!$E$111 -> 0.2993021599 | H81: =H63*Interventions!$E$111 -> 0 | I81: =I63*Interventions!$E$111 -> 0.4268735724 | J81: =J63*Interventions!$E$111 -> 0.2993021599 | K81: =K63*Interventions!$E$111 -> 0 | L81: =L63*Interventions!$E$111 -> 0.4268735724 | M81: =M63*Interventions!$E$111 -> 0.2993021599 | N81: =N63*Interventions!$E$111 -> 0 | O81: =O63*Interventions!$E$111 -> 0.4268735724 | P81: =P63*Interventions!$E$111 -> 0.2993021599 | Q81: =Q63*Interventions!$E$111 -> 0 | R81: =R63*Interventions!$E$111 -> 0.4268735724 | S81: =S63*Interventions!$E$111 -> 0.2993021599 | T81: =T63*Interventions!$E$111 -> 0 | U81: =U63*Interventions!$E$111 -> 0.4268735724 | V81: =V63*Interventions!$E$111 -> 0.2993021599 | W81: =W63*Interventions!$E$111 -> 0 | X81: =X63*Interventions!$E$111 -> 0.4268735724 | Y81: =Y63*Interventions!$E$111 -> 0.2993021599 | Z81: =Z63*Interventions!$E$111 -> 0 | AA81: =AA63*Interventions!$E$111 -> 0.4268735724 | AB81: =AB63*Interventions!$E$111 -> 0.2993021599 | AC81: =AC63*Interventions!$E$111 -> 0 | AD81: =AD63*Interventions!$E$111 -> 0.4268735724 | AE81: =AE63*Interventions!$E$111 -> 0.2993021599 | AF81: 0
B82: Condom | C82: =C64*Interventions!$C$103 -> 0.3240309391 | D82: =D64*Interventions!$C$103 -> 0.5781123421 | E82: =E64*Interventions!$C$103 -> 0.5446450893 | F82: =F64*Interventions!$C$103 -> 0.3240309391 | G82: =G64*Interventions!$C$103 -> 0.5781123421 | H82: =H64*Interventions!$C$103 -> 0.5781123421 | I82: =I64*Interventions!$C$103 -> 0.3240309391 | J82: =J64*Interventions!$C$103 -> 0.5781123421 | K82: =K64*Interventions!$C$103 -> 0.5781123421 | L82: =L64*Interventions!$C$103 -> 0.3240309391 | M82: =M64*Interventions!$C$103 -> 0.5781123421 | N82: =N64*Interventions!$C$103 -> 0.5781123421 | O82: =O64*Interventions!$C$103 -> 0.3240309391 | P82: =P64*Interventions!$C$103 -> 0.5781123421 | Q82: =Q64*Interventions!$C$103 -> 0.5781123421 | R82: =R64*Interventions!$C$103 -> 0.3240309391 | S82: =S64*Interventions!$C$103 -> 0.5781123421 | T82: =T64*Interventions!$C$103 -> 0.5781123421 | U82: =U64*Interventions!$C$103 -> 0.3240309391 | V82: =V64*Interventions!$C$103 -> 0.5781123421 | W82: =W64*Interventions!$C$103 -> 0.5781123421 | X82: =X64*Interventions!$C$103 -> 0.3240309391 | Y82: =Y64*Interventions!$C$103 -> 0.5781123421 | Z82: =Z64*Interventions!$C$103 -> 0.5781123421 | AA82: =AA64*Interventions!$C$103 -> 0.3240309391 | AB82: =AB64*Interventions!$C$103 -> 0.5781123421 | AC82: =AC64*Interventions!$C$103 -> 0.5781123421 | AD82: =AD64*Interventions!$C$103 -> 0.3240309391 | AE82: =AE64*Interventions!$C$103 -> 0.5781123421 | AF82: =IF((AF64*Interventions!$C$103)>(1-SUM(AF81,AF83)),1-SUM(AF81,AF83),AF64*Interventions!$C$103) -> 0.5781123421
B83: Implant | C83: =C65*Interventions!$E$112 -> 0.1005619094 | D83: =D65*Interventions!$E$112 -> 0.05177444842 | E83: =E65*Interventions!$E$112 -> 0 | F83: =F65*Interventions!$E$112 -> 0.1005619094 | G83: =G65*Interventions!$E$112 -> 0.05177444842 | H83: =H65*Interventions!$E$112 -> 0 | I83: =I65*Interventions!$E$112 -> 0.1005619094 | J83: =J65*Interventions!$E$112 -> 0.05177444842 | K83: =K65*Interventions!$E$112 -> 0 | L83: =L65*Interventions!$E$112 -> 0.1005619094 | M83: =M65*Interventions!$E$112 -> 0.05177444842 | N83: =N65*Interventions!$E$112 -> 0 | O83: =O65*Interventions!$E$112 -> 0.1005619094 | P83: =P65*Interventions!$E$112 -> 0.05177444842 | Q83: =Q65*Interventions!$E$112 -> 0 | R83: =R65*Interventions!$E$112 -> 0.1005619094 | S83: =S65*Interventions!$E$112 -> 0.05177444842 | T83: =T65*Interventions!$E$112 -> 0 | U83: =U65*Interventions!$E$112 -> 0.1005619094 | V83: =V65*Interventions!$E$112 -> 0.05177444842 | W83: =W65*Interventions!$E$112 -> 0 | X83: =X65*Interventions!$E$112 -> 0.1005619094 | Y83: =Y65*Interventions!$E$112 -> 0.05177444842 | Z83: =Z65*Interventions!$E$112 -> 0 | AA83: =AA65*Interventions!$E$112 -> 0.1005619094 | AB83: =AB65*Interventions!$E$112 -> 0.05177444842 | AC83: =AC65*Interventions!$E$112 -> 0 | AD83: =AD65*Interventions!$E$112 -> 0.1005619094 | AE83: =AE65*Interventions!$E$112 -> 0.05177444842 | AF83: 0
B84: IUD | C84: =C$66 -> 0.018 | D84: =D$66 -> 0.0075 | E84: 0 | F84: 0.018 | G84: 0.0075 | H84: 0 | I84: 0.018 | J84: 0.0075 | K84: 0 | L84: 0.018 | M84: 0.0075 | N84: 0 | O84: 0.018 | P84: 0.0075 | Q84: 0 | R84: 0.018 | S84: 0.0075 | T84: 0 | U84: 0.018 | V84: 0.0075 | W84: 0 | X84: 0.018 | Y84: 0.0075 | Z84: 0 | AA84: 0.018 | AB84: 0.0075 | AC84: 0 | AD84: 0.018 | AE84: 0.0075
B85: No method | C85: =1-SUM(C81:C84) -> 0.1305335791 | D85: =1-SUM(D81:D84) -> 0.06331104949 | E85: =1-SUM(E81:E83) -> 0.4553549107 | F85: =1-SUM(F81:F84) -> 0.1305335791 | G85: =1-SUM(G81:G84) -> 0.06331104949 | H85: =1-SUM(H81:H83) -> 0.4218876579 | I85: =1-SUM(I81:I84) -> 0.1305335791 | J85: =1-SUM(J81:J84) -> 0.06331104949 | K85: =1-SUM(K81:K83) -> 0.4218876579 | L85: =1-SUM(L81:L84) -> 0.1305335791 | M85: =1-SUM(M81:M84) -> 0.06331104949 | N85: =1-SUM(N81:N83) -> 0.4218876579 | O85: =1-SUM(O81:O84) -> 0.1305335791 | P85: =1-SUM(P81:P84) -> 0.06331104949 | Q85: =1-SUM(Q81:Q83) -> 0.4218876579 | R85: =1-SUM(R81:R84) -> 0.1305335791 | S85: 0.06331104949 | T85: 0.4218876579 | U85: 0.1305335791 | V85: 0.06331104949 | W85: 0.4218876579 | X85: 0.1305335791 | Y85: 0.06331104949 | Z85: 0.4218876579 | AA85: 0.1305335791 | AB85: 0.06331104949 | AC85: 0.4218876579 | AD85: 0.1305335791 | AE85: 0.06331104949 | AF85: =1-SUM(AF81:AF83) -> 0.4218876579 | AH85: =C64*Interventions!$C$103 -> 0.3240309391
B86: Scenario 1, Intervention 4 | AH86: =C112*Interventions!$D$103 -> 0.319806253
B87: Pill | C87: =Interventions!C156 -> 0.4089611176 | D87: =Interventions!D156 -> 0.255492509 | E87: =E63-((E88-E64)*Interventions!H132) -> 0 | F87: =$C87 -> 0.4089611176 | G87: =$D87 -> 0.255492509 | H87: =$C87 -> 0.4089611176 | I87: =$C87 -> 0.4089611176 | J87: =$D87 -> 0.255492509 | K87: =$C87 -> 0.4089611176 | L87: =L63 -> 0.435 | M87: =M63 -> 0.305 | N87: =$C87 -> 0.4089611176 | O87: =O63 -> 0.435 | P87: 0.305 | Q87: =$C87 -> 0.4089611176 | R87: =R63 -> 0.435 | S87: 0.305 | T87: =$D87 -> 0.255492509 | U87: =U63 -> 0.435 | V87: 0.305 | W87: =$C87 -> 0.4089611176 | X87: =X63 -> 0.435 | Y87: 0.305 | Z87: =$C87 -> 0.4089611176 | AA87: =AA63 -> 0.435 | AB87: 0.305 | AC87: =$C87 -> 0.4089611176 | AD87: =AD63 -> 0.435 | AE87: 0.305 | AF87: =$D87 -> 0.255492509
B88: Condom | C88: =Interventions!C157 -> 0.3617690498 | D88: =Interventions!D157 -> 0.6454419238 | E88: =E64*Interventions!$C$137 -> 0.6080769231 | F88: =$C88 -> 0.3617690498 | G88: =G64*Interventions!$C$137 -> 0.6454419238 | H88: =H64*Interventions!$C$137 -> 0.6454419238 | I88: =$C88 -> 0.3617690498 | J88: =J64*Interventions!$C$137 -> 0.6454419238 | K88: =K64*Interventions!$C$137 -> 0.6454419238 | L88: =L64 -> 0.3135331765 | M88: 0.5593830006 | N88: =N64*Interventions!$C$137 -> 0.6454419238 | O88: 0.3135331765 | P88: 0.5593830006 | Q88: =Q64*Interventions!$C$137 -> 0.6454419238 | R88: 0.3135331765 | S88: 0.5593830006 | T88: =T64*Interventions!$C$137 -> 0.6454419238 | U88: 0.3135331765 | V88: 0.5593830006 | W88: =W64*Interventions!$C$137 -> 0.6454419238 | X88: 0.3135331765 | Y88: 0.5593830006 | Z88: =Z64*Interventions!$C$137 -> 0.6454419238 | AA88: 0.3135331765 | AB88: 0.5593830006 | AC88: =AC64*Interventions!$C$137 -> 0.6454419238 | AD88: 0.3135331765 | AE88: 0.5593830006 | AF88: =IF((AF64*Interventions!$C$137)>(1-SUM(AF87,AF89)),1-SUM(AF87,AF89),AF64*Interventions!$C$137) -> 0.6454419238
B89: Implant | C89: =Interventions!C158 -> 0.09495419052 | D89: =Interventions!D158 -> 0.04355937859 | E89: =E65*Interventions!$C$145 -> 0 | F89: =$C89 -> 0.09495419052 | G89: =$D89 -> 0.04355937859 | H89: =H65*Interventions!$C$145 -> 0 | I89: =$C89 -> 0.09495419052 | J89: =$D89 -> 0.04355937859 | K89: =K65*Interventions!$C$145 -> 0 | L89: 0.101 | M89: 0.052 | N89: =N65*Interventions!$C$145 -> 0 | O89: 0.101 | P89: 0.052 | Q89: =Q65*Interventions!$C$145 -> 0 | R89: 0.101 | S89: 0.052 | T89: =$D89 -> 0.04355937859 | U89: 0.101 | V89: 0.052 | W89: =W65*Interventions!$C$145 -> 0 | X89: 0.101 | Y89: 0.052 | Z89: =Z65*Interventions!$C$145 -> 0 | AA89: 0.101 | AB89: 0.052 | AC89: =AC65*Interventions!$C$145 -> 0 | AD89: 0.101 | AE89: 0.052 | AF89: =$D89 -> 0.04355937859
B90: IUD | C90: =Interventions!C159 -> 0.016922529 | D90: =Interventions!D159 -> 0.006282602681 | E90: =E$66 -> 0 | F90: =C$90 -> 0.016922529 | G90: =D$90 -> 0.006282602681 | H90: =H$66 -> 0 | I90: =F$90 -> 0.016922529 | J90: =G$90 -> 0.006282602681 | K90: =K$66 -> 0 | L90: 0.018 | M90: 0.0075 | N90: =N$66 -> 0 | O90: 0.018 | P90: 0.0075 | Q90: =Q$66 -> 0 | R90: 0.018 | S90: 0.0075 | T90: =T$66 -> 0 | U90: 0.018 | V90: 0.0075 | W90: =W$66 -> 0 | X90: 0.018 | Y90: 0.0075 | Z90: =Z$66 -> 0 | AA90: 0.018 | AB90: 0.0075 | AC90: =AC$66 -> 0 | AD90: 0.018 | AE90: 0.0075
B91: No method | C91: =Interventions!C160 -> 0.1173931131 | D91: =Interventions!D160 -> 0.0492235859 | E91: =1-SUM(E87:E89) -> 0.3919230769 | F91: =1-SUM(F87:F90) -> 0.1173931131 | G91: =1-SUM(G87:G90) -> 0.0492235859 | H91: =1-SUM(H87:H89) -> -0.05440304136 | I91: =1-SUM(I87:I90) -> 0.1173931131 | J91: =1-SUM(J87:J90) -> 0.0492235859 | K91: =1-SUM(K87:K89) -> -0.05440304136 | L91: =1-SUM(L87:L90) -> 0.1324668235 | M91: =1-SUM(M87:M90) -> 0.07611699939 | N91: =1-SUM(N87:N89) -> -0.05440304136 | O91: =1-SUM(O87:O90) -> 0.1324668235 | P91: =1-SUM(P87:P90) -> 0.07611699939 | Q91: =1-SUM(Q87:Q89) -> -0.05440304136 | R91: =1-SUM(R87:R90) -> 0.1324668235 | S91: 0.07611699939 | T91: 0.05550618858 | U91: 0.1324668235 | V91: 0.07611699939 | W91: -0.05440304136 | X91: 0.1324668235 | Y91: 0.07611699939 | Z91: -0.05440304136 | AA91: 0.1324668235 | AB91: 0.07611699939 | AC91: -0.05440304136 | AD91: 0.1324668235 | AE91: 0.07611699939 | AF91: =1-SUM(AF87:AF89) -> 0.05550618858
B92: Scenario 1, Intervention 5
B93: Pill | C93: =C63 -> 0.435 | D93: =D63 -> 0.305 | E93: 0 | F93: 0.435 | G93: 0.305 | H93: 0 | I93: 0.435 | J93: 0.305 | K93: 0 | L93: 0.435 | M93: 0.305 | N93: 0 | O93: 0.435 | P93: 0.305 | Q93: 0 | R93: 0.435 | S93: 0.305 | T93: 0 | U93: 0.435 | V93: 0.305 | W93: 0 | X93: 0.435 | Y93: 0.305 | Z93: 0 | AA93: 0.435 | AB93: 0.305 | AC93: 0 | AD93: 0.435 | AE93: 0.305 | AF93: 0
B94: Condom | C94: =C64 -> 0.3135331765 | D94: =D64 -> 0.5593830006 | E94: 0.527 | F94: 0.3135331765 | G94: 0.5593830006 | H94: 0.5593830006 | I94: 0.3135331765 | J94: 0.5593830006 | K94: 0.5593830006 | L94: 0.3135331765 | M94: 0.5593830006 | N94: 0.5593830006 | O94: 0.3135331765 | P94: 0.5593830006 | Q94: 0.5593830006 | R94: 0.3135331765 | S94: 0.5593830006 | T94: 0.5593830006 | U94: 0.3135331765 | V94: 0.5593830006 | W94: 0.5593830006 | X94: 0.3135331765 | Y94: 0.5593830006 | Z94: 0.5593830006 | AA94: 0.3135331765 | AB94: 0.5593830006 | AC94: 0.5593830006 | AD94: 0.3135331765 | AE94: 0.5593830006 | AF94: =AF88+0.04 -> 0.6854419238
B95: Implant | C95: =C65 -> 0.101 | D95: =D65 -> 0.052 | E95: 0 | F95: 0.101 | G95: 0.052 | H95: 0 | I95: 0.101 | J95: 0.052 | K95: 0 | L95: 0.101 | M95: 0.052 | N95: 0 | O95: 0.101 | P95: 0.052 | Q95: 0 | R95: 0.101 | S95: 0.052 | T95: 0 | U95: 0.101 | V95: 0.052 | W95: 0 | X95: 0.101 | Y95: 0.052 | Z95: 0 | AA95: 0.101 | AB95: 0.052 | AC95: 0 | AD95: 0.101 | AE95: 0.052 | AF95: 0
B96: IUD | C96: =C$66 -> 0.018 | D96: =D$66 -> 0.0075 | E96: 0 | F96: 0.018 | G96: 0.0075 | H96: 0 | I96: 0.018 | J96: 0.0075 | K96: 0 | L96: 0.018 | M96: 0.0075 | N96: 0 | O96: 0.018 | P96: 0.0075 | Q96: 0 | R96: 0.018 | S96: 0.0075 | T96: 0 | U96: 0.018 | V96: 0.0075 | W96: 0 | X96: 0.018 | Y96: 0.0075 | Z96: 0 | AA96: 0.018 | AB96: 0.0075 | AC96: 0 | AD96: 0.018 | AE96: 0.0075
B97: No method | C97: =1-SUM(C93:C96) -> 0.1324668235 | D97: =1-SUM(D93:D96) -> 0.07611699939 | E97: =1-SUM(E93:E95) -> 0.473 | F97: =1-SUM(F93:F96) -> 0.1324668235 | G97: =1-SUM(G93:G96) -> 0.07611699939 | H97: =1-SUM(H93:H95) -> 0.4406169994 | I97: =1-SUM(I93:I96) -> 0.1324668235 | J97: =1-SUM(J93:J96) -> 0.07611699939 | K97: =1-SUM(K93:K95) -> 0.4406169994 | L97: =1-SUM(L93:L96) -> 0.1324668235 | M97: =1-SUM(M93:M96) -> 0.07611699939 | N97: =1-SUM(N93:N95) -> 0.4406169994 | O97: =1-SUM(O93:O96) -> 0.1324668235 | P97: =1-SUM(P93:P96) -> 0.07611699939 | Q97: =1-SUM(Q93:Q95) -> 0.4406169994 | R97: =1-SUM(R93:R96) -> 0.1324668235 | S97: 0.07611699939 | T97: 0.4406169994 | U97: 0.1324668235 | V97: 0.07611699939 | W97: 0.4406169994 | X97: 0.1324668235 | Y97: 0.07611699939 | Z97: 0.4406169994 | AA97: 0.1324668235 | AB97: 0.07611699939 | AC97: 0.4406169994 | AD97: 0.1324668235 | AE97: 0.07611699939 | AF97: =1-SUM(AF93:AF95) -> 0.3145580762
B98: Scenario 1, Intervention 6
B99: Pill | C99: =C63 -> 0.435 | D99: =D63 -> 0.305 | E99: 0 | F99: 0.435 | G99: 0.305 | H99: 0 | I99: 0.435 | J99: 0.305 | K99: 0 | L99: 0.435 | M99: 0.305 | N99: 0 | O99: 0.435 | P99: 0.305 | Q99: 0 | R99: 0.435 | S99: 0.305 | T99: 0 | U99: 0.435 | V99: 0.305 | W99: 0 | X99: 0.435 | Y99: 0.305 | Z99: 0 | AA99: 0.435 | AB99: 0.305 | AC99: 0 | AD99: 0.435 | AE99: 0.305 | AF99: 0
B100: Condom | C100: =C64 -> 0.3135331765 | D100: =D64 -> 0.5593830006 | E100: 0.527 | F100: 0.3135331765 | G100: 0.5593830006 | H100: 0.5593830006 | I100: 0.3135331765 | J100: 0.5593830006 | K100: 0.5593830006 | L100: 0.3135331765 | M100: 0.5593830006 | N100: 0.5593830006 | O100: 0.3135331765 | P100: 0.5593830006 | Q100: 0.5593830006 | R100: 0.3135331765 | S100: 0.5593830006 | T100: 0.5593830006 | U100: 0.3135331765 | V100: 0.5593830006 | W100: 0.5593830006 | X100: 0.3135331765 | Y100: 0.5593830006 | Z100: 0.5593830006 | AA100: 0.3135331765 | AB100: 0.5593830006 | AC100: 0.5593830006 | AD100: 0.3135331765 | AE100: 0.5593830006 | AF100: 0.527
B101: Implant | C101: =C65 -> 0.101 | D101: =D65 -> 0.052 | E101: 0 | F101: 0.101 | G101: 0.052 | H101: 0 | I101: 0.101 | J101: 0.052 | K101: 0 | L101: 0.101 | M101: 0.052 | N101: 0 | O101: 0.101 | P101: 0.052 | Q101: 0 | R101: 0.101 | S101: 0.052 | T101: 0 | U101: 0.101 | V101: 0.052 | W101: 0 | X101: 0.101 | Y101: 0.052 | Z101: 0 | AA101: 0.101 | AB101: 0.052 | AC101: 0 | AD101: 0.101 | AE101: 0.052 | AF101: 0
B102: IUD | C102: =C$66 -> 0.018 | D102: =D$66 -> 0.0075 | E102: 0 | F102: 0.018 | G102: 0.0075 | H102: 0 | I102: 0.018 | J102: 0.0075 | K102: 0 | L102: 0.018 | M102: 0.0075 | N102: 0 | O102: 0.018 | P102: 0.0075 | Q102: 0 | R102: 0.018 | S102: 0.0075 | T102: 0 | U102: 0.018 | V102: 0.0075 | W102: 0 | X102: 0.018 | Y102: 0.0075 | Z102: 0 | AA102: 0.018 | AB102: 0.0075 | AC102: 0 | AD102: 0.018 | AE102: 0.0075
B103: No method | C103: =1-SUM(C99:C102) -> 0.1324668235 | D103: =1-SUM(D99:D102) -> 0.07611699939 | E103: =1-SUM(E99:E101) -> 0.473 | F103: =1-SUM(F99:F102) -> 0.1324668235 | G103: =1-SUM(G99:G102) -> 0.07611699939 | H103: =1-SUM(H99:H101) -> 0.4406169994 | I103: =1-SUM(I99:I102) -> 0.1324668235 | J103: =1-SUM(J99:J102) -> 0.07611699939 | K103: =1-SUM(K99:K101) -> 0.4406169994 | L103: =1-SUM(L99:L102) -> 0.1324668235 | M103: =1-SUM(M99:M102) -> 0.07611699939 | N103: =1-SUM(N99:N101) -> 0.4406169994 | O103: =1-SUM(O99:O102) -> 0.1324668235 | P103: =1-SUM(P99:P102) -> 0.07611699939 | Q103: =1-SUM(Q99:Q101) -> 0.4406169994 | R103: =1-SUM(R99:R102) -> 0.1324668235 | S103: 0.07611699939 | T103: 0.4406169994 | U103: 0.1324668235 | V103: 0.07611699939 | W103: 0.4406169994 | X103: 0.1324668235 | Y103: 0.07611699939 | Z103: 0.4406169994 | AA103: 0.1324668235 | AB103: 0.07611699939 | AC103: 0.4406169994 | AD103: 0.1324668235 | AE103: 0.07611699939 | AF103: =1-SUM(AF99:AF101) -> 0.473
B104: Scenario 1, Intervention 7
B105: Pill | C105: =C63 -> 0.435 | D105: =D63 -> 0.305 | E105: 0 | F105: 0.435 | G105: 0.305 | H105: 0 | I105: 0.435 | J105: 0.305 | K105: 0 | L105: 0.435 | M105: 0.305 | N105: 0 | O105: 0.435 | P105: 0.305 | Q105: 0 | R105: 0.435 | S105: 0.305 | T105: 0 | U105: 0.435 | V105: 0.305 | W105: 0 | X105: 0.435 | Y105: 0.305 | Z105: 0 | AA105: 0.435 | AB105: 0.305 | AC105: 0 | AD105: 0.435 | AE105: 0.305 | AF105: 0
B106: Condom | C106: =C64 -> 0.3135331765 | D106: =D64 -> 0.5593830006 | E106: 0.527 | F106: 0.3135331765 | G106: 0.5593830006 | H106: 0.5593830006 | I106: 0.3135331765 | J106: 0.5593830006 | K106: 0.5593830006 | L106: 0.3135331765 | M106: 0.5593830006 | N106: 0.5593830006 | O106: 0.3135331765 | P106: 0.5593830006 | Q106: 0.5593830006 | R106: 0.3135331765 | S106: 0.5593830006 | T106: 0.5593830006 | U106: 0.3135331765 | V106: 0.5593830006 | W106: 0.5593830006 | X106: 0.3135331765 | Y106: 0.5593830006 | Z106: 0.5593830006 | AA106: 0.3135331765 | AB106: 0.5593830006 | AC106: 0.5593830006 | AD106: 0.3135331765 | AE106: 0.5593830006 | AF106: 0.527
B107: Implant | C107: =C65 -> 0.101 | D107: =D65 -> 0.052 | E107: 0 | F107: 0.101 | G107: 0.052 | H107: 0 | I107: 0.101 | J107: 0.052 | K107: 0 | L107: 0.101 | M107: 0.052 | N107: 0 | O107: 0.101 | P107: 0.052 | Q107: 0 | R107: 0.101 | S107: 0.052 | T107: 0 | U107: 0.101 | V107: 0.052 | W107: 0 | X107: 0.101 | Y107: 0.052 | Z107: 0 | AA107: 0.101 | AB107: 0.052 | AC107: 0 | AD107: 0.101 | AE107: 0.052 | AF107: 0
B108: IUD | C108: =C$66 -> 0.018 | D108: =D$66 -> 0.0075 | E108: 0 | F108: 0.018 | G108: 0.0075 | H108: 0 | I108: 0.018 | J108: 0.0075 | K108: 0 | L108: 0.018 | M108: 0.0075 | N108: 0 | O108: 0.018 | P108: 0.0075 | Q108: 0 | R108: 0.018 | S108: 0.0075 | T108: 0 | U108: 0.018 | V108: 0.0075 | W108: 0 | X108: 0.018 | Y108: 0.0075 | Z108: 0 | AA108: 0.018 | AB108: 0.0075 | AC108: 0 | AD108: 0.018 | AE108: 0.0075
B109: No method | C109: =1-SUM(C105:C108) -> 0.1324668235 | D109: =1-SUM(D105:D108) -> 0.07611699939 | E109: =1-SUM(E105:E107) -> 0.473 | F109: =1-SUM(F105:F108) -> 0.1324668235 | G109: =1-SUM(G105:G108) -> 0.07611699939 | H109: =1-SUM(H105:H107) -> 0.4406169994 | I109: =1-SUM(I105:I108) -> 0.1324668235 | J109: =1-SUM(J105:J108) -> 0.07611699939 | K109: =1-SUM(K105:K107) -> 0.4406169994 | L109: =1-SUM(L105:L108) -> 0.1324668235 | M109: =1-SUM(M105:M108) -> 0.07611699939 | N109: =1-SUM(N105:N107) -> 0.4406169994 | O109: =1-SUM(O105:O108) -> 0.1324668235 | P109: =1-SUM(P105:P108) -> 0.07611699939 | Q109: =1-SUM(Q105:Q107) -> 0.4406169994 | R109: =1-SUM(R105:R108) -> 0.1324668235 | S109: 0.07611699939 | T109: 0.4406169994 | U109: 0.1324668235 | V109: 0.07611699939 | W109: 0.4406169994 | X109: 0.1324668235 | Y109: 0.07611699939 | Z109: 0.4406169994 | AA109: 0.1324668235 | AB109: 0.07611699939 | AC109: 0.4406169994 | AD109: 0.1324668235 | AE109: 0.07611699939 | AF109: =1-SUM(AF105:AF107) -> 0.473
B110: Scenario 1, Intervention 8
B111: Pill | C111: =Interventions!C328 -> 0.4411012197 | D111: =D63 -> 0.305 | E111: 0 | F111: =Interventions!F328 -> 0.4411012197 | G111: 0.305 | H111: 0 | I111: =Interventions!I328 -> 0.4411012197 | J111: 0.305 | K111: 0 | L111: =Interventions!L328 -> 0.4411012197 | M111: 0.305 | N111: 0 | O111: =Interventions!O328 -> 0.4411012197 | P111: 0.305 | Q111: 0 | R111: =Interventions!R328 -> 0.4411012197 | S111: 0.305 | T111: 0 | U111: =Interventions!U328 -> 0.4411012197 | V111: 0.305 | W111: 0 | X111: =Interventions!X328 -> 0.4411012197 | Y111: 0.305 | Z111: 0 | AA111: =Interventions!AA328 -> 0.4411012197 | AB111: 0.305 | AC111: 0 | AD111: =Interventions!AD328 -> 0.4411012197 | AE111: 0.305 | AF111: 0
B112: Condom | C112: =Interventions!C329 -> 0.3094453593 | D112: =D64 -> 0.5593830006 | E112: 0.527 | F112: =Interventions!F329 -> 0.3094453593 | G112: 0.5593830006 | H112: 0.5593830006 | I112: =Interventions!I329 -> 0.3094453593 | J112: 0.5593830006 | K112: 0.5593830006 | L112: =Interventions!L329 -> 0.3094453593 | M112: 0.5593830006 | N112: 0.5593830006 | O112: =Interventions!O329 -> 0.3094453593 | P112: 0.5593830006 | Q112: 0.5593830006 | R112: =Interventions!R329 -> 0.3094453593 | S112: 0.5593830006 | T112: 0.5593830006 | U112: =Interventions!U329 -> 0.3094453593 | V112: 0.5593830006 | W112: 0.5593830006 | X112: =Interventions!X329 -> 0.3094453593 | Y112: 0.5593830006 | Z112: 0.5593830006 | AA112: =Interventions!AA329 -> 0.3094453593 | AB112: 0.5593830006 | AC112: 0.5593830006 | AD112: =Interventions!AD329 -> 0.3094453593 | AE112: 0.5593830006 | AF112: 0.527
B113: Implant | C113: =Interventions!C330 -> 0.101 | D113: =D65 -> 0.052 | E113: 0 | F113: =Interventions!F330 -> 0.101 | G113: 0.052 | H113: 0 | I113: =Interventions!I330 -> 0.101 | J113: 0.052 | K113: 0 | L113: =Interventions!L330 -> 0.101 | M113: 0.052 | N113: 0 | O113: =Interventions!O330 -> 0.101 | P113: 0.052 | Q113: 0 | R113: =Interventions!R330 -> 0.101 | S113: 0.052 | T113: 0 | U113: =Interventions!U330 -> 0.101 | V113: 0.052 | W113: 0 | X113: =Interventions!X330 -> 0.101 | Y113: 0.052 | Z113: 0 | AA113: =Interventions!AA330 -> 0.101 | AB113: 0.052 | AC113: 0 | AD113: =Interventions!AD330 -> 0.101 | AE113: 0.052 | AF113: 0
B114: IUD | C114: =Interventions!C331 -> 0.018 | D114: 0.0075 | E114: 0 | F114: =Interventions!F331 -> 0.018 | G114: 0.0075 | H114: 0 | I114: =Interventions!I331 -> 0.018 | J114: 0.0075 | K114: 0 | L114: =Interventions!L331 -> 0.018 | M114: 0.0075 | N114: 0 | O114: =Interventions!O331 -> 0.018 | P114: 0.0075 | Q114: 0 | R114: =Interventions!R331 -> 0.018 | S114: 0.0075 | T114: 0 | U114: =Interventions!U331 -> 0.018 | V114: 0.0075 | W114: 0 | X114: =Interventions!X331 -> 0.018 | Y114: 0.0075 | Z114: 0 | AA114: =Interventions!AA331 -> 0.018 | AB114: 0.0075 | AC114: 0 | AD114: =Interventions!AD331 -> 0.018 | AE114: 0.0075
B115: No method | C115: =Interventions!C332 -> 0.130453421 | D115: 0.07611699939 | E115: 0.473 | F115: =Interventions!F332 -> 0.130453421 | G115: 0.07611699939 | H115: 0.4406169994 | I115: =Interventions!I332 -> 0.130453421 | J115: 0.07611699939 | K115: 0.4406169994 | L115: =Interventions!L332 -> 0.130453421 | M115: 0.07611699939 | N115: 0.4406169994 | O115: =Interventions!O332 -> 0.130453421 | P115: 0.07611699939 | Q115: 0.4406169994 | R115: =Interventions!R332 -> 0.130453421 | S115: 0.07611699939 | T115: 0.4406169994 | U115: =Interventions!U332 -> 0.130453421 | V115: 0.07611699939 | W115: 0.4406169994 | X115: =Interventions!X332 -> 0.130453421 | Y115: 0.07611699939 | Z115: 0.4406169994 | AA115: =Interventions!AA332 -> 0.130453421 | AB115: 0.07611699939 | AC115: 0.4406169994 | AD115: =Interventions!AD332 -> 0.130453421 | AE115: 0.07611699939 | AF115: =1-SUM(AF111:AF113) -> 0.473
B116: Scenario 2, Intervention 1
B117: Pill | C117: =$C$63 -> 0.435 | D117: =$D$63 -> 0.305 | E117: =E63 -> 0 | F117: 0.435 | G117: 0.305 | H117: 0 | I117: 0.435 | J117: 0.305 | K117: 0 | L117: 0.435 | M117: 0.305 | N117: 0 | O117: 0.435 | P117: 0.305 | Q117: 0 | R117: 0.435 | S117: 0.305 | T117: 0 | U117: 0.435 | V117: 0.305 | W117: 0 | X117: 0.435 | Y117: 0.305 | Z117: 0 | AA117: 0.435 | AB117: 0.305 | AC117: 0 | AD117: 0.435 | AE117: 0.305 | AF117: 0
B118: Condom | C118: =$C$64 -> 0.3135331765 | D118: =$D$64 -> 0.5593830006 | E118: =E64 -> 0.527 | F118: =$C118 -> 0.3135331765 | G118: =$D118 -> 0.5593830006 | H118: =H64 -> 0.5593830006 | I118: =$C118 -> 0.3135331765 | J118: =$D118 -> 0.5593830006 | K118: =K64 -> 0.5593830006 | L118: =$C118 -> 0.3135331765 | M118: =$D118 -> 0.5593830006 | N118: =N64 -> 0.5593830006 | O118: =$C118 -> 0.3135331765 | P118: =$D118 -> 0.5593830006 | Q118: =Q64 -> 0.5593830006 | R118: =$C118 -> 0.3135331765 | S118: =$D118 -> 0.5593830006 | T118: =T64 -> 0.5593830006 | U118: =$C118 -> 0.3135331765 | V118: =$D118 -> 0.5593830006 | W118: =W64 -> 0.5593830006 | X118: =$C118 -> 0.3135331765 | Y118: =$D118 -> 0.5593830006 | Z118: =Z64 -> 0.5593830006 | AA118: =$C118 -> 0.3135331765 | AB118: =$D118 -> 0.5593830006 | AC118: =AC64 -> 0.5593830006 | AD118: =$C118 -> 0.3135331765 | AE118: =$D118 -> 0.5593830006 | AF118: 0.527
B119: Implant | C119: =$C$65 -> 0.101 | D119: =$D$65 -> 0.052 | E119: =E65 -> 0 | F119: 0.101 | G119: 0.052 | H119: 0 | I119: 0.101 | J119: 0.052 | K119: 0 | L119: 0.101 | M119: 0.052 | N119: 0 | O119: 0.101 | P119: 0.052 | Q119: 0 | R119: 0.101 | S119: 0.052 | T119: 0 | U119: 0.101 | V119: 0.052 | W119: 0 | X119: 0.101 | Y119: 0.052 | Z119: 0 | AA119: 0.101 | AB119: 0.052 | AC119: 0 | AD119: 0.101 | AE119: 0.052 | AF119: 0
B120: IUD | C120: =C$66 -> 0.018 | D120: =D$66 -> 0.0075 | E120: 0 | F120: 0.018 | G120: 0.0075 | H120: 0 | I120: 0.018 | J120: 0.0075 | K120: 0 | L120: 0.018 | M120: 0.0075 | N120: 0 | O120: 0.018 | P120: 0.0075 | Q120: 0 | R120: 0.018 | S120: 0.0075 | T120: 0 | U120: 0.018 | V120: 0.0075 | W120: 0 | X120: 0.018 | Y120: 0.0075 | Z120: 0 | AA120: 0.018 | AB120: 0.0075 | AC120: 0 | AD120: 0.018 | AE120: 0.0075
B121: No method | C121: =1-SUM(C117:C120) -> 0.1324668235 | D121: =1-SUM(D117:D120) -> 0.07611699939 | E121: =1-SUM(E117:E119) -> 0.473 | F121: =1-SUM(F117:F120) -> 0.1324668235 | G121: =1-SUM(G117:G120) -> 0.07611699939 | H121: =1-SUM(H117:H119) -> 0.4406169994 | I121: =1-SUM(I117:I120) -> 0.1324668235 | J121: =1-SUM(J117:J120) -> 0.07611699939 | K121: =1-SUM(K117:K119) -> 0.4406169994 | L121: =1-SUM(L117:L120) -> 0.1324668235 | M121: =1-SUM(M117:M120) -> 0.07611699939 | N121: =1-SUM(N117:N119) -> 0.4406169994 | O121: =1-SUM(O117:O120) -> 0.1324668235 | P121: =1-SUM(P117:P120) -> 0.07611699939 | Q121: =1-SUM(Q117:Q119) -> 0.4406169994 | R121: =1-SUM(R117:R120) -> 0.1324668235 | S121: 0.07611699939 | T121: 0.4406169994 | U121: 0.1324668235 | V121: 0.07611699939 | W121: 0.4406169994 | X121: 0.1324668235 | Y121: 0.07611699939 | Z121: 0.4406169994 | AA121: 0.1324668235 | AB121: 0.07611699939 | AC121: 0.4406169994 | AD121: 0.1324668235 | AE121: 0.07611699939 | AF121: =1-SUM(AF117:AF119) -> 0.473
B122: Scenario 2, Intervention 2
B123: Pill | C123: =C63 -> 0.435 | D123: =D63 -> 0.305 | E123: 0 | F123: 0.435 | G123: 0.305 | H123: 0 | I123: 0.435 | J123: 0.305 | K123: 0 | L123: 0.435 | M123: 0.305 | N123: 0 | O123: 0.435 | P123: 0.305 | Q123: 0 | R123: 0.435 | S123: 0.305 | T123: 0 | U123: 0.435 | V123: 0.305 | W123: 0 | X123: 0.435 | Y123: 0.305 | Z123: 0 | AA123: 0.435 | AB123: 0.305 | AC123: 0 | AD123: 0.435 | AE123: 0.305 | AF123: 0
B124: Condom | C124: =C118 -> 0.3135331765 | D124: =D118 -> 0.5593830006 | E124: 0.527 | F124: 0.3135331765 | G124: 0.5593830006 | H124: 0.5593830006 | I124: 0.3135331765 | J124: 0.5593830006 | K124: 0.5593830006 | L124: 0.3135331765 | M124: 0.5593830006 | N124: 0.5593830006 | O124: 0.3135331765 | P124: 0.5593830006 | Q124: 0.5593830006 | R124: 0.3135331765 | S124: 0.5593830006 | T124: 0.5593830006 | U124: 0.3135331765 | V124: 0.5593830006 | W124: 0.5593830006 | X124: 0.3135331765 | Y124: 0.5593830006 | Z124: 0.5593830006 | AA124: 0.3135331765 | AB124: 0.5593830006 | AC124: 0.5593830006 | AD124: 0.3135331765 | AE124: 0.5593830006 | AF124: 0.527
B125: Implant | C125: =C65 -> 0.101 | D125: =D65 -> 0.052 | E125: 0 | F125: 0.101 | G125: 0.052 | H125: 0 | I125: 0.101 | J125: 0.052 | K125: 0 | L125: 0.101 | M125: 0.052 | N125: 0 | O125: 0.101 | P125: 0.052 | Q125: 0 | R125: 0.101 | S125: 0.052 | T125: 0 | U125: 0.101 | V125: 0.052 | W125: 0 | X125: 0.101 | Y125: 0.052 | Z125: 0 | AA125: 0.101 | AB125: 0.052 | AC125: 0 | AD125: 0.101 | AE125: 0.052 | AF125: 0
B126: IUD | C126: =C$66 -> 0.018 | D126: =D$66 -> 0.0075 | E126: 0 | F126: 0.018 | G126: 0.0075 | H126: 0 | I126: 0.018 | J126: 0.0075 | K126: 0 | L126: 0.018 | M126: 0.0075 | N126: 0 | O126: 0.018 | P126: 0.0075 | Q126: 0 | R126: 0.018 | S126: 0.0075 | T126: 0 | U126: 0.018 | V126: 0.0075 | W126: 0 | X126: 0.018 | Y126: 0.0075 | Z126: 0 | AA126: 0.018 | AB126: 0.0075 | AC126: 0 | AD126: 0.018 | AE126: 0.0075
B127: No method | C127: =1-SUM(C123:C126) -> 0.1324668235 | D127: =1-SUM(D123:D126) -> 0.07611699939 | E127: =1-SUM(E123:E125) -> 0.473 | F127: =1-SUM(F123:F126) -> 0.1324668235 | G127: =1-SUM(G123:G126) -> 0.07611699939 | H127: =1-SUM(H123:H125) -> 0.4406169994 | I127: =1-SUM(I123:I126) -> 0.1324668235 | J127: =1-SUM(J123:J126) -> 0.07611699939 | K127: =1-SUM(K123:K125) -> 0.4406169994 | L127: =1-SUM(L123:L126) -> 0.1324668235 | M127: =1-SUM(M123:M126) -> 0.07611699939 | N127: =1-SUM(N123:N125) -> 0.4406169994 | O127: =1-SUM(O123:O126) -> 0.1324668235 | P127: =1-SUM(P123:P126) -> 0.07611699939 | Q127: =1-SUM(Q123:Q125) -> 0.4406169994 | R127: =1-SUM(R123:R126) -> 0.1324668235 | S127: 0.07611699939 | T127: 0.4406169994 | U127: 0.1324668235 | V127: 0.07611699939 | W127: 0.4406169994 | X127: 0.1324668235 | Y127: 0.07611699939 | Z127: 0.4406169994 | AA127: 0.1324668235 | AB127: 0.07611699939 | AC127: 0.4406169994 | AD127: 0.1324668235 | AE127: 0.07611699939 | AF127: =1-SUM(AF123:AF125) -> 0.473
B128: Scenario 2, Intervention 3
B129: Pill | C129: =C63*Interventions!$F$111 -> 0.4268735724 | D129: =D63*Interventions!$F$111 -> 0.2993021599 | E129: =E63*Interventions!$F$111 -> 0 | F129: =F63*Interventions!$F$111 -> 0.4268735724 | G129: =G63*Interventions!$F$111 -> 0.2993021599 | H129: =H63*Interventions!$F$111 -> 0 | I129: =I63*Interventions!$F$111 -> 0.4268735724 | J129: =J63*Interventions!$F$111 -> 0.2993021599 | K129: =K63*Interventions!$F$111 -> 0 | L129: =L63*Interventions!$F$111 -> 0.4268735724 | M129: =M63*Interventions!$F$111 -> 0.2993021599 | N129: =N63*Interventions!$F$111 -> 0 | O129: =O63*Interventions!$F$111 -> 0.4268735724 | P129: =P63*Interventions!$F$111 -> 0.2993021599 | Q129: =Q63*Interventions!$F$111 -> 0 | R129: =R63*Interventions!$F$111 -> 0.4268735724 | S129: =S63*Interventions!$F$111 -> 0.2993021599 | T129: =T63*Interventions!$F$111 -> 0 | U129: =U63*Interventions!$F$111 -> 0.4268735724 | V129: =V63*Interventions!$F$111 -> 0.2993021599 | W129: =W63*Interventions!$F$111 -> 0 | X129: =X63*Interventions!$F$111 -> 0.4268735724 | Y129: =Y63*Interventions!$F$111 -> 0.2993021599 | Z129: =Z63*Interventions!$F$111 -> 0 | AA129: =AA63*Interventions!$F$111 -> 0.4268735724 | AB129: =AB63*Interventions!$F$111 -> 0.2993021599 | AC129: =AC63*Interventions!$F$111 -> 0 | AD129: =AD63*Interventions!$F$111 -> 0.4268735724 | AE129: =AE63*Interventions!$F$111 -> 0.2993021599 | AF129: 0
B130: Condom | C130: =C118*Interventions!$D$103 -> 0.3240309391 | D130: =D118*Interventions!$D$103 -> 0.5781123421 | E130: =E118*Interventions!$D$103 -> 0.5446450893 | F130: =F118*Interventions!$D$103 -> 0.3240309391 | G130: =G118*Interventions!$D$103 -> 0.5781123421 | H130: =H118*Interventions!$D$103 -> 0.5781123421 | I130: =I118*Interventions!$D$103 -> 0.3240309391 | J130: =J118*Interventions!$D$103 -> 0.5781123421 | K130: =K118*Interventions!$D$103 -> 0.5781123421 | L130: =L118*Interventions!$D$103 -> 0.3240309391 | M130: =M118*Interventions!$D$103 -> 0.5781123421 | N130: =N118*Interventions!$D$103 -> 0.5781123421 | O130: =O118*Interventions!$D$103 -> 0.3240309391 | P130: =P118*Interventions!$D$103 -> 0.5781123421 | Q130: =Q118*Interventions!$D$103 -> 0.5781123421 | R130: =R118*Interventions!$D$103 -> 0.3240309391 | S130: =S118*Interventions!$D$103 -> 0.5781123421 | T130: =T118*Interventions!$D$103 -> 0.5781123421 | U130: =U118*Interventions!$D$103 -> 0.3240309391 | V130: =V118*Interventions!$D$103 -> 0.5781123421 | W130: =W118*Interventions!$D$103 -> 0.5781123421 | X130: =X118*Interventions!$D$103 -> 0.3240309391 | Y130: =Y118*Interventions!$D$103 -> 0.5781123421 | Z130: =Z118*Interventions!$D$103 -> 0.5781123421 | AA130: =AA118*Interventions!$D$103 -> 0.3240309391 | AB130: =AB118*Interventions!$D$103 -> 0.5781123421 | AC130: =AC118*Interventions!$D$103 -> 0.5781123421 | AD130: =AD118*Interventions!$D$103 -> 0.3240309391 | AE130: =AE118*Interventions!$D$103 -> 0.5781123421 | AF130: =IF((AF118*Interventions!$D$103)>(1-SUM(AF129,AF131)),1-SUM(AF129,AF131),AF118*Interventions!$D$103) -> 0.5446450893
B131: Implant | C131: =C65*Interventions!$F$112 -> 0.1005619094 | D131: =D65*Interventions!$F$112 -> 0.05177444842 | E131: =E65*Interventions!$F$112 -> 0 | F131: =F65*Interventions!$F$112 -> 0.1005619094 | G131: =G65*Interventions!$F$112 -> 0.05177444842 | H131: =H65*Interventions!$F$112 -> 0 | I131: =I65*Interventions!$F$112 -> 0.1005619094 | J131: =J65*Interventions!$F$112 -> 0.05177444842 | K131: =K65*Interventions!$F$112 -> 0 | L131: =L65*Interventions!$F$112 -> 0.1005619094 | M131: =M65*Interventions!$F$112 -> 0.05177444842 | N131: =N65*Interventions!$F$112 -> 0 | O131: =O65*Interventions!$F$112 -> 0.1005619094 | P131: =P65*Interventions!$F$112 -> 0.05177444842 | Q131: =Q65*Interventions!$F$112 -> 0 | R131: =R65*Interventions!$F$112 -> 0.1005619094 | S131: =S65*Interventions!$F$112 -> 0.05177444842 | T131: =T65*Interventions!$F$112 -> 0 | U131: =U65*Interventions!$F$112 -> 0.1005619094 | V131: =V65*Interventions!$F$112 -> 0.05177444842 | W131: =W65*Interventions!$F$112 -> 0 | X131: =X65*Interventions!$F$112 -> 0.1005619094 | Y131: =Y65*Interventions!$F$112 -> 0.05177444842 | Z131: =Z65*Interventions!$F$112 -> 0 | AA131: =AA65*Interventions!$F$112 -> 0.1005619094 | AB131: =AB65*Interventions!$F$112 -> 0.05177444842 | AC131: =AC65*Interventions!$F$112 -> 0 | AD131: =AD65*Interventions!$F$112 -> 0.1005619094 | AE131: =AE65*Interventions!$F$112 -> 0.05177444842 | AF131: 0
B132: IUD | C132: =C$66 -> 0.018 | D132: =D$66 -> 0.0075 | E132: 0 | F132: 0.018 | G132: 0.0075 | H132: 0 | I132: 0.018 | J132: 0.0075 | K132: 0 | L132: 0.018 | M132: 0.0075 | N132: 0 | O132: 0.018 | P132: 0.0075 | Q132: 0 | R132: 0.018 | S132: 0.0075 | T132: 0 | U132: 0.018 | V132: 0.0075 | W132: 0 | X132: 0.018 | Y132: 0.0075 | Z132: 0 | AA132: 0.018 | AB132: 0.0075 | AC132: 0 | AD132: 0.018 | AE132: 0.0075
B133: No method | C133: =1-SUM(C129:C132) -> 0.1305335791 | D133: =1-SUM(D129:D132) -> 0.06331104949 | E133: =1-SUM(E129:E131) -> 0.4553549107 | F133: =1-SUM(F129:F132) -> 0.1305335791 | G133: =1-SUM(G129:G132) -> 0.06331104949 | H133: =1-SUM(H129:H131) -> 0.4218876579 | I133: =1-SUM(I129:I132) -> 0.1305335791 | J133: =1-SUM(J129:J132) -> 0.06331104949 | K133: =1-SUM(K129:K131) -> 0.4218876579 | L133: =1-SUM(L129:L132) -> 0.1305335791 | M133: =1-SUM(M129:M132) -> 0.06331104949 | N133: =1-SUM(N129:N131) -> 0.4218876579 | O133: =1-SUM(O129:O132) -> 0.1305335791 | P133: =1-SUM(P129:P132) -> 0.06331104949 | Q133: =1-SUM(Q129:Q131) -> 0.4218876579 | R133: =1-SUM(R129:R132) -> 0.1305335791 | S133: 0.06331104949 | T133: 0.4218876579 | U133: 0.1305335791 | V133: 0.06331104949 | W133: 0.4218876579 | X133: 0.1305335791 | Y133: 0.06331104949 | Z133: 0.4218876579 | AA133: 0.1305335791 | AB133: 0.06331104949 | AC133: 0.4218876579 | AD133: 0.1305335791 | AE133: 0.06331104949 | AF133: =1-SUM(AF129:AF131) -> 0.4553549107
B134: Scenario 2, Intervention 4
B135: Pill | C135: =Interventions!E156 -> 0.4089611176 | D135: =Interventions!F156 -> 0.255492509 | E135: =E63-(((E136-E64)*(E117/(E117+E119))*Interventions!$F$132)) ->  | F135: =$C135 -> 0.4089611176 | G135: =$D135 -> 0.255492509 | H135: =H63*Interventions!$C$145 -> 0 | I135: =$C135 -> 0.4089611176 | J135: =$D135 -> 0.255492509 | K135: =K63*Interventions!$C$145 -> 0 | L135: =L$63 -> 0.435 | M135: =M$63 -> 0.305 | N135: 0 | O135: 0.435 | P135: 0.305 | Q135: 0 | R135: 0.435 | S135: 0.305 | T135: 0 | U135: 0.435 | V135: 0.305 | W135: 0 | X135: 0.435 | Y135: 0.305 | Z135: 0 | AA135: 0.435 | AB135: 0.305 | AC135: 0 | AD135: 0.435 | AE135: 0.305 | AF135: 0
B136: Condom | C136: =Interventions!E157 -> 0.3617690498 | D136: =Interventions!F157 -> 0.6454419238 | E136: =E64*Interventions!$D$137 -> 0.6080769231 | F136: =$C136 -> 0.3617690498 | G136: =$D136 -> 0.6454419238 | H136: =H64*Interventions!$D$137 -> 0.6454419238 | I136: =$C136 -> 0.3617690498 | J136: =$D136 -> 0.6454419238 | K136: =K64*Interventions!$D$137 -> 0.6454419238 | L136: =L$64 -> 0.3135331765 | M136: =M$64 -> 0.5593830006 | N136: 0.5593830006 | O136: 0.3135331765 | P136: 0.5593830006 | Q136: 0.5593830006 | R136: 0.3135331765 | S136: 0.5593830006 | T136: 0.5593830006 | U136: 0.3135331765 | V136: 0.5593830006 | W136: 0.5593830006 | X136: 0.3135331765 | Y136: 0.5593830006 | Z136: 0.5593830006 | AA136: 0.3135331765 | AB136: 0.5593830006 | AC136: 0.5593830006 | AD136: 0.3135331765 | AE136: 0.5593830006 | AF136: =AF64*Interventions!$D$137 -> 0.6454419238
B137: Implant | C137: =Interventions!E158 -> 0.09495419052 | D137: =Interventions!F158 -> 0.04355937859 | E137: =IF(E65-(((E65/(E63+E65))*(E136-E64)*Interventions!$F$132))<0,0,(E65-(((E65/(E63+E65))*(E136-E64)*Interventions!$F$132)))) ->  | F137: =$C137 -> 0.09495419052 | G137: =$D137 -> 0.04355937859 | H137: =H65*Interventions!$C$145 -> 0 | I137: =$C137 -> 0.09495419052 | J137: =$D137 -> 0.04355937859 | K137: =K65*Interventions!$C$145 -> 0 | L137: =L$65 -> 0.101 | M137: =M$65 -> 0.052 | N137: 0 | O137: 0.101 | P137: 0.052 | Q137: 0 | R137: 0.101 | S137: 0.052 | T137: 0 | U137: 0.101 | V137: 0.052 | W137: 0 | X137: 0.101 | Y137: 0.052 | Z137: 0 | AA137: 0.101 | AB137: 0.052 | AC137: 0 | AD137: 0.101 | AE137: 0.052 | AF137: 0
B138: IUD | C138: =Interventions!E159 -> 0.016922529 | D138: =Interventions!F159 -> 0.006282602681 | E138: =E$66 -> 0 | F138: =$C138 -> 0.016922529 | G138: =$D138 -> 0.006282602681 | H138: =H$66 -> 0 | I138: =$C138 -> 0.016922529 | J138: =$D138 -> 0.006282602681 | K138: =K$66 -> 0 | L138: =L$66 -> 0.018 | M138: 0.0075 | N138: 0 | O138: 0.018 | P138: 0.0075 | Q138: 0 | R138: 0.018 | S138: 0.0075 | T138: 0 | U138: 0.018 | V138: 0.0075 | W138: 0 | X138: 0.018 | Y138: 0.0075 | Z138: 0 | AA138: 0.018 | AB138: 0.0075 | AC138: 0 | AD138: 0.018 | AE138: 0.0075
B139: No method | C139: =Interventions!E160 -> 0.1173931131 | D139: =Interventions!F160 -> 0.0492235859 | E139: =1-SUM(E135:E137) ->  | F139: =$C139 -> 0.1173931131 | G139: =$D139 -> 0.0492235859 | H139: =1-SUM(H135:H137) -> 0.3545580762 | I139: =$C139 -> 0.1173931131 | J139: =$D139 -> 0.0492235859 | K139: =1-SUM(K135:K137) -> 0.3545580762 | L139: =1-SUM(L135:L138) -> 0.1324668235 | M139: =1-SUM(M135:M138) -> 0.07611699939 | N139: 0.4406169994 | O139: 0.1324668235 | P139: 0.07611699939 | Q139: 0.4406169994 | R139: 0.1324668235 | S139: 0.07611699939 | T139: 0.4406169994 | U139: 0.1324668235 | V139: 0.07611699939 | W139: 0.4406169994 | X139: 0.1324668235 | Y139: 0.07611699939 | Z139: 0.4406169994 | AA139: 0.1324668235 | AB139: 0.07611699939 | AC139: 0.4406169994 | AD139: 0.1324668235 | AE139: 0.07611699939 | AF139: =1-SUM(AF135:AF137) -> 0.3545580762
B140: Scenario 2, Intervention 5
B141: Pill | C141: =C63 -> 0.435 | D141: 0.305 | E141: 0 | F141: 0.435 | G141: 0.305 | H141: 0 | I141: 0.435 | J141: 0.305 | K141: 0 | L141: 0.435 | M141: 0.305 | N141: 0 | O141: 0.435 | P141: 0.305 | Q141: 0 | R141: 0.435 | S141: 0.305 | T141: 0 | U141: 0.435 | V141: 0.305 | W141: 0 | X141: 0.435 | Y141: 0.305 | Z141: 0 | AA141: 0.435 | AB141: 0.305 | AC141: 0 | AD141: 0.435 | AE141: 0.305 | AF141: 0
B142: Condom | C142: =C118 -> 0.3135331765 | D142: 0.5593830006 | E142: 0.527 | F142: 0.3135331765 | G142: 0.5593830006 | H142: 0.5593830006 | I142: 0.3135331765 | J142: 0.5593830006 | K142: 0.5593830006 | L142: 0.3135331765 | M142: 0.5593830006 | N142: 0.5593830006 | O142: 0.3135331765 | P142: 0.5593830006 | Q142: 0.5593830006 | R142: 0.3135331765 | S142: 0.5593830006 | T142: 0.5593830006 | U142: 0.3135331765 | V142: 0.5593830006 | W142: 0.5593830006 | X142: 0.3135331765 | Y142: 0.5593830006 | Z142: 0.5593830006 | AA142: 0.3135331765 | AB142: 0.5593830006 | AC142: 0.5593830006 | AD142: 0.3135331765 | AE142: 0.5593830006 | AF142: 0.527
B143: Implant | C143: =C65 -> 0.101 | D143: 0.052 | E143: 0 | F143: 0.101 | G143: 0.052 | H143: 0 | I143: 0.101 | J143: 0.052 | K143: 0 | L143: 0.101 | M143: 0.052 | N143: 0 | O143: 0.101 | P143: 0.052 | Q143: 0 | R143: 0.101 | S143: 0.052 | T143: 0 | U143: 0.101 | V143: 0.052 | W143: 0 | X143: 0.101 | Y143: 0.052 | Z143: 0 | AA143: 0.101 | AB143: 0.052 | AC143: 0 | AD143: 0.101 | AE143: 0.052 | AF143: 0
B144: IUD | C144: =C$66 -> 0.018 | D144: =D$66 -> 0.0075 | E144: 0 | F144: 0.018 | G144: 0.0075 | H144: 0 | I144: 0.018 | J144: 0.0075 | K144: 0 | L144: 0.018 | M144: 0.0075 | N144: 0 | O144: 0.018 | P144: 0.0075 | Q144: 0 | R144: 0.018 | S144: 0.0075 | T144: 0 | U144: 0.018 | V144: 0.0075 | W144: 0 | X144: 0.018 | Y144: 0.0075 | Z144: 0 | AA144: 0.018 | AB144: 0.0075 | AC144: 0 | AD144: 0.018 | AE144: 0.0075
B145: No method | C145: =1-SUM(C141:C144) -> 0.1324668235 | D145: =1-SUM(D141:D144) -> 0.07611699939 | E145: =1-SUM(E141:E143) -> 0.473 | F145: =1-SUM(F141:F144) -> 0.1324668235 | G145: =1-SUM(G141:G144) -> 0.07611699939 | H145: =1-SUM(H141:H143) -> 0.4406169994 | I145: =1-SUM(I141:I144) -> 0.1324668235 | J145: =1-SUM(J141:J144) -> 0.07611699939 | K145: =1-SUM(K141:K143) -> 0.4406169994 | L145: =1-SUM(L141:L144) -> 0.1324668235 | M145: =1-SUM(M141:M144) -> 0.07611699939 | N145: =1-SUM(N141:N143) -> 0.4406169994 | O145: =1-SUM(O141:O144) -> 0.1324668235 | P145: =1-SUM(P141:P144) -> 0.07611699939 | Q145: =1-SUM(Q141:Q143) -> 0.4406169994 | R145: =1-SUM(R141:R144) -> 0.1324668235 | S145: 0.07611699939 | T145: 0.4406169994 | U145: 0.1324668235 | V145: 0.07611699939 | W145: 0.4406169994 | X145: 0.1324668235 | Y145: 0.07611699939 | Z145: 0.4406169994 | AA145: 0.1324668235 | AB145: 0.07611699939 | AC145: 0.4406169994 | AD145: 0.1324668235 | AE145: 0.07611699939 | AF145: =1-SUM(AF141:AF143) -> 0.473
B146: Scenario 2, Intervention 6
B147: Pill | C147: =C63 -> 0.435 | D147: 0.305 | E147: 0 | F147: 0.435 | G147: 0.305 | H147: 0 | I147: 0.435 | J147: 0.305 | K147: 0 | L147: 0.435 | M147: 0.305 | N147: 0 | O147: 0.435 | P147: 0.305 | Q147: 0 | R147: 0.435 | S147: 0.305 | T147: 0 | U147: 0.435 | V147: 0.305 | W147: 0 | X147: 0.435 | Y147: 0.305 | Z147: 0 | AA147: 0.435 | AB147: 0.305 | AC147: 0 | AD147: 0.435 | AE147: 0.305 | AF147: 0
B148: Condom | C148: =C118 -> 0.3135331765 | D148: 0.5593830006 | E148: 0.527 | F148: 0.3135331765 | G148: 0.5593830006 | H148: 0.5593830006 | I148: 0.3135331765 | J148: 0.5593830006 | K148: 0.5593830006 | L148: 0.3135331765 | M148: 0.5593830006 | N148: 0.5593830006 | O148: 0.3135331765 | P148: 0.5593830006 | Q148: 0.5593830006 | R148: 0.3135331765 | S148: 0.5593830006 | T148: 0.5593830006 | U148: 0.3135331765 | V148: 0.5593830006 | W148: 0.5593830006 | X148: 0.3135331765 | Y148: 0.5593830006 | Z148: 0.5593830006 | AA148: 0.3135331765 | AB148: 0.5593830006 | AC148: 0.5593830006 | AD148: 0.3135331765 | AE148: 0.5593830006 | AF148: 0.527
B149: Implant | C149: =C65 -> 0.101 | D149: 0.052 | E149: 0 | F149: 0.101 | G149: 0.052 | H149: 0 | I149: 0.101 | J149: 0.052 | K149: 0 | L149: 0.101 | M149: 0.052 | N149: 0 | O149: 0.101 | P149: 0.052 | Q149: 0 | R149: 0.101 | S149: 0.052 | T149: 0 | U149: 0.101 | V149: 0.052 | W149: 0 | X149: 0.101 | Y149: 0.052 | Z149: 0 | AA149: 0.101 | AB149: 0.052 | AC149: 0 | AD149: 0.101 | AE149: 0.052 | AF149: 0
B150: IUD | C150: =C$66 -> 0.018 | D150: =D$66 -> 0.0075 | E150: 0 | F150: 0.018 | G150: 0.0075 | H150: 0 | I150: 0.018 | J150: 0.0075 | K150: 0 | L150: 0.018 | M150: 0.0075 | N150: 0 | O150: 0.018 | P150: 0.0075 | Q150: 0 | R150: 0.018 | S150: 0.0075 | T150: 0 | U150: 0.018 | V150: 0.0075 | W150: 0 | X150: 0.018 | Y150: 0.0075 | Z150: 0 | AA150: 0.018 | AB150: 0.0075 | AC150: 0 | AD150: 0.018 | AE150: 0.0075
B151: No method | C151: =1-SUM(C147:C150) -> 0.1324668235 | D151: =1-SUM(D147:D150) -> 0.07611699939 | E151: =1-SUM(E147:E149) -> 0.473 | F151: =1-SUM(F147:F150) -> 0.1324668235 | G151: =1-SUM(G147:G150) -> 0.07611699939 | H151: =1-SUM(H147:H149) -> 0.4406169994 | I151: =1-SUM(I147:I150) -> 0.1324668235 | J151: =1-SUM(J147:J150) -> 0.07611699939 | K151: =1-SUM(K147:K149) -> 0.4406169994 | L151: =1-SUM(L147:L150) -> 0.1324668235 | M151: =1-SUM(M147:M150) -> 0.07611699939 | N151: =1-SUM(N147:N149) -> 0.4406169994 | O151: =1-SUM(O147:O150) -> 0.1324668235 | P151: =1-SUM(P147:P150) -> 0.07611699939 | Q151: =1-SUM(Q147:Q149) -> 0.4406169994 | R151: =1-SUM(R147:R150) -> 0.1324668235 | S151: 0.07611699939 | T151: 0.4406169994 | U151: 0.1324668235 | V151: 0.07611699939 | W151: 0.4406169994 | X151: 0.1324668235 | Y151: 0.07611699939 | Z151: 0.4406169994 | AA151: 0.1324668235 | AB151: 0.07611699939 | AC151: 0.4406169994 | AD151: 0.1324668235 | AE151: 0.07611699939 | AF151: =1-SUM(AF147:AF149) -> 0.473
B152: Scenario 2, Intervention 7
B153: Pill | C153: =C63 -> 0.435 | D153: 0.305 | E153: 0 | F153: 0.435 | G153: 0.305 | H153: 0 | I153: 0.435 | J153: 0.305 | K153: 0 | L153: 0.435 | M153: 0.305 | N153: 0 | O153: 0.435 | P153: 0.305 | Q153: 0 | R153: 0.435 | S153: 0.305 | T153: 0 | U153: 0.435 | V153: 0.305 | W153: 0 | X153: 0.435 | Y153: 0.305 | Z153: 0 | AA153: 0.435 | AB153: 0.305 | AC153: 0 | AD153: 0.435 | AE153: 0.305 | AF153: 0
B154: Condom | C154: =C118 -> 0.3135331765 | D154: 0.5593830006 | E154: 0.527 | F154: 0.3135331765 | G154: 0.5593830006 | H154: 0.5593830006 | I154: 0.3135331765 | J154: 0.5593830006 | K154: 0.5593830006 | L154: 0.3135331765 | M154: 0.5593830006 | N154: 0.5593830006 | O154: 0.3135331765 | P154: 0.5593830006 | Q154: 0.5593830006 | R154: 0.3135331765 | S154: 0.5593830006 | T154: 0.5593830006 | U154: 0.3135331765 | V154: 0.5593830006 | W154: 0.5593830006 | X154: 0.3135331765 | Y154: 0.5593830006 | Z154: 0.5593830006 | AA154: 0.3135331765 | AB154: 0.5593830006 | AC154: 0.5593830006 | AD154: 0.3135331765 | AE154: 0.5593830006 | AF154: 0.527
B155: Implant | C155: =C65 -> 0.101 | D155: 0.052 | E155: 0 | F155: 0.101 | G155: 0.052 | H155: 0 | I155: 0.101 | J155: 0.052 | K155: 0 | L155: 0.101 | M155: 0.052 | N155: 0 | O155: 0.101 | P155: 0.052 | Q155: 0 | R155: 0.101 | S155: 0.052 | T155: 0 | U155: 0.101 | V155: 0.052 | W155: 0 | X155: 0.101 | Y155: 0.052 | Z155: 0 | AA155: 0.101 | AB155: 0.052 | AC155: 0 | AD155: 0.101 | AE155: 0.052 | AF155: 0
B156: IUD | C156: =C$66 -> 0.018 | D156: =D$66 -> 0.0075 | E156: 0 | F156: 0.018 | G156: 0.0075 | H156: 0 | I156: 0.018 | J156: 0.0075 | K156: 0 | L156: 0.018 | M156: 0.0075 | N156: 0 | O156: 0.018 | P156: 0.0075 | Q156: 0 | R156: 0.018 | S156: 0.0075 | T156: 0 | U156: 0.018 | V156: 0.0075 | W156: 0 | X156: 0.018 | Y156: 0.0075 | Z156: 0 | AA156: 0.018 | AB156: 0.0075 | AC156: 0 | AD156: 0.018 | AE156: 0.0075
B157: No method | C157: =1-SUM(C153:C156) -> 0.1324668235 | D157: =1-SUM(D153:D156) -> 0.07611699939 | E157: =1-SUM(E153:E155) -> 0.473 | F157: =1-SUM(F153:F156) -> 0.1324668235 | G157: =1-SUM(G153:G156) -> 0.07611699939 | H157: =1-SUM(H153:H155) -> 0.4406169994 | I157: =1-SUM(I153:I156) -> 0.1324668235 | J157: =1-SUM(J153:J156) -> 0.07611699939 | K157: =1-SUM(K153:K155) -> 0.4406169994 | L157: =1-SUM(L153:L156) -> 0.1324668235 | M157: =1-SUM(M153:M156) -> 0.07611699939 | N157: =1-SUM(N153:N155) -> 0.4406169994 | O157: =1-SUM(O153:O156) -> 0.1324668235 | P157: =1-SUM(P153:P156) -> 0.07611699939 | Q157: =1-SUM(Q153:Q155) -> 0.4406169994 | R157: =1-SUM(R153:R156) -> 0.1324668235 | S157: 0.07611699939 | T157: 0.4406169994 | U157: 0.1324668235 | V157: 0.07611699939 | W157: 0.4406169994 | X157: 0.1324668235 | Y157: 0.07611699939 | Z157: 0.4406169994 | AA157: 0.1324668235 | AB157: 0.07611699939 | AC157: 0.4406169994 | AD157: 0.1324668235 | AE157: 0.07611699939 | AF157: =1-SUM(AF153:AF155) -> 0.473
B158: Scenario 2, Intervention 8
B159: Pill | C159: =Interventions!C344 -> 0.4411012197 | D159: =D63 -> 0.305 | E159: 0 | F159: =$C159 -> 0.4411012197 | G159: =G63 -> 0.305 | H159: 0 | I159: =$C159 -> 0.4411012197 | J159: =J63 -> 0.305 | K159: 0 | L159: =$C159 -> 0.4411012197 | M159: =M63 -> 0.305 | N159: 0 | O159: =$C159 -> 0.4411012197 | P159: =P63 -> 0.305 | Q159: 0 | R159: =$C159 -> 0.4411012197 | S159: =S63 -> 0.305 | T159: 0 | U159: =$C159 -> 0.4411012197 | V159: =V63 -> 0.305 | W159: 0 | X159: =$C159 -> 0.4411012197 | Y159: =Y63 -> 0.305 | Z159: 0 | AA159: =$C159 -> 0.4411012197 | AB159: =AB63 -> 0.305 | AC159: 0 | AD159: =$C159 -> 0.4411012197 | AE159: =AE63 -> 0.305 | AF159: 0
B160: Condom | C160: =Interventions!C345 -> 0.3094453593 | D160: 0.5593830006 | E160: 0.527 | F160: =$C160 -> 0.3094453593 | G160: 0.5593830006 | H160: 0.5593830006 | I160: =$C160 -> 0.3094453593 | J160: 0.5593830006 | K160: 0.5593830006 | L160: =$C160 -> 0.3094453593 | M160: 0.5593830006 | N160: 0.5593830006 | O160: =$C160 -> 0.3094453593 | P160: 0.5593830006 | Q160: 0.5593830006 | R160: =$C160 -> 0.3094453593 | S160: 0.5593830006 | T160: 0.5593830006 | U160: =$C160 -> 0.3094453593 | V160: 0.5593830006 | W160: 0.5593830006 | X160: =$C160 -> 0.3094453593 | Y160: 0.5593830006 | Z160: 0.5593830006 | AA160: =$C160 -> 0.3094453593 | AB160: 0.5593830006 | AC160: 0.5593830006 | AD160: =$C160 -> 0.3094453593 | AE160: =AE64 -> 0.5593830006 | AF160: 0.527
B161: Implant | C161: =Interventions!C346 -> 0.101 | D161: 0.052 | E161: 0 | F161: =$C161 -> 0.101 | G161: 0.052 | H161: 0 | I161: =$C161 -> 0.101 | J161: 0.052 | K161: 0 | L161: =$C161 -> 0.101 | M161: 0.052 | N161: 0 | O161: =$C161 -> 0.101 | P161: 0.052 | Q161: 0 | R161: =$C161 -> 0.101 | S161: 0.052 | T161: 0 | U161: =$C161 -> 0.101 | V161: 0.052 | W161: 0 | X161: =$C161 -> 0.101 | Y161: 0.052 | Z161: 0 | AA161: =$C161 -> 0.101 | AB161: 0.052 | AC161: 0 | AD161: =$C161 -> 0.101 | AE161: =AE65 -> 0.052 | AF161: 0
B162: IUD | C162: =Interventions!C347 -> 0.018 | D162: 0.0075 | E162: 0 | F162: =$C162 -> 0.018 | G162: 0.0075 | H162: 0 | I162: =$C162 -> 0.018 | J162: 0.0075 | K162: 0 | L162: =$C162 -> 0.018 | M162: 0.0075 | N162: 0 | O162: =$C162 -> 0.018 | P162: 0.0075 | Q162: 0 | R162: =$C162 -> 0.018 | S162: 0.0075 | T162: 0 | U162: =$C162 -> 0.018 | V162: 0.0075 | W162: 0 | X162: =$C162 -> 0.018 | Y162: 0.0075 | Z162: 0 | AA162: =$C162 -> 0.018 | AB162: 0.0075 | AC162: 0 | AD162: =$C162 -> 0.018 | AE162: =AE66 -> 0.0075
B163: No method | C163: =Interventions!C348 -> 0.130453421 | D163: 0.07611699939 | E163: 0.473 | F163: =$C163 -> 0.130453421 | G163: 0.07611699939 | H163: 0.4406169994 | I163: =$C163 -> 0.130453421 | J163: 0.07611699939 | K163: 0.4406169994 | L163: =$C163 -> 0.130453421 | M163: 0.07611699939 | N163: 0.4406169994 | O163: =$C163 -> 0.130453421 | P163: 0.07611699939 | Q163: 0.4406169994 | R163: =$C163 -> 0.130453421 | S163: 0.07611699939 | T163: 0.4406169994 | U163: =$C163 -> 0.130453421 | V163: 0.07611699939 | W163: 0.4406169994 | X163: =$C163 -> 0.130453421 | Y163: 0.07611699939 | Z163: 0.4406169994 | AA163: =$C163 -> 0.130453421 | AB163: 0.07611699939 | AC163: 0.4406169994 | AD163: =$C163 -> 0.130453421 | AE163: =AE67 -> 0.07611699939 | AF163: =1-SUM(AF159:AF161) -> 0.473
B166: STI transmission per act of sexual intercourse
B167: % | C167: 15 F | D167: 15 M | E167: 15 MSM | F167: 16 F | G167: 16 M | H167: 16 MSM | I167: 17 F | J167: 17 M | K167: 17 MSM | L167: 18 F | M167: 18 M | N167: 18 MSM | O167: 19 F | P167: 19 M | Q167: 19 MSM | R167: 20 F | S167: 20 M | T167: 20 MSM | U167: 21 F | V167: 21 M | W167: 21 MSM | X167: 22 F | Y167: 22 M | Z167: 22 MSM | AA167: 23 F | AB167: 23 M | AC167: 23 MSM | AD167: 24 F | AE167: 24 M | AF167: 24 MSM
B168: Chlamydia | C168: 0.045 | D168: 0.045 | E168: 0.045 | F168: 0.045 | G168: 0.045 | H168: 0.045 | I168: 0.045 | J168: 0.045 | K168: 0.045 | L168: 0.045 | M168: 0.045 | N168: 0.045 | O168: 0.045 | P168: 0.045 | Q168: 0.045 | R168: 0.045 | S168: 0.045 | T168: 0.045 | U168: 0.045 | V168: 0.045 | W168: 0.045 | X168: 0.045 | Y168: 0.045 | Z168: 0.045 | AA168: 0.045 | AB168: 0.045 | AC168: 0.045 | AD168: 0.045 | AE168: 0.045 | AF168: 0.45
B169: Gonorrhoea | C169: 0.043 | D169: 0.043 | E169: 0.043 | F169: 0.043 | G169: 0.043 | H169: 0.043 | I169: 0.043 | J169: 0.043 | K169: 0.043 | L169: 0.043 | M169: 0.043 | N169: 0.043 | O169: 0.043 | P169: 0.043 | Q169: 0.043 | R169: 0.043 | S169: 0.043 | T169: 0.043 | U169: 0.043 | V169: 0.043 | W169: 0.043 | X169: 0.043 | Y169: 0.043 | Z169: 0.043 | AA169: 0.043 | AB169: 0.043 | AC169: 0.043 | AD169: 0.043 | AE169: 0.043 | AF169: 0.53
B170: Genital warts | C170: ='Parameter calculations'!$D$164 -> 0.09711954855 | D170: ='Parameter calculations'!$D$164 -> 0.09711954855 | E170: ='Parameter calculations'!$D$164 -> 0.09711954855 | F170: ='Parameter calculations'!$D$164 -> 0.09711954855 | G170: ='Parameter calculations'!$D$164 -> 0.09711954855 | H170: ='Parameter calculations'!$D$164 -> 0.09711954855 | I170: ='Parameter calculations'!$D$164 -> 0.09711954855 | J170: ='Parameter calculations'!$D$164 -> 0.09711954855 | K170: ='Parameter calculations'!$D$164 -> 0.09711954855 | L170: ='Parameter calculations'!$D$164 -> 0.09711954855 | M170: ='Parameter calculations'!$D$164 -> 0.09711954855 | N170: ='Parameter calculations'!$D$164 -> 0.09711954855 | O170: ='Parameter calculations'!$D$164 -> 0.09711954855 | P170: ='Parameter calculations'!$D$164 -> 0.09711954855 | Q170: ='Parameter calculations'!$D$164 -> 0.09711954855 | R170: ='Parameter calculations'!$D$164 -> 0.09711954855 | S170: ='Parameter calculations'!$D$164 -> 0.09711954855 | T170: ='Parameter calculations'!$D$164 -> 0.09711954855 | U170: ='Parameter calculations'!$D$164 -> 0.09711954855 | V170: ='Parameter calculations'!$D$164 -> 0.09711954855 | W170: ='Parameter calculations'!$D$164 -> 0.09711954855 | X170: ='Parameter calculations'!$D$164 -> 0.09711954855 | Y170: ='Parameter calculations'!$D$164 -> 0.09711954855 | Z170: ='Parameter calculations'!$D$164 -> 0.09711954855 | AA170: ='Parameter calculations'!$D$164 -> 0.09711954855 | AB170: ='Parameter calculations'!$D$164 -> 0.09711954855 | AC170: ='Parameter calculations'!$D$164 -> 0.09711954855 | AD170: ='Parameter calculations'!$D$164 -> 0.09711954855 | AE170: ='Parameter calculations'!$D$164 -> 0.09711954855 | AF170: 0.6
B171: Syphilis | C171: 0.01 | D171: 0.01 | E171: 0.01 | F171: 0.01 | G171: 0.01 | H171: 0.01 | I171: 0.01 | J171: 0.01 | K171: 0.01 | L171: 0.01 | M171: 0.01 | N171: 0.01 | O171: 0.01 | P171: 0.01 | Q171: 0.01 | R171: 0.01 | S171: 0.01 | T171: 0.01 | U171: 0.01 | V171: 0.01 | W171: 0.01 | X171: 0.01 | Y171: 0.01 | Z171: 0.01 | AA171: 0.01 | AB171: 0.01 | AC171: 0.01 | AD171: 0.01 | AE171: 0.01 | AF171: 0.618
B172: HIV | C172: 0.0039 | D172: 0.0012 | E172: 0.014 | F172: 0.0039 | G172: 0.0012 | H172: 0.014 | I172: 0.0039 | J172: 0.0012 | K172: 0.014 | L172: 0.0039 | M172: 0.0012 | N172: 0.014 | O172: 0.0039 | P172: 0.0012 | Q172: 0.014 | R172: 0.0039 | S172: 0.0012 | T172: 0.014 | U172: 0.0039 | V172: 0.0012 | W172: 0.014 | X172: 0.0039 | Y172: 0.0012 | Z172: 0.014 | AA172: 0.0039 | AB172: 0.0012 | AC172: 0.014 | AD172: 0.0039 | AE172: 0.0012 | AF172: 0.0012
B173: Source | C173: Althaus (https://sti.bmj.com/content/87/Suppl_1/A175.2) for chlamydia, Holmes et al., 1969 (https://academic.oup.com/aje/article-abstract/91/2/170/144991?redirectedFrom=fulltext, Gonorrhoea), Barnabas et al., 2000 (Genital Warts), Moore et al 1963 https://www.ncbi.nlm.nih.gov/pmc/articles/PMC1915394/pdf/pubhealthreporig00083-0052.pdf (Syphilis), Boily et al., 2009 (HIV)
B174: Notes
B175: Assumptions | C175: Transmission probabilities for all sex acts equivalent to that for vaginal sex
B176: Development sequela from untreated STI
B177: PID from chlamydia if untreated | C177: =0.171 -> 0.171 | D177: 0 | E177: 0 | F177: =0.171 -> 0.171 | G177: 0 | H177: 0 | I177: =0.171 -> 0.171 | J177: 0 | K177: 0 | L177: =0.171 -> 0.171 | M177: 0 | N177: 0 | O177: =0.171 -> 0.171 | P177: 0 | Q177: 0 | R177: =0.171 -> 0.171 | S177: 0 | T177: 0 | U177: =0.171 -> 0.171 | V177: 0 | W177: 0 | X177: =0.171 -> 0.171 | Y177: 0 | Z177: 0 | AA177: =0.171 -> 0.171 | AB177: 0 | AC177: 0 | AD177: =0.171 -> 0.171 | AE177: 0 | AF177: 0
B178: PID from gonorrhoea if untreated | C178: =0.171 -> 0.171 | D178: 0 | E178: 0 | F178: =0.171 -> 0.171 | G178: 0 | H178: 0 | I178: =0.171 -> 0.171 | J178: 0 | K178: 0 | L178: =0.171 -> 0.171 | M178: 0 | N178: 0 | O178: =0.171 -> 0.171 | P178: 0 | Q178: 0 | R178: =0.171 -> 0.171 | S178: 0 | T178: 0 | U178: =0.171 -> 0.171 | V178: 0 | W178: 0 | X178: =0.171 -> 0.171 | Y178: 0 | Z178: 0 | AA178: =0.171 -> 0.171 | AB178: 0 | AC178: 0 | AD178: =0.171 -> 0.171 | AE178: 0 | AF178: 0
B179: TFI from chlamydia if untreated | C179: 0.0051 | D179: 0 | E179: 0 | F179: 0.0051 | G179: 0 | H179: 0 | I179: 0.0051 | J179: 0 | K179: 0 | L179: 0.0051 | M179: 0 | N179: 0 | O179: 0.0051 | P179: 0 | Q179: 0 | R179: 0.0051 | S179: 0 | T179: 0 | U179: 0.0051 | V179: 0 | W179: 0 | X179: 0.0051 | Y179: 0 | Z179: 0 | AA179: 0.0051 | AB179: 0 | AC179: 0 | AD179: 0.0051 | AE179: 0 | AF179: 0
B180: Source | C180: Price et al,. 2016 (PID and TFI from Chlamydia), gonorrhoea assumed equal to chlamydia as per Turner et al 2013
B181: Notes
B182: Assumptions
B183: Development sequela from treated STI
B184: PID from chlamydia if treated | C184: =(1-0.61)*C177 -> 0.06669 | D184: =(1-0.61)*D177 -> 0 | E184: 0 | F184: 0.06669 | G184: 0 | H184: 0 | I184: 0.06669 | J184: 0 | K184: 0 | L184: 0.06669 | M184: 0 | N184: 0 | O184: 0.06669 | P184: 0 | Q184: 0 | R184: 0.06669 | S184: 0 | T184: 0 | U184: 0.06669 | V184: 0 | W184: 0 | X184: 0.06669 | Y184: 0 | Z184: 0 | AA184: 0.06669 | AB184: 0 | AC184: 0 | AD184: 0.06669 | AE184: 0 | AF184: 0
B185: PID from gonorrhoea if treated | C185: =(1-0.61)*C178 -> 0.06669 | D185: 0 | E185: 0 | F185: 0.06669 | G185: 0 | H185: 0 | I185: 0.06669 | J185: 0 | K185: 0 | L185: 0.06669 | M185: 0 | N185: 0 | O185: 0.06669 | P185: 0 | Q185: 0 | R185: 0.06669 | S185: 0 | T185: 0 | U185: 0.06669 | V185: 0 | W185: 0 | X185: 0.06669 | Y185: 0 | Z185: 0 | AA185: 0.06669 | AB185: 0 | AC185: 0 | AD185: 0.06669 | AE185: 0 | AF185: 0
B186: TFI from chlamydia if treated | C186: =(1-0.61)*C179 -> 0.001989 | D186: =(1-0.61)*D179 -> 0 | E186: 0 | F186: 0.001989 | G186: 0 | H186: 0 | I186: 0.001989 | J186: 0 | K186: 0 | L186: 0.001989 | M186: 0 | N186: 0 | O186: 0.001989 | P186: 0 | Q186: 0 | R186: 0.001989 | S186: 0 | T186: 0 | U186: 0.001989 | V186: 0 | W186: 0 | X186: 0.001989 | Y186: 0 | Z186: 0 | AA186: 0.001989 | AB186: 0 | AC186: 0 | AD186: 0.001989 | AE186: 0 | AF186: 0
B187: Source | C187: Calculation
B188: Notes | C188: Based on 61% avoided through screening annually
B189: Assumptions
C190: 1. 15-17 | L190: 2. 18-19 | R190: 3. 20-24
C191: =IF(ISNUMBER(SEARCH("F",C192)),"Female",IF(ISNUMBER(SEARCH("MSM",C192)),"MSM","Male")) -> Female | D191: =IF(ISNUMBER(SEARCH("F",D192)),"Female",IF(ISNUMBER(SEARCH("MSM",D192)),"MSM","Male")) -> Male | E191: MSM | F191: Female | G191: Male | H191: MSM | I191: Female | J191: Male | K191: MSM | L191: Female | M191: Male | N191: MSM | O191: Female | P191: Male | Q191: MSM | R191: Female | S191: Male | T191: MSM | U191: Female | V191: Male | W191: MSM | X191: Female | Y191: Male | Z191: MSM | AA191: Female | AB191: Male | AC191: MSM | AD191: Female | AE191: Male
B192: STI prevalence in population | C192: 15 F | D192: 15 M | E192: 15 MSM | F192: 16 F | G192: 16 M | H192: 16 MSM | I192: 17 F | J192: 17 M | K192: 17 MSM | L192: 18 F | M192: 18 M | N192: 18 MSM | O192: 19 F | P192: 19 M | Q192: 19 MSM | R192: 20 F | S192: 20 M | T192: 20 MSM | U192: 21 F | V192: 21 M | W192: 21 MSM | X192: 22 F | Y192: 22 M | Z192: 22 MSM | AA192: 23 F | AB192: 23 M | AC192: 23 MSM | AD192: 24 F | AE192: 24 M | AF192: 24 MSM
B193: Chlamydia default prevalence | C193: 0.023 | D193: 0.001 | E193: 0.001 | F193: 0.023 | G193: 0.001 | H193: 0.001 | I193: 0.023 | J193: 0.001 | K193: 0.001 | L193: 0.047 | M193: 0.005 | N193: 0.005 | O193: 0.047 | P193: 0.005 | Q193: 0.005 | R193: 0.027 | S193: 0.034 | T193: 0.034 | U193: 0.027 | V193: 0.034 | W193: 0.034 | X193: 0.027 | Y193: 0.034 | Z193: 0.034 | AA193: 0.027 | AB193: 0.034 | AC193: 0.034 | AD193: 0.027 | AE193: 0.034
B194: Modelled prevalence percentage | C194: =dash_prev_chla_1f -> 0.023 | D194: =dash_prev_chla_1m -> 0.001 | E194: =D194 -> 0.001 | F194: =dash_prev_chla_1f -> 0.023 | G194: =dash_prev_chla_1m -> 0.001 | H194: =G194 -> 0.001 | I194: =dash_prev_chla_1f -> 0.023 | J194: =dash_prev_chla_1m -> 0.001 | K194: =J194 -> 0.001 | L194: =dash_prev_chla_2f -> 0.047 | M194: =dash_prev_chla_2m -> 0.005 | N194: =M194 -> 0.005 | O194: =dash_prev_chla_2f -> 0.047 | P194: =dash_prev_chla_2m -> 0.005 | Q194: =P194 -> 0.005 | R194: =dash_prev_chla_3f -> 0.027 | S194: =dash_prev_chla_3m -> 0.034 | T194: =S194 -> 0.034 | U194: =dash_prev_chla_3f -> 0.027 | V194: =dash_prev_chla_3m -> 0.034 | W194: =V194 -> 0.034 | X194: =dash_prev_chla_3f -> 0.027 | Y194: =dash_prev_chla_3m -> 0.034 | Z194: =Y194 -> 0.034 | AA194: =dash_prev_chla_3f -> 0.027 | AB194: =dash_prev_chla_3m -> 0.034 | AC194: =AB194 -> 0.034 | AD194: =dash_prev_chla_3f -> 0.027 | AE194: =dash_prev_chla_3m -> 0.034
B195: Modelled incidence percentage | C195: =C194*'Parameter calculations'!$C$402/'Parameter calculations'!$C$396 -> 0.03626990551 | D195: =D194*'Parameter calculations'!$D$402/'Parameter calculations'!$D$396 -> 0.001732061556 | E195: =E194*'Parameter calculations'!E402/'Parameter calculations'!E396 -> 0.001669147556 | F195: =F194*'Parameter calculations'!$C$402/'Parameter calculations'!$C$396 -> 0.03626990551 | G195: =G194*'Parameter calculations'!$D$402/'Parameter calculations'!$D$396 -> 0.001732061556 | I195: =I194*'Parameter calculations'!$C$402/'Parameter calculations'!$C$396 -> 0.03626990551 | J195: =J194*'Parameter calculations'!$D$402/'Parameter calculations'!$D$396 -> 0.001732061556 | L195: =L194*'Parameter calculations'!$C$402/'Parameter calculations'!$C$396 -> 0.07411676343 | M195: =M194*'Parameter calculations'!$D$402/'Parameter calculations'!$D$396 -> 0.008660307778 | O195: =O194*'Parameter calculations'!$C$402/'Parameter calculations'!$C$396 -> 0.07411676343 | P195: =P194*'Parameter calculations'!$D$402/'Parameter calculations'!$D$396 -> 0.008660307778 | R195: =R194*'Parameter calculations'!$C$402/'Parameter calculations'!$C$396 -> 0.04257771516 | S195: =S194*'Parameter calculations'!$D$402/'Parameter calculations'!$D$396 -> 0.05889009289 | U195: =U194*'Parameter calculations'!$C$402/'Parameter calculations'!$C$396 -> 0.04257771516 | V195: =V194*'Parameter calculations'!$D$402/'Parameter calculations'!$D$396 -> 0.05889009289 | X195: =X194*'Parameter calculations'!$C$402/'Parameter calculations'!$C$396 -> 0.04257771516 | Y195: =Y194*'Parameter calculations'!$D$402/'Parameter calculations'!$D$396 -> 0.05889009289 | AA195: =AA194*'Parameter calculations'!$C$402/'Parameter calculations'!$C$396 -> 0.04257771516 | AB195: =AB194*'Parameter calculations'!$D$402/'Parameter calculations'!$D$396 -> 0.05889009289 | AD195: =AD194*'Parameter calculations'!$C$402/'Parameter calculations'!$C$396 -> 0.04257771516 | AE195: =AE194*'Parameter calculations'!$D$402/'Parameter calculations'!$D$396 -> 0.05889009289 | AF195: =AE195 -> 0.05889009289
B196: Modelled prevalence number | C196: =C194*Parameters!C$21 -> 6603.346 | D196: =D194*Parameters!D$21 -> 302.504 | E196: =E194*Parameters!E$21 -> 0 | F196: =F194*Parameters!F$21 -> 6800.847 | G196: =G194*Parameters!G$21 -> 310.035 | H196: =H194*Parameters!H$21 -> 0 | I196: =I194*Parameters!I$21 -> 6962.905 | J196: =J194*Parameters!J$21 -> 320.527 | K196: =K194*Parameters!K$21 -> 0 | L196: =L194*Parameters!L$21 -> 14745.639 | M196: =M194*Parameters!M$21 -> 1656.98 | N196: =N194*Parameters!N$21 -> 0 | O196: =O194*Parameters!O$21 -> 15031.07 | P196: =P194*Parameters!P$21 -> 1685.975 | Q196: =Q194*Parameters!Q$21 -> 0 | R196: =R194*Parameters!R$21 -> 8982.846 | S196: =S194*Parameters!S$21 -> 11917.918 | T196: =T194*Parameters!T$21 -> 0 | U196: =U194*Parameters!U$21 -> 8995.023 | V196: =V194*Parameters!V$21 -> 12116.308 | W196: =W194*Parameters!W$21 -> 0 | X196: =X194*Parameters!X$21 -> 9144.495 | Y196: =Y194*Parameters!Y$21 -> 12165.166 | Z196: =Z194*Parameters!Z$21 -> 0 | AA196: =AA194*Parameters!AA$21 -> 9528.84 | AB196: =AB194*Parameters!AB$21 -> 12659.22 | AC196: =AC194*Parameters!AC$21 -> 0 | AD196: =AD194*Parameters!AD$21 -> 9673.425 | AE196: =AE194*Parameters!AE$21 -> 12695.464
B197: Source | C197: Sonnenberg et al 2013
B198: Notes | C198: Varies by male and female
B199: Assumptions | C199: Assumes that prevalence rates in 16-24 group are a good proxy for 15 year olds. The prevalence figures for 16 and 17 males year olds were both 0, likely due to the relatively small sample size which did not capture any cases. Upon consultation with the Steering Group these figures were updated to 0.1
B200: Gonorrhoea default prevalence | C200: 0.001 | D200: 0.001 | E200: 0.001 | F200: 0.001 | G200: 0.001 | H200: 0.001 | I200: 0.001 | J200: 0.001 | K200: 0.001 | L200: 0.001 | M200: 0.001 | N200: 0.001 | O200: 0.001 | P200: 0.001 | Q200: 0.0124 | R200: 0.002 | S200: 0.001 | T200: 0.06548 | U200: 0.002 | V200: 0.001 | W200: 0.06548 | X200: 0.002 | Y200: 0.001 | Z200: 0.06548 | AA200: 0.002 | AB200: 0.001 | AC200: 0.06548 | AD200: 0.002 | AE200: 0.001
B201: Modelled prevalence percentage | C201: =dash_prev_gon_1f -> 0.001 | D201: =dash_prev_gon_1m -> 0.001 | E201: 0 | F201: =dash_prev_gon_1f -> 0.001 | G201: =dash_prev_gon_1m -> 0.001 | H201: 0 | I201: =dash_prev_gon_1f -> 0.001 | J201: =dash_prev_gon_1m -> 0.001 | K201: 0 | L201: =dash_prev_gon_2f -> 0.001 | M201: =dash_prev_gon_2m -> 0.001 | N201: 0 | O201: =dash_prev_gon_2f -> 0.001 | P201: =dash_prev_gon_2m -> 0.001 | Q201: 0.0124 | R201: =dash_prev_gon_3f -> 0.002 | S201: =dash_prev_gon_3m -> 0.001 | T201: 0.06548 | U201: =dash_prev_gon_3f -> 0.002 | V201: =dash_prev_gon_3m -> 0.001 | W201: 0.06548 | X201: =dash_prev_gon_3f -> 0.002 | Y201: =dash_prev_gon_3m -> 0.001 | Z201: 0.06548 | AA201: =dash_prev_gon_3f -> 0.002 | AB201: =dash_prev_gon_3m -> 0.001 | AC201: 0.06548 | AD201: =dash_prev_gon_3f -> 0.002 | AE201: =dash_prev_gon_3m -> 0.001 | AF201: 0.06548
B202: Modelled prevalence number | C202: =C201*Parameters!C$21 -> 287.102 | D202: =D201*Parameters!D$21 -> 302.504 | E202: =E201*Parameters!E$21 -> 0 | F202: =F201*Parameters!F$21 -> 295.689 | G202: =G201*Parameters!G$21 -> 310.035 | H202: =H201*Parameters!H$21 -> 0 | I202: =I201*Parameters!I$21 -> 302.735 | J202: =J201*Parameters!J$21 -> 320.527 | K202: =K201*Parameters!K$21 -> 0 | L202: =L201*Parameters!L$21 -> 313.737 | M202: =M201*Parameters!M$21 -> 331.396 | N202: =N201*Parameters!N$21 -> 0 | O202: =O201*Parameters!O$21 -> 319.81 | P202: =P201*Parameters!P$21 -> 337.195 | Q202: =Q201*Parameters!Q$21 -> 0 | R202: =R201*Parameters!R$21 -> 665.396 | S202: =S201*Parameters!S$21 -> 350.527 | T202: =T201*Parameters!T$21 -> 0 | U202: =U201*Parameters!U$21 -> 666.298 | V202: =V201*Parameters!V$21 -> 356.362 | W202: =W201*Parameters!W$21 -> 0 | X202: =X201*Parameters!X$21 -> 677.37 | Y202: =Y201*Parameters!Y$21 -> 357.799 | Z202: =Z201*Parameters!Z$21 -> 0 | AA202: =AA201*Parameters!AA$21 -> 705.84 | AB202: =AB201*Parameters!AB$21 -> 372.33 | AC202: =AC201*Parameters!AC$21 -> 0 | AD202: =AD201*Parameters!AD$21 -> 716.55 | AE202: =AE201*Parameters!AE$21 -> 373.396
B203: Source | C203: Sonnenberg et al 2013
B204: Notes | C204: Varies by male and female, and age
B205: Assumptions | C205: Assumes that prevalence rates in 16-24 group are a good proxy for 15 year olds. The prevalence figures for 16-19 year old population were all 0, likely due to the relatively small sample size which did not capture any cases. Upon consultation with the Steering Group these were updated to 0.05
B206: Genital warts default prevalence | C206: =0.001 -> 0.001 | D206: =0.002 -> 0.002 | E206: 0.0106 | F206: =0.001 -> 0.001 | G206: =0.002 -> 0.002 | H206: 0.0106 | I206: =0.001 -> 0.001 | J206: =0.002 -> 0.002 | K206: 0.0106 | L206: =0.001 -> 0.001 | M206: =0.002 -> 0.002 | N206: 0.0106 | O206: =0.001 -> 0.001 | P206: =0.002 -> 0.002 | Q206: 0.0106 | R206: =0.012 -> 0.012 | S206: =0.004 -> 0.004 | T206: 0.0106 | U206: =0.012 -> 0.012 | V206: =0.004 -> 0.004 | W206: 0.0106 | X206: =0.012 -> 0.012 | Y206: =0.004 -> 0.004 | Z206: 0.0106 | AA206: =0.012 -> 0.012 | AB206: =0.004 -> 0.004 | AC206: 0.0106 | AD206: =0.012 -> 0.012 | AE206: =0.004 -> 0.004
B207: Modelled prevalence percentage | C207: =dash_prev_gen_1f -> 0.001 | D207: =dash_prev_gen_1m -> 0.002 | E207: 0.0106 | F207: =dash_prev_gen_1f -> 0.001 | G207: =dash_prev_gen_1m -> 0.002 | H207: 0.0106 | I207: =dash_prev_gen_1f -> 0.001 | J207: =dash_prev_gen_1m -> 0.002 | K207: 0.0106 | L207: =dash_prev_gen_2f -> 0.001 | M207: =dash_prev_gen_2m -> 0.002 | N207: 0.0106 | O207: =dash_prev_gen_2f -> 0.001 | P207: =dash_prev_gen_2m -> 0.002 | Q207: 0.0106 | R207: =dash_prev_gen_3f -> 0.012 | S207: =dash_prev_gen_3m -> 0.004 | T207: 0.0106 | U207: =dash_prev_gen_3f -> 0.012 | V207: =dash_prev_gen_3m -> 0.004 | W207: 0.0106 | X207: =dash_prev_gen_3f -> 0.012 | Y207: =dash_prev_gen_3m -> 0.004 | Z207: 0.0106 | AA207: =dash_prev_gen_3f -> 0.012 | AB207: =dash_prev_gen_3m -> 0.004 | AC207: 0.0106 | AD207: =dash_prev_gen_3f -> 0.012 | AE207: =dash_prev_gen_3m -> 0.004 | AF207: 0.0106
B208: Modelled prevalence number | C208: =C207*Parameters!C$21 -> 287.102 | D208: =D207*Parameters!D$21 -> 605.008 | E208: =E207*Parameters!E$21 -> 0 | F208: =F207*Parameters!F$21 -> 295.689 | G208: =G207*Parameters!G$21 -> 620.07 | H208: =H207*Parameters!H$21 -> 0 | I208: =I207*Parameters!I$21 -> 302.735 | J208: =J207*Parameters!J$21 -> 641.054 | K208: =K207*Parameters!K$21 -> 0 | L208: =L207*Parameters!L$21 -> 313.737 | M208: =M207*Parameters!M$21 -> 662.792 | N208: =N207*Parameters!N$21 -> 0 | O208: =O207*Parameters!O$21 -> 319.81 | P208: =P207*Parameters!P$21 -> 674.39 | Q208: =Q207*Parameters!Q$21 -> 0 | R208: =R207*Parameters!R$21 -> 3992.376 | S208: =S207*Parameters!S$21 -> 1402.108 | T208: =T207*Parameters!T$21 -> 0 | U208: =U207*Parameters!U$21 -> 3997.788 | V208: =V207*Parameters!V$21 -> 1425.448 | W208: =W207*Parameters!W$21 -> 0 | X208: =X207*Parameters!X$21 -> 4064.22 | Y208: =Y207*Parameters!Y$21 -> 1431.196 | Z208: =Z207*Parameters!Z$21 -> 0 | AA208: =AA207*Parameters!AA$21 -> 4235.04 | AB208: =AB207*Parameters!AB$21 -> 1489.32 | AC208: =AC207*Parameters!AC$21 -> 0 | AD208: =AD207*Parameters!AD$21 -> 4299.3 | AE208: =AE207*Parameters!AE$21 -> 1493.584
B209: Source | C209: Sonnenberg et al 2019 Table 1
... 317 more rows

Sheet Parameter calculations (hidden)
B1: Years by which mistimed pregnancies are mistimed
B3: No. of years by which pregnancy mistimed
B4: Source: | C4: CDC. Fertility, Family Planning and Reproductive Health of U.S. Women: Data from the 2002 National Survey of Family Growth. Table 22
D5: Under 1 yr | E5: 1 to under 2 | F5: 2 to under 3 | G5: 3 to under 5 | H5: 5 years or more
B6: Proportion
B7: Under 20 years | D7: 0.078 | E7: 0.066 | F7: 0.163 | G7: 0.241 | H7: 0.452
B8: 20-24 years | D8: 0.109 | E8: 0.278 | F8: 0.208 | G8: 0.186 | H8: 0.219
B10: Standardising to number of years
B11: Assumption: | C11: Makes the conservative assumption (as greater delay means greater cost of mistimed pregnancy) that the lower bound of the years range is the number of years
D12: 0 | E12: 1 | F12: 2 | G12: 3 | H12: 5
B14: Weighted average no. of years by which pregnancy mistimed
B15: Under 20 years | D15: =SUMPRODUCT(D7:H7,D12:H12) -> 3.375
B16: 20-25 years | D16: =SUMPRODUCT(D8:H8,D12:H12) -> 2.347
B19: Percentage of general population getting tested
B21: Overall number of tests, 15-24 year olds, excluding screening programme
B22: Source: | C22: National chlamydia screening programme data tables
C23: Table 1.1: Chlamydia testing data by region for 15-24 year olds
C24: 2018 data
B25: Assumption: | C25: Assumes that specialist SHSs represents non-screening programme tests, assumes that this covers all screens (i.e. all screens included chlamydia tests)
B28: Total female SHS and SRH tests | C28: =369621+55940 -> 425561
B29: 15-24 year old population, England | C29: =Parameters!C21*Parameters!C43+Parameters!F21*Parameters!F43+Parameters!I21*Parameters!I43+Parameters!L21*Parameters!L43+Parameters!O21*Parameters!O43+Parameters!R21*Parameters!R43+Parameters!U21*Parameters!U43+Parameters!X21*Parameters!X43+Parameters!AA21*Parameters!AA43+Parameters!AD21*Parameters!AD43 -> 2379930.762
B30: Total as % of England population | C30: =C28/C29 -> 0.1788123448
B32: Total female additional chlamydia tests (total - SHS- SRH) | C32: 495015
B33: 15-24 year old female population, England | C33: =C29 -> 2379930.762
B34: Total as % of England population | C34: =C32/C33 -> 0.2079955467
B36: Total male tests | C36: 374878
B37: 15-24 year old population, England | C37: =Parameters!D21*Parameters!D43+Parameters!G21*Parameters!G43+Parameters!J21*Parameters!J43+Parameters!M21*Parameters!M43+Parameters!P21*Parameters!P43+Parameters!S21*Parameters!S43+Parameters!V21*Parameters!V43+Parameters!Y21*Parameters!Y43+Parameters!AB21*Parameters!AB43+Parameters!AE21*Parameters!AE43 -> 2494585.778
B38: Total as % of England population | C38: =C36/C37 -> 0.1502766525
B41: Tests by type
B42: Source: | C42: PHE Sexually transmitted infections (STIs) annual data tables
C43: Table 4: All STI diagnoses and services by gender and sexual risk, 2013 to 2018
C44: 2018 data
B45: Assumption: | C45: For simplicity the model assumes people either get a full set of STI tests or they get just a chlamydia test, or a full set of tests (in this case all T2-T4 are assumed to be T4s)
B47: List of tests relevant to this model
B48: T1 | C48: Chlamydia only
B49: T2 | C49: Chlamydia & gonorrhoea
B50: T3 | C50: Chlamydia, gonorrhoea & syphilis
B51: T4 | C51: Chlamydia, gonorrhoea, syphilis & HIV
B52: P1A | C52: HIV test
B53: T7 | C53: Syphilis & HIV
B55: Number of tests by type, from data table
C56: T2-T4 | D56: T1-T4 total | E56: T1-T4 SHS
B57: Male | C57: 837108 | D57: 1082933 | E57: 716170
B58: Female | C58: 1041772 | D58: 2224669 | E58: 828717
B59: Total | C59: 1883344 | D59: 3326382 | E59: 1549090
B60: Check
B62: Derived number of tests by type, from above
C63: Chlamydia only | D63: More extensive test
B64: Male | C64: =D57-C57 -> 245825 | D64: =C57 -> 837108
B65: Female | C65: =IF((E58-C58)>0,E58-C58,0) -> 0 | D65: =C58 -> 1041772 | E65: Base on SHS only to try to exclude screening - as that is the female intervention - leads to negative number of Chlamydia tests which is clearly erroneous. This is because can't exclude T2-T4 tests outside of SHS. Likely to be very small numbers of chlamydia only tests without screening so assume none.
B66: Total | C66: =D59-C59 -> 1443038 | D66: =C59 -> 1883344
C70: Female | D70: Male
B71: Chlamydia only as % of all tests | C71: =C65/SUM($C$65:$D$65) -> 0 | D71: =C64/D64 -> 0.2936598384
B72: % of population tested for chlamydia only | C72: =C30*C71 -> 0 | D72: =C38*D71 -> 0.04413021748
B73: % of population fully screened | C73: =C30*(1-C71) -> 0.1788123448 | D73: =C38*(1-D71) -> 0.106146435
B79: No. of diagnoses
B81: Source for all but HIV | C81: PHE Sexually transmitted infections (STIs) annual data tables
C82: Table 2: New STI diagnoses & rates by gender, sexual risk & age group, 2013-2018
C83: 2018 data
B85: Source for HIV | C85: Official Statistics: HIV: annual data tables
C86: National HIV surveillance data tables. Table 3
C87: 2017 data
B89: Chlamydia | C89: Male | D89: 15-19 | E89: 13213
D90: 20-24 | E90: 32775
C91: Female | D91: 15-19 | E91: 36496
D92: 20-24 | E92: 48892
B94: Gonorrhoea | C94: Male | D94: 15-19 | E94: 2696
D95: 20-24 | E95: 8615
C96: Female | D96: 15-19 | E96: 4080
D97: 20-24 | E97: 4988
B99: Syphilis | C99: Male | D99: 15-19 | E99: 141
D100: 20-24 | E100: 725
C101: Female | D101: 15-19 | E101: 64
D102: 20-24 | E102: 119
B104: Warts | C104: Male | D104: 15-19 | E104: 1657
D105: 20-24 | E105: 10931
C106: Female | D106: 15-19 | E106: 2909
D107: 20-24 | E107: 9163
B109: HIV | C109: Male | D109: 15-24 | E109: 330
C111: Female | D111: 15-24 | E111: 107
B113: Testing
B114: Baseline | D114: 15 F | E114: 15 M | F114: 15 MSM | G114: 16 F | H114: 16 M | I114: 16 MSM | J114: 17 F | K114: 17 M | L114: 17 MSM | M114: 18 F | N114: 18 M | O114: 18 MSM | P114: 19 F | Q114: 19 M | R114: 19 MSM | S114: 20 F | T114: 20 M | U114: 20 MSM | V114: 21 F | W114: 21 M | X114: 21 MSM | Y114: 22 F | Z114: 22 M | AA114: 22 MSM | AB114: 23 F | AC114: 23 M | AD114: 23 MSM | AE114: 24 F | AF114: 24 M
B115: Chlamydia | C115: Proportion diagnosed given have Chlamydia | D115: =$K$421 -> 0.3411007953 | E115: =$J$421 -> 0.4762008152 | G115: =$K$421 -> 0.3411007953 | H115: =$J$421 -> 0.4762008152 | J115: =$K$421 -> 0.3411007953 | K115: =$J$421 -> 0.4762008152 | M115: =$K$421 -> 0.3411007953 | N115: =$J$421 -> 0.4762008152 | P115: =$K$421 -> 0.3411007953 | Q115: =$J$421 -> 0.4762008152 | S115: =$K$421 -> 0.3411007953 | T115: =$J$421 -> 0.4762008152 | V115: =$K$421 -> 0.3411007953 | W115: =$J$421 -> 0.4762008152 | Y115: =$K$421 -> 0.3411007953 | Z115: =$J$421 -> 0.4762008152 | AB115: =$K$421 -> 0.3411007953 | AC115: =$J$421 -> 0.4762008152 | AE115: =$K$421 -> 0.3411007953 | AF115: =$J$421 -> 0.4762008152
C116: Proportion tested anyway | D116: =Parameters!$D$473 -> 0.1502766525 | E116: =Parameters!$D$473 -> 0.1502766525 | G116: =Parameters!$D$473 -> 0.1502766525 | H116: =Parameters!$D$473 -> 0.1502766525 | J116: =Parameters!$D$473 -> 0.1502766525 | K116: =Parameters!$D$473 -> 0.1502766525 | M116: =Parameters!$D$473 -> 0.1502766525 | N116: =Parameters!$D$473 -> 0.1502766525 | P116: =Parameters!$D$473 -> 0.1502766525 | Q116: =Parameters!$D$473 -> 0.1502766525 | S116: =Parameters!$D$473 -> 0.1502766525 | T116: =Parameters!$D$473 -> 0.1502766525 | V116: =Parameters!$D$473 -> 0.1502766525 | W116: =Parameters!$D$473 -> 0.1502766525 | Y116: =Parameters!$D$473 -> 0.1502766525 | Z116: =Parameters!$D$473 -> 0.1502766525 | AB116: =Parameters!$D$473 -> 0.1502766525 | AC116: =Parameters!$D$473 -> 0.1502766525 | AE116: =Parameters!$D$473 -> 0.1502766525 | AF116: =Parameters!$D$473 -> 0.1502766525
C117: Proportion symptomatic | D117: 0.23 | E117: 0.5 | G117: 0.23 | H117: 0.5 | J117: 0.23 | K117: 0.5 | M117: 0.23 | N117: 0.5 | P117: 0.23 | Q117: 0.5 | S117: 0.23 | T117: 0.5 | V117: 0.23 | W117: 0.5 | Y117: 0.23 | Z117: 0.5 | AB117: 0.23 | AC117: 0.5 | AE117: 0.23 | AF117: 0.5
C118: Prevalence | D118: =Parameters!C195 -> 0.03626990551 | E118: =Parameters!D195 -> 0.001732061556 | F118: =Parameters!E195 -> 0.001669147556 | G118: =Parameters!F195 -> 0.03626990551 | H118: =Parameters!G195 -> 0.001732061556 | I118: =Parameters!H195 -> 0 | J118: =Parameters!I195 -> 0.03626990551 | K118: =Parameters!J195 -> 0.001732061556 | L118: =Parameters!K195 -> 0 | M118: =Parameters!L195 -> 0.07411676343 | N118: =Parameters!M195 -> 0.008660307778 | O118: =Parameters!N195 -> 0 | P118: =Parameters!O195 -> 0.07411676343 | Q118: =Parameters!P195 -> 0.008660307778 | R118: =Parameters!Q195 -> 0 | S118: =Parameters!R195 -> 0.04257771516 | T118: =Parameters!S195 -> 0.05889009289 | U118: =Parameters!T195 -> 0 | V118: =Parameters!U195 -> 0.04257771516 | W118: =Parameters!V195 -> 0.05889009289 | X118: =Parameters!W195 -> 0 | Y118: =Parameters!X195 -> 0.04257771516 | Z118: =Parameters!Y195 -> 0.05889009289 | AA118: =Parameters!Z195 -> 0 | AB118: =Parameters!AA195 -> 0.04257771516 | AC118: =Parameters!AB195 -> 0.05889009289 | AD118: =Parameters!AC195 -> 0 | AE118: =Parameters!AD195 -> 0.04257771516 | AF118: =Parameters!AE195 -> 0.05889009289
C119: Proportion tested | D119: =Parameters!$C$475 -> 0.1788123448 | E119: =Parameters!$C$473 -> 0.1502766525 | F119: =Parameters!$C$473 -> 0.1502766525 | G119: =Parameters!$C$475 -> 0.1788123448 | H119: =Parameters!$C$473 -> 0.1502766525 | I119: =Parameters!$C$473 -> 0.1502766525 | J119: =Parameters!$C$475 -> 0.1788123448 | K119: =Parameters!$C$473 -> 0.1502766525 | L119: =Parameters!$C$473 -> 0.1502766525 | M119: =Parameters!$C$475 -> 0.1788123448 | N119: =Parameters!$C$473 -> 0.1502766525 | O119: =Parameters!$C$473 -> 0.1502766525 | P119: =Parameters!$C$475 -> 0.1788123448 | Q119: =Parameters!$C$473 -> 0.1502766525 | R119: =Parameters!$C$473 -> 0.1502766525 | S119: =Parameters!$C$475 -> 0.1788123448 | T119: =Parameters!$C$473 -> 0.1502766525 | U119: =Parameters!$C$473 -> 0.1502766525 | V119: =Parameters!$C$475 -> 0.1788123448 | W119: =Parameters!$C$473 -> 0.1502766525 | X119: =Parameters!$C$473 -> 0.1502766525 | Y119: =Parameters!$C$475 -> 0.1788123448 | Z119: =Parameters!$C$473 -> 0.1502766525 | AA119: =Parameters!$C$473 -> 0.1502766525 | AB119: =Parameters!$C$475 -> 0.1788123448 | AC119: =Parameters!$C$473 -> 0.1502766525 | AD119: =Parameters!$C$473 -> 0.1502766525 | AE119: =Parameters!$C$475 -> 0.1788123448 | AF119: =Parameters!$C$473 -> 0.1502766525
C120: Proportion of tested population with Chlamydia | D120: =D115*D118/D119 -> 0.06918814039 | E120: 0.005488604592 | F120: 0 | G120: 0.06918814039 | H120: 0.005488604592 | I120: 0 | J120: 0.06918814039 | K120: 0.005488604592 | L120: 0 | M120: 0.1413844608 | N120: 0.02744302296 | O120: 0 | P120: 0.1413844608 | Q120: 0.02744302296 | R120: 0 | S120: 0.08122086046 | T120: 0.1866125561 | U120: 0 | V120: 0.08122086046 | W120: 0.1866125561 | X120: 0 | Y120: 0.08122086046 | Z120: 0.1866125561 | AA120: 0 | AB120: 0.08122086046 | AC120: 0.1866125561 | AD120: 0 | AE120: 0.08122086046 | AF120: 0.1866125561
B122: Gonorrhoea | C122: Proportion diagnosed given have Gonorrhoea | D122: =$K$422 -> 0.4890176287 | E122: =$J$422 -> 0.6633400489 | G122: =$K$422 -> 0.4890176287 | H122: =$J$422 -> 0.6633400489 | J122: =$K$422 -> 0.4890176287 | K122: =$J$422 -> 0.6633400489 | M122: =$K$422 -> 0.4890176287 | N122: =$J$422 -> 0.6633400489 | P122: =$K$422 -> 0.4890176287 | Q122: =$J$422 -> 0.6633400489 | S122: =$K$422 -> 0.4890176287 | T122: =$J$422 -> 0.6633400489 | V122: =$K$422 -> 0.4890176287 | W122: =$J$422 -> 0.6633400489 | Y122: =$K$422 -> 0.4890176287 | Z122: =$J$422 -> 0.6633400489 | AB122: =$K$422 -> 0.4890176287 | AC122: =$J$422 -> 0.6633400489 | AE122: =$K$422 -> 0.4890176287 | AF122: =$J$422 -> 0.6633400489
C123: Proportion tested anyway | D123: =Parameters!$D$474 -> 0.106146435 | E123: =Parameters!$D$474 -> 0.106146435 | G123: =Parameters!$D$474 -> 0.106146435 | H123: =Parameters!$D$474 -> 0.106146435 | J123: =Parameters!$D$474 -> 0.106146435 | K123: =Parameters!$D$474 -> 0.106146435 | M123: =Parameters!$D$474 -> 0.106146435 | N123: =Parameters!$D$474 -> 0.106146435 | P123: =Parameters!$D$474 -> 0.106146435 | Q123: =Parameters!$D$474 -> 0.106146435 | S123: =Parameters!$D$474 -> 0.106146435 | T123: =Parameters!$D$474 -> 0.106146435 | V123: =Parameters!$D$474 -> 0.106146435 | W123: =Parameters!$D$474 -> 0.106146435 | Y123: =Parameters!$D$474 -> 0.106146435 | Z123: =Parameters!$D$474 -> 0.106146435 | AB123: =Parameters!$D$474 -> 0.106146435 | AC123: =Parameters!$D$474 -> 0.106146435 | AE123: =Parameters!$D$474 -> 0.106146435 | AF123: =Parameters!$D$474 -> 0.106146435
C124: Proportion symptomatic | D124: 0.5 | E124: 0.84 | G124: 0.5 | H124: 0.84 | J124: 0.5 | K124: 0.84 | M124: 0.5 | N124: 0.84 | P124: 0.5 | Q124: 0.84 | S124: 0.5 | T124: 0.84 | V124: 0.5 | W124: 0.84 | Y124: 0.5 | Z124: 0.84 | AB124: 0.5 | AC124: 0.84 | AE124: 0.5 | AF124: 0.84
C125: Prevalence | D125: =Parameters!C201 -> 0.001 | E125: =Parameters!D201 -> 0.001 | F125: =Parameters!E201 -> 0 | G125: =Parameters!F201 -> 0.001 | H125: =Parameters!G201 -> 0.001 | I125: =Parameters!H201 -> 0 | J125: =Parameters!I201 -> 0.001 | K125: =Parameters!J201 -> 0.001 | L125: =Parameters!K201 -> 0 | M125: =Parameters!L201 -> 0.001 | N125: =Parameters!M201 -> 0.001 | O125: =Parameters!N201 -> 0 | P125: =Parameters!O201 -> 0.001 | Q125: =Parameters!P201 -> 0.001 | R125: =Parameters!Q201 -> 0.0124 | S125: =Parameters!R201 -> 0.002 | T125: =Parameters!S201 -> 0.001 | U125: =Parameters!T201 -> 0.06548 | V125: =Parameters!U201 -> 0.002 | W125: =Parameters!V201 -> 0.001 | X125: =Parameters!W201 -> 0.06548 | Y125: =Parameters!X201 -> 0.002 | Z125: =Parameters!Y201 -> 0.001 | AA125: =Parameters!Z201 -> 0.06548 | AB125: =Parameters!AA201 -> 0.002 | AC125: =Parameters!AB201 -> 0.001 | AD125: =Parameters!AC201 -> 0.06548 | AE125: =Parameters!AD201 -> 0.002 | AF125: =Parameters!AE201 -> 0.001
C126: Proportion tested | D126: =Parameters!$C$475 -> 0.1788123448 | E126: =Parameters!$C$474 -> 0.106146435 | F126: =Parameters!$C$474 -> 0.106146435 | G126: =Parameters!$C$475 -> 0.1788123448 | H126: =Parameters!$C$474 -> 0.106146435 | I126: =Parameters!$C$474 -> 0.106146435 | J126: =Parameters!$C$475 -> 0.1788123448 | K126: =Parameters!$C$474 -> 0.106146435 | L126: =Parameters!$C$474 -> 0.106146435 | M126: =Parameters!$C$475 -> 0.1788123448 | N126: =Parameters!$C$474 -> 0.106146435 | O126: =Parameters!$C$474 -> 0.106146435 | P126: =Parameters!$C$475 -> 0.1788123448 | Q126: =Parameters!$C$474 -> 0.106146435 | R126: =Parameters!$C$474 -> 0.106146435 | S126: =Parameters!$C$475 -> 0.1788123448 | T126: =Parameters!$C$474 -> 0.106146435 | U126: =Parameters!$C$474 -> 0.106146435 | V126: =Parameters!$C$475 -> 0.1788123448 | W126: =Parameters!$C$474 -> 0.106146435 | X126: =Parameters!$C$474 -> 0.106146435 | Y126: =Parameters!$C$475 -> 0.1788123448 | Z126: =Parameters!$C$474 -> 0.106146435 | AA126: =Parameters!$C$474 -> 0.106146435 | AB126: =Parameters!$C$475 -> 0.1788123448 | AC126: =Parameters!$C$474 -> 0.106146435 | AD126: =Parameters!$C$474 -> 0.106146435 | AE126: =Parameters!$C$475 -> 0.1788123448 | AF126: =Parameters!$C$474 -> 0.106146435
C127: Proportion of tested population with Gonorrhoea | D127: =D122*D125/D126 -> 0.002734809105 | E127: 0.006249291829 | F127: 0 | G127: 0.002734809105 | H127: 0.006249291829 | I127: 0 | J127: 0.002734809105 | K127: 0.006249291829 | L127: 0 | M127: 0.002734809105 | N127: 0.006249291829 | O127: 0 | P127: 0.002734809105 | Q127: 0.006249291829 | R127: 0 | S127: 0.005469618211 | T127: 0.006249291829 | U127: 0 | V127: 0.005469618211 | W127: 0.006249291829 | X127: 0 | Y127: 0.005469618211 | Z127: 0.006249291829 | AA127: 0 | AB127: 0.005469618211 | AC127: 0.006249291829 | AD127: 0 | AE127: 0.005469618211 | AF127: 0.006249291829
B129: Warts | C129: Proportion diagnosed given have GW | D129: =$K$423 -> 0.6063318148 | E129: =$J$423 -> 0.9068051519 | G129: =$K$423 -> 0.6063318148 | H129: =$J$423 -> 0.9068051519 | J129: =$K$423 -> 0.6063318148 | K129: =$J$423 -> 0.9068051519 | M129: =$K$423 -> 0.6063318148 | N129: =$J$423 -> 0.9068051519 | P129: =$K$423 -> 0.6063318148 | Q129: =$J$423 -> 0.9068051519 | S129: =$K$423 -> 0.6063318148 | T129: =$J$423 -> 0.9068051519 | V129: =$K$423 -> 0.6063318148 | W129: =$J$423 -> 0.9068051519 | Y129: =$K$423 -> 0.6063318148 | Z129: =$J$423 -> 0.9068051519 | AB129: =$K$423 -> 0.6063318148 | AC129: =$J$423 -> 0.9068051519 | AE129: =$K$423 -> 0.6063318148 | AF129: =$J$423 -> 0.9068051519
C130: Proportion symptomatic | D130: 1 | E130: 1 | G130: 1 | H130: 1 | J130: 1 | K130: 1 | M130: 1 | N130: 1 | P130: 1 | Q130: 1 | S130: 1 | T130: 1 | V130: 1 | W130: 1 | Y130: 1 | Z130: 1 | AB130: 1 | AC130: 1 | AE130: 1 | AF130: 1
C131: Prevalence | D131: =Parameters!C207 -> 0.001 | E131: =Parameters!D207 -> 0.002 | F131: =Parameters!E207 -> 0.0106 | G131: =Parameters!F207 -> 0.001 | H131: =Parameters!G207 -> 0.002 | I131: =Parameters!H207 -> 0.0106 | J131: =Parameters!I207 -> 0.001 | K131: =Parameters!J207 -> 0.002 | L131: =Parameters!K207 -> 0.0106 | M131: =Parameters!L207 -> 0.001 | N131: =Parameters!M207 -> 0.002 | O131: =Parameters!N207 -> 0.0106 | P131: =Parameters!O207 -> 0.001 | Q131: =Parameters!P207 -> 0.002 | R131: =Parameters!Q207 -> 0.0106 | S131: =Parameters!R207 -> 0.012 | T131: =Parameters!S207 -> 0.004 | U131: =Parameters!T207 -> 0.0106 | V131: =Parameters!U207 -> 0.012 | W131: =Parameters!V207 -> 0.004 | X131: =Parameters!W207 -> 0.0106 | Y131: =Parameters!X207 -> 0.012 | Z131: =Parameters!Y207 -> 0.004 | AA131: =Parameters!Z207 -> 0.0106 | AB131: =Parameters!AA207 -> 0.012 | AC131: =Parameters!AB207 -> 0.004 | AD131: =Parameters!AC207 -> 0.0106 | AE131: =Parameters!AD207 -> 0.012 | AF131: =Parameters!AE207 -> 0.004
B133: Syphilis | C133: Proportion diagnosed given have syphilis | D133: =1-(1-0.35)*(1-0.6)*(1-0.1) -> 0.766 | E133: =$D$133 -> 0.766 | G133: =$D$133 -> 0.766 | H133: =$D$133 -> 0.766 | J133: =$D$133 -> 0.766 | K133: =$D$133 -> 0.766 | M133: =$D$133 -> 0.766 | N133: =$D$133 -> 0.766 | P133: =$D$133 -> 0.766 | Q133: =$D$133 -> 0.766 | S133: =$D$133 -> 0.766 | T133: =$D$133 -> 0.766 | V133: =$D$133 -> 0.766 | W133: =$D$133 -> 0.766 | Y133: =$D$133 -> 0.766 | Z133: =$D$133 -> 0.766 | AB133: =$D$133 -> 0.766 | AC133: =$D$133 -> 0.766 | AE133: =$D$133 -> 0.766 | AF133: =$D$133 -> 0.766
C134: Prevalence | D134: =Parameters!C213 -> 0.0011 | E134: =Parameters!D213 -> 0.0011 | F134: =Parameters!E213 -> 0.0011 | G134: =Parameters!F213 -> 0.0011 | H134: =Parameters!G213 -> 0.0011 | I134: =Parameters!H213 -> 0.0011 | J134: =Parameters!I213 -> 0.0011 | K134: =Parameters!J213 -> 0.0011 | L134: =Parameters!K213 -> 0.0011 | M134: =Parameters!L213 -> 0.0011 | N134: =Parameters!M213 -> 0.0011 | O134: =Parameters!N213 -> 0.0011 | P134: =Parameters!O213 -> 0.0011 | Q134: =Parameters!P213 -> 0.0011 | R134: =Parameters!Q213 -> 0.0011 | S134: =Parameters!R213 -> 0.0011 | T134: =Parameters!S213 -> 0.0011 | U134: =Parameters!T213 -> 0.0011 | V134: =Parameters!U213 -> 0.0011 | W134: =Parameters!V213 -> 0.0011 | X134: =Parameters!W213 -> 0.0011 | Y134: =Parameters!X213 -> 0.0011 | Z134: =Parameters!Y213 -> 0.0011 | AA134: =Parameters!Z213 -> 0.0011 | AB134: =Parameters!AA213 -> 0.0011 | AC134: =Parameters!AB213 -> 0.0011 | AD134: =Parameters!AC213 -> 0.0011 | AE134: =Parameters!AD213 -> 0.0011 | AF134: =Parameters!AE213 -> 0.0011
C135: Proportion tested | D135: =Parameters!$C$476 -> 0.1788123448 | E135: =Parameters!$C$474 -> 0.106146435 | F135: =Parameters!$C$474 -> 0.106146435 | G135: =Parameters!$C$476 -> 0.1788123448 | H135: =Parameters!$C$474 -> 0.106146435 | I135: =Parameters!$C$474 -> 0.106146435 | J135: =Parameters!$C$476 -> 0.1788123448 | K135: =Parameters!$C$474 -> 0.106146435 | L135: =Parameters!$C$474 -> 0.106146435 | M135: =Parameters!$C$476 -> 0.1788123448 | N135: =Parameters!$C$474 -> 0.106146435 | O135: =Parameters!$C$474 -> 0.106146435 | P135: =Parameters!$C$476 -> 0.1788123448 | Q135: =Parameters!$C$474 -> 0.106146435 | R135: =Parameters!$C$474 -> 0.106146435 | S135: =Parameters!$C$476 -> 0.1788123448 | T135: =Parameters!$C$474 -> 0.106146435 | U135: =Parameters!$C$474 -> 0.106146435 | V135: =Parameters!$C$476 -> 0.1788123448 | W135: =Parameters!$C$474 -> 0.106146435 | X135: =Parameters!$C$474 -> 0.106146435 | Y135: =Parameters!$C$476 -> 0.1788123448 | Z135: =Parameters!$C$474 -> 0.106146435 | AA135: =Parameters!$C$474 -> 0.106146435 | AB135: =Parameters!$C$476 -> 0.1788123448 | AC135: =Parameters!$C$474 -> 0.106146435 | AD135: =Parameters!$C$474 -> 0.106146435 | AE135: =Parameters!$C$476 -> 0.1788123448 | AF135: =Parameters!$C$474 -> 0.106146435
C136: Proportion of tested population with syphilis | D136: =D133*D134/D135 -> 0.004712202622 | E136: 0.007938090432 | F136: 0 | G136: 0.004712202622 | H136: 0.007938090432 | I136: 0 | J136: 0.004712202622 | K136: 0.007938090432 | L136: 0 | M136: 0.004712202622 | N136: 0.007938090432 | O136: 0 | P136: 0.004712202622 | Q136: 0.007938090432 | R136: 0 | S136: 0.004712202622 | T136: 0.007938090432 | U136: 0 | V136: 0.004712202622 | W136: 0.007938090432 | X136: 0 | Y136: 0.004712202622 | Z136: 0.007938090432 | AA136: 0 | AB136: 0.004712202622 | AC136: 0.007938090432 | AD136: 0 | AE136: 0.004712202622 | AF136: 0.007938090432
B138: HIV | C138: Proportion diagnosed given have HIV | D138: 0.71 | E138: 0.71 | G138: 0.71 | H138: 0.71 | J138: 0.71 | K138: 0.71 | M138: 0.71 | N138: 0.71 | P138: 0.71 | Q138: 0.71 | S138: 0.71 | T138: 0.71 | V138: 0.71 | W138: 0.71 | Y138: 0.71 | Z138: 0.71 | AB138: 0.71 | AC138: 0.71 | AE138: 0.71 | AF138: 0.71
C139: Prevalence | D139: =Parameters!C219 -> 0.001 | E139: =Parameters!D219 -> 0.002 | F139: =Parameters!E219 -> 0.00464 | G139: =Parameters!F219 -> 0.001 | H139: =Parameters!G219 -> 0.002 | I139: =Parameters!H219 -> 0.00464 | J139: =Parameters!I219 -> 0.001 | K139: =Parameters!J219 -> 0.002 | L139: =Parameters!K219 -> 0.00464 | M139: =Parameters!L219 -> 0.001 | N139: =Parameters!M219 -> 0.002 | O139: =Parameters!N219 -> 0.00464 | P139: =Parameters!O219 -> 0.001 | Q139: =Parameters!P219 -> 0.002 | R139: =Parameters!Q219 -> 0.00464 | S139: =Parameters!R219 -> 0.001 | T139: =Parameters!S219 -> 0.002 | U139: =Parameters!T219 -> 0.00424 | V139: =Parameters!U219 -> 0.001 | W139: =Parameters!V219 -> 0.002 | X139: =Parameters!W219 -> 0.00424 | Y139: =Parameters!X219 -> 0.001 | Z139: =Parameters!Y219 -> 0.002 | AA139: =Parameters!Z219 -> 0.00424 | AB139: =Parameters!AA219 -> 0.001 | AC139: =Parameters!AB219 -> 0.002 | AD139: =Parameters!AC219 -> 0.00424 | AE139: =Parameters!AD219 -> 0.001 | AF139: =Parameters!AE219 -> 0.002
C140: Proportion tested | D140: =Parameters!$C$476 -> 0.1788123448 | E140: =Parameters!$C$474 -> 0.106146435 | F140: =Parameters!$C$474 -> 0.106146435 | G140: =Parameters!$C$476 -> 0.1788123448 | H140: =Parameters!$C$474 -> 0.106146435 | I140: =Parameters!$C$474 -> 0.106146435 | J140: =Parameters!$C$476 -> 0.1788123448 | K140: =Parameters!$C$474 -> 0.106146435 | L140: =Parameters!$C$474 -> 0.106146435 | M140: =Parameters!$C$476 -> 0.1788123448 | N140: =Parameters!$C$474 -> 0.106146435 | O140: =Parameters!$C$474 -> 0.106146435 | P140: =Parameters!$C$476 -> 0.1788123448 | Q140: =Parameters!$C$474 -> 0.106146435 | R140: =Parameters!$C$474 -> 0.106146435 | S140: =Parameters!$C$476 -> 0.1788123448 | T140: =Parameters!$C$474 -> 0.106146435 | U140: =Parameters!$C$474 -> 0.106146435 | V140: =Parameters!$C$476 -> 0.1788123448 | W140: =Parameters!$C$474 -> 0.106146435 | X140: =Parameters!$C$474 -> 0.106146435 | Y140: =Parameters!$C$476 -> 0.1788123448 | Z140: =Parameters!$C$474 -> 0.106146435 | AA140: =Parameters!$C$474 -> 0.106146435 | AB140: =Parameters!$C$476 -> 0.1788123448 | AC140: =Parameters!$C$474 -> 0.106146435 | AD140: =Parameters!$C$474 -> 0.106146435 | AE140: =Parameters!$C$476 -> 0.1788123448 | AF140: =Parameters!$C$474 -> 0.106146435
C141: Proportion of tested population with HIV | D141: =D138*D139/D140 -> 0.003970643083 | E141: 0.01337774557 | F141: 0 | G141: 0.003970643083 | H141: 0.01337774557 | I141: 0 | J141: 0.003970643083 | K141: 0.01337774557 | L141: 0 | M141: 0.003970643083 | N141: 0.01337774557 | O141: 0 | P141: 0.003970643083 | Q141: 0.01337774557 | R141: 0 | S141: 0.003970643083 | T141: 0.01337774557 | U141: 0 | V141: 0.003970643083 | W141: 0.01337774557 | X141: 0 | Y141: 0.003970643083 | Z141: 0.01337774557 | AA141: 0 | AB141: 0.003970643083 | AC141: 0.01337774557 | AD141: 0 | AE141: 0.003970643083 | AF141: 0.01337774557
B143: Sources for assumptions on proportion diagnosed given have each condition and become symptomatic:
B144: Chlamydia – 23% women (based on Price et al. report) and 50% for men (FPA report) | C144: Checked and confirmed
B145: HIV – 0% for women and men symptomatic at early stages of the disease | C145: https://www.nhs.uk/conditions/hiv-and-aids/symptoms/
B146: HIV – 92% diagnosed for women and men (based on PHE HIV report)
B147: Gonorrhoea – 48% for women , 89.8% for men diagnosed and treated​ (Sherrard and Barlow, 1996))
B148: Syphilis – 79% for men (assumed the same for women) based on Bissessor et al 2010
B149: Genital Warts – 57% for women and 30% for men (Arima et al 2010)
B151: Price et al | C151: https://www.journalslibrary.nihr.ac.uk/hta/hta20220/#/abstract
B152: FPA report | C152: https://www.fpa.org.uk/factsheets/sexually-transmitted-infections
B153: Wetten et al | C153: https://bmjopen.bmj.com/content/bmjopen/5/5/e007776.full.pdf
B154: PHE HIV report | C154: https://assets.publishing.service.gov.uk/government/uploads/system/uploads/attachment_data/file/813167/HIV_annual_report_2018.pdf
B155: Sherrard and Barlow 1996 | C155: https://www.ncbi.nlm.nih.gov/pmc/articles/PMC1195730/pdf/genitmed00012-0036.pdf
B156: Arima et al 2010 | C156: https://academic.oup.com/jid/article/202/8/1181/926992/
B157: Bissessor et al 2010 | C157: https://insights.ovid.com/pubmed?pmid=20585261
B160: Genital warts transmission probability
C162: Transmission probability per partnership | D162: 0.64 | E162: Oriel 1971
C163: Estimated sex acts per partnership | D163: 10 | E163: Assumption, in line with some other modelling studies e.g. Shepherd 2010
C164: Transmission probability per sex act | D164: =1-(1-D162)^(1/D163) -> 0.09711954855
B167: Treatment costs inflation
B169: ONS GDP Deflator: Year on Year growth: SA %
B170: 2000 | C170: 2001 | D170: 2002 | E170: 2003 | F170: 2004 | G170: 2005 | H170: 2006 | I170: 2007 | J170: 2008 | K170: 2009 | L170: 2010 | M170: 2011 | N170: 2012 | O170: 2013 | P170: 2014 | Q170: 2015 | R170: 2016 | S170: 2017 | T170: 2018
A171: YoY growth | B171: 2.1 | C171: 0.8 | D171: 2.2 | E171: 2.4 | F171: 2.5 | G171: 2.6 | H171: 2.9 | I171: 2.5 | J171: 2.8 | K171: 1.6 | L171: 1.5 | M171: 1.9 | N171: 1.6 | O171: 1.9 | P171: 1.7 | Q171: 0.4 | R171: 2.1 | S171: 2.2 | T171: 1.9
A172: Index | B172: 100 | C172: =B172*(1+C171/100) -> 100.8 | D172: =C172*(1+D171/100) -> 103.0176 | E172: 105.4900224 | F172: =E172*(1+F171/100) -> 108.127273 | G172: 110.9385821 | H172: 114.1558009 | I172: 117.009696 | J172: 120.2859674 | K172: 122.2105429 | L172: 124.0437011 | M172: 126.4005314 | N172: 128.4229399 | O172: 130.8629758 | P172: 133.0876463 | Q172: 133.6199969 | R172: 136.4260169 | S172: 139.4273892 | T172: 142.0765096
C178: Direct cost of treatment (antibiotics) (£, 2016) | G178: Direct cost of treatment (antibiotics) (£, 2018)
B179: Condition | C179: Mean | D179: Minimum | E179: Maximum | F179: Source | G179: Mean | H179: Minimum | I179: Maximum | J179: Source
B180: Chlamydia | C180: 2.92 | D180: 0.48 | E180: 11.91 | F180: Sadler et al 2016 Table 5 | G180: =C180*($T$172/$R$172) -> 3.04094056 | H180: 0.49988064 | I180: 12.40328838 | J180: Inflated based on GDP deflator
B181: Gonorrhoea | C181: 8.98 | D181: 4.76 | E181: 16.71 | F181: Sadler et al 2016 Table 5 | G181: 9.35193364 | H181: 4.95714968 | I181: 17.40209478 | J181: Inflated based on GDP deflator
B182: Syphilis | C182: 13.82 | D182: 1.65 | E182: 25.54 | F182: Sadler et al 2016 Table 5 | G182: 14.39239676 | H182: 1.7183397 | I182: 26.59781572 | J182: Inflated based on GDP deflator
C184: Number of visits per case
B185: Condition | C185: Expected number of visits | D185: Explanation
B186: Chlamydia | C186: =2*((G384-G387)/G384)+1*(G387/G384) -> 1.834319027 | D186: Chlamydia takes 1 diagnosis appointment and one treatment appointment, apart from partners who are treated and tested in the same appointment
B187: Gonorrhoea | C187: =3*((L384-L387)/L384)+2*(L387/L384) -> 2.874744514 | D187: Gonnorhoea takes 1 diagnosis appointment and one treatment appointment and a follow up appointment for test of cure, apart from partners who are treated and tested in the same appointment and then have a follow up appointment
B188: Syphilis | C188: =2*((V384-V387)/V384)+1*(V387/V384) -> 1.94205052 | D188: Siphylis takes 1 diagnosis appointment and one treatment appointment, apart from partners who are treated and tested in the same appointment
B190: Cost component | C190: Unit Cost (£) | D190: Source | E190: Seconday source | F190: Unit cost £ inflated to 2018
B191: GP Appointment | C191: 67.9 | D191: Unit Costs of Health and Social Care 2015 | E191: Sadler et al 2016 Table 3 | F191: =C191*T172/Q172 -> 72.19724013
B192: GU Medicine appointment | C192: 62.39 | D192: National Schedule of Reference Costs 2013/14 | E192: Sadler et al 2016 Table 3 | F192: =C192*T172/P172 -> 66.60387857
C195: Cost of genital warts
C196: n | D196: Proportion | E196: Per episode | F196: Source
B197: GP only (new episodes) | C197: 3000 | D197: =C197/SUM($C$197:$C$199) -> 0.03703703704 | E197: 76 | F197: Desai et al 2011 Table 1
B198: GP and then GUM (new episodes) | C198: 30000 | D198: =C198/SUM($C$197:$C$199) -> 0.3703703704 | E198: 132 | F198: Desai et al 2011 Table 1
B199: GUM only (episodes) | C199: 48000 | D199: =C199/SUM($C$197:$C$199) -> 0.5925925926 | E199: 90 | F199: Desai et al 2011 Table 1
B200: Weighted average | E200: =SUMPRODUCT(D197:D199,E197:E199) -> 105.037037 | F200: Calculation
B201: Weighted average 2018 prices | E201: =E200*T172/M172 -> 118.0635512 | F201: Calculation
C203: Cost of HIV treatment (£, 2015) | D203: Inflated cost | E203: Source
B204: Life time treatment cost if diagnosed late (CD4 < 200) | C204: 201700 | D204: =C204*$T$172/$Q$172 -> 214465.1448 | E204: Ong et al 2019 Table 2
B205: Life time treatment cost if diagnosed early (CD4 > 200) | C205: 206200 | D205: =C205*$T$172/$Q$172 -> 219249.9398 | E205: Ong et al 2019 Table 2
C209: Cost of treatment (additionally to testing) (£, 2018)
B210: Condition | C210: Appointments associated with treatment | D210: Direct treatment costs | E210: Total | F210: Source
B211: Chlamydia | C211: =(C186-1)*$F$192 -> 55.56888318 | D211: =G180 -> 3.04094056 | E211: =SUM(C211:D211) -> 58.60982374 | F211: Calculation
B212: Gonorrhoea | C212: =(C187-1)*$F$192 -> 124.865256 | D212: =G181 -> 9.35193364 | E212: =SUM(C212:D212) -> 134.2171896 | F212: Calculation
B213: Genital warts | E213: =E201 -> 118.0635512 | F213: Calculation
B214: Syphilis | C214: =(C188-1)*$F$192 -> 62.74421844 | D214: =G182 -> 14.39239676 | E214: =SUM(C214:D214) -> 77.1366152 | F214: Calculation
B215: HIV | E215: =D204 -> 214465.1448 | F215: Calculation
B217: Health gain associated with earlier HIV diagnosis and change in treatment cost
C219: Parameter value | D219: Source
B220: Average treatment delay for those diagnosed pre 200 compared to post 200 | C220: 7 | D220: Calculation based on assume diagnosis rates below year 10 for CD4<200, 3 for CD4>200
B221: Annual change in costs | C221: =(D205-D204)/C220 -> 683.542143 | D221: Calculation
B222: Treatment cost for HIV diagnosed late | C222: =D204+C221*2 -> 215832.2291 | D222: Calculation based over average diagnose rates year 8 for CD<350
B223: Treatment cost for HIV diagnosed early | C223: =D205+C221 -> 219933.482 | D223: Calculation based over average diagnose rates year 2 for CD>350
B224: Total QALY loss from HIV diagnosed late | C224: =(F232*(I250-M250)+G232*(M250-N250))/(I250-N250) -> 5.714231388 | D224: Calculation
B225: Total QALY loss from HIV diagnosed early | C225: =((C250-E250)*C232+E232*(E250-I250))/(C250-I250) -> 4.486752475 | D225: Calculation
B226: Additional treatment costs due to earlier testing | D226: Calculation
C229: Non-progression | D229: Non-progression | E229: Early | F229: Late | G229: Very late | H229: Death
B230: CD count | C230: >500 | D230: >450 | E230: >350 | F230: <350 | G230: <200
B231: Average time to CD4 | C231: 3 | F231: 8 | J231: Summary of evidence below
B232: Health loss | C232: 4.45 | E232: 4.52 | F232: 5.15 | G232: 7.95 | J232: Farnham et al 2014
B233: Treatment cost | E233: 1 | G233: 1 | J233: ONG
B234: Prop diagnosed | E234: 0.71 | F234: =0.29-G234 -> 0.23 | G234: 0.06 | J234: PHE
B235: AIDS symptoms | E235: No | F235: No | G235: Yes | I235: CHECK
B236: Average time to stage without ARV | G236: <7.5 | I236: Fast | J236: https://www.liebertpub.com/doi/full/10.1089/aid.2009.0263
B237: Average time to stage without ARV | G237: 7.5-12 | I237: Medium | J237: https://www.liebertpub.com/doi/full/10.1089/aid.2009.0263
B238: Average time to stage without ARV | G238: >12 | I238: Slow | J238: https://www.liebertpub.com/doi/full/10.1089/aid.2009.0263
B239: Average time to stage without ARV | G239: 8-10 | I239: Few people last more than 8-10 years without some form of progression | J239: Sabin and Lundgren 2013
B240: Average time to stage without ARV | C240: 2.1 | I240: Median years to have a <500 CD4 count | J240: Helm et al 2014
B241: Average time to stage without ARV | C241: 18% after 5 years 4% after 10 years | J241: Helm et al 2014
B242: Average time to stage without ARV | D242: =(4*965+6.2*239)/(965+239) -> 4.436710963 | J242: Mandallia et al 2011
B243: Average time to stage with early / ineffective treatment | G243: 41% at 11 years | J243: Lee et al 1991
B244: Average time to stage without ARV | H244: 9.8 | J244: Jaffar et al 2004
C245: 2 | F245: 6 | G245: 10
F247: Early diagnosis median point | K247: Late diagnosis median point
B248: Time period | C248: 0 | D248: 1 | E248: =D248+1 -> 2 | F248: =E248+1 -> 3 | G248: 4 | H248: 5 | I248: 6 | J248: 7 | K248: 8 | L248: 9 | M248: 10 | N248: 11
B249: Assumed average CD4 | C249: 800 | D249: 650 | E249: 500 | F249: =AVERAGE(E249,G249) -> 475 | G249: 450 | H249: =AVERAGE(G249,I249) -> 400 | I249: 350 | J249: =I249-35 -> 315 | K249: =J249-35 -> 280 | L249: =K249-35 -> 245 | M249: 200 | N249: 200
B250: Undiagnosed at start of period | C250: 1 | D250: =C250*0.815 -> 0.815 | E250: 0.664225 | F250: 0.541343375 | G250: 0.4411948506 | H250: 0.3595738033 | I250: 0.2930526497 | J250: =I250*0.67 -> 0.1963452753 | K250: =J250*0.67 -> 0.1315513344 | L250: =K250*0.67 -> 0.08813939407 | M250: =L250*0.67 -> 0.05905339403 | N250: 0
A251: If not diagnosed by end of period prob diagnosed in following period | B251: 0 | D251: =(C$250-D$250)/OFFSET($C$250,0,$B251) -> 0.185 | E251: 0.150775 | F251: 0.122881625 | G251: 0.1001485244 | H251: 0.08162104737 | I251: 0.0665211536 | J251: 0.09670737439 | K251: 0.06479394084 | L251: 0.04341194036 | M251: 0.02908600004 | N251: 0.05905339403 | O251: =SUMPRODUCT($D251:$N251,$D$248:$N$248)-B251 -> 4.589479076
B252: =B251+1 -> 1 | E252: =(D$250-E$250)/OFFSET($C$250,0,$B252) -> 0.185 | F252: 0.150775 | G252: 0.122881625 | H252: 0.1001485244 | I252: 0.08162104737 | J252: 0.1186593551 | K252: 0.0795017679 | L252: 0.05326618449 | M252: 0.03568834361 | N252: 0.07245815218 | O252: 4.404268805
B253: =B252+1 -> 2 | F253: =(E$250-F$250)/OFFSET($C$250,0,$B253) -> 0.185 | G253: 0.150775 | H253: 0.122881625 | I253: 0.1001485244 | J253: 0.1455943007 | K253: 0.09754818147 | L253: 0.06535728159 | M253: 0.04378937866 | N253: 0.0889057082 | O253: 4.177016939
B254: 3 | G254: =(F$250-G$250)/OFFSET($C$250,0,$B254) -> 0.185 | H254: 0.150775 | I254: 0.122881625 | J254: 0.1786433137 | K254: 0.1196910202 | L254: 0.08019298354 | M254: 0.05372929897 | N254: 0.1090867585 | O254: 3.898180293
B255: 4 | H255: =(G$250-H$250)/OFFSET($C$250,0,$B255) -> 0.185 | I255: 0.150775 | J255: 0.21919425 | K255: 0.1468601475 | L255: 0.09839629882 | M255: 0.06592552021 | N255: 0.1338487835 | O255: 3.55604944
B256: 5 | I256: =(H$250-I$250)/OFFSET($C$250,0,$B256) -> 0.185 | J256: 0.26895 | K256: 0.1801965 | L256: 0.120731655 | M256: 0.08089020885 | N256: 0.1642316362 | O256: 3.136256981
B257: 6 | J257: =(I$250-J$250)/OFFSET($C$250,0,$B257) -> 0.33 | K257: =(J$250-K$250)/OFFSET($C$250,0,$B257) -> 0.2211 | L257: =(K$250-L$250)/OFFSET($C$250,0,$B257) -> 0.148137 | M257: =(L$250-M$250)/OFFSET($C$250,0,$B257) -> 0.09925179 | N257: =(M$250-N$250)/OFFSET($C$250,0,$B257) -> 0.20151121 | O257: 2.62117421
B258: 7 | K258: =(J$250-K$250)/OFFSET($C$250,0,$B258) -> 0.33 | L258: =(K$250-L$250)/OFFSET($C$250,0,$B258) -> 0.2211 | M258: =(L$250-M$250)/OFFSET($C$250,0,$B258) -> 0.148137 | N258: =(M$250-N$250)/OFFSET($C$250,0,$B258) -> 0.300763 | O258: 2.419663
B259: 8 | L259: =(K$250-L$250)/OFFSET($C$250,0,$B259) -> 0.33 | M259: =(L$250-M$250)/OFFSET($C$250,0,$B259) -> 0.2211 | N259: =(M$250-N$250)/OFFSET($C$250,0,$B259) -> 0.4489 | O259: 2.1189
B260: 9 | M260: =(L$250-M$250)/OFFSET($C$250,0,$B260) -> 0.33 | N260: =(M$250-N$250)/OFFSET($C$250,0,$B260) -> 0.67 | O260: 1.67
B261: =B260+1 -> 10 | N261: =(M$250-N$250)/OFFSET($C$250,0,$B261) -> 1 | O261: 1
B263: Mean time to diagnosis if not caught through additional testing in period | C263: =OFFSET($O$251,C248,0) -> 4.589479076 | D263: 4.404268805 | E263: 4.177016939 | F263: 3.898180293 | G263: 3.55604944 | H263: 3.136256981 | I263: 2.62117421 | J263: 2.419663 | K263: 2.1189 | L263: 1.67 | M263: 1
... 126 more rows

Sheet Diagnosis calculations (hidden)
A1: Diagnosis
A2: Baseline | B2: 15 F | C2: 15 M | D2: 15 MSM | E2: 16 F | F2: 16 M | G2: 16 MSM | H2: 17 F | I2: 17 M | J2: 17 MSM | K2: 18 F | L2: 18 M | M2: 18 MSM | N2: 19 F | O2: 19 M | P2: 19 MSM | Q2: 20 F | R2: 20 M | S2: 20 MSM | T2: 21 F | U2: 21 M | V2: 21 MSM | W2: 22 F | X2: 22 M | Y2: 22 MSM | Z2: 23 F | AA2: 23 M | AB2: 23 MSM | AC2: 24 F | AD2: 24 M | AE2: Sum
A3: Chlamydia | B3: ='Model per intervention'!E6*Parameters!C248+'Model per intervention'!E10 -> 94.9563821 | C3: ='Model per intervention'!F6*Parameters!D248+'Model per intervention'!F10 -> 2552.981892 | D3: ='Model per intervention'!G6*Parameters!E248+'Model per intervention'!G10 -> 0 | E3: ='Model per intervention'!H6*Parameters!F248+'Model per intervention'!H10 -> 153.4813891 | F3: ='Model per intervention'!I6*Parameters!G248+'Model per intervention'!I10 -> 4547.49577 | G3: ='Model per intervention'!J6*Parameters!H248+'Model per intervention'!J10 -> 0 | H3: ='Model per intervention'!K6*Parameters!I248+'Model per intervention'!K10 -> 358.2808896 | I3: ='Model per intervention'!L6*Parameters!J248+'Model per intervention'!L10 -> 4717.563461 | J3: ='Model per intervention'!M6*Parameters!K248+'Model per intervention'!M10 -> 0 | K3: ='Model per intervention'!N6*Parameters!L248+'Model per intervention'!N10 -> 2133.188736 | L3: ='Model per intervention'!O6*Parameters!M248+'Model per intervention'!O10 -> 19965.64142 | M3: ='Model per intervention'!P6*Parameters!N248+'Model per intervention'!P10 -> 0 | N3: ='Model per intervention'!Q6*Parameters!O248+'Model per intervention'!Q10 -> 2213.927131 | O3: ='Model per intervention'!R6*Parameters!P248+'Model per intervention'!R10 -> 19135.54815 | P3: ='Model per intervention'!S6*Parameters!Q248+'Model per intervention'!S10 -> 0 | Q3: ='Model per intervention'!T6*Parameters!R248+'Model per intervention'!T10 -> 18748.97754 | R3: ='Model per intervention'!U6*Parameters!S248+'Model per intervention'!U10 -> 14960.26555 | S3: ='Model per intervention'!V6*Parameters!T248+'Model per intervention'!V10 -> 0 | T3: ='Model per intervention'!W6*Parameters!U248+'Model per intervention'!W10 -> 16413.46723 | U3: ='Model per intervention'!X6*Parameters!V248+'Model per intervention'!X10 -> 12874.34148 | V3: ='Model per intervention'!Y6*Parameters!W248+'Model per intervention'!Y10 -> 0 | W3: ='Model per intervention'!Z6*Parameters!X248+'Model per intervention'!Z10 -> 17367.69605 | X3: ='Model per intervention'!AA6*Parameters!Y248+'Model per intervention'!AA10 -> 13839.02486 | Y3: ='Model per intervention'!AB6*Parameters!Z248+'Model per intervention'!AB10 -> 0 | Z3: ='Model per intervention'!AC6*Parameters!AA248+'Model per intervention'!AC10 -> 17310.09611 | AA3: ='Model per intervention'!AD6*Parameters!AB248+'Model per intervention'!AD10 -> 17079.65429 | AB3: ='Model per intervention'!AE6*Parameters!AC248+'Model per intervention'!AE10 -> 0 | AC3: ='Model per intervention'!AF6*Parameters!AD248+'Model per intervention'!AF10 -> 17543.52162 | AD3: ='Model per intervention'!AG6*Parameters!AE248+'Model per intervention'!AG10 -> 18298.26262 | AE3: =SUM(B3:AD3) -> 220308.3726
A4: Gonorrhoea | B4: ='Model per intervention'!E19*Parameters!C249+'Model per intervention'!E23 -> 72.65949675 | C4: ='Model per intervention'!F19*Parameters!D249+'Model per intervention'!F23 -> 94.63996321 | D4: ='Model per intervention'!G19*Parameters!E249+'Model per intervention'!G23 -> 0 | E4: ='Model per intervention'!H19*Parameters!F249+'Model per intervention'!H23 -> 117.4421376 | F4: ='Model per intervention'!I19*Parameters!G249+'Model per intervention'!I23 -> 168.5773149 | G4: ='Model per intervention'!J19*Parameters!H249+'Model per intervention'!J23 -> 0 | H4: ='Model per intervention'!K19*Parameters!I249+'Model per intervention'!K23 -> 274.2887014 | I4: ='Model per intervention'!L19*Parameters!J249+'Model per intervention'!L23 -> 174.2138719 | J4: ='Model per intervention'!M19*Parameters!K249+'Model per intervention'!M23 -> 0 | K4: ='Model per intervention'!N19*Parameters!L249+'Model per intervention'!N23 -> 329.9141122 | L4: ='Model per intervention'!O19*Parameters!M249+'Model per intervention'!O23 -> 386.1356337 | M4: ='Model per intervention'!P19*Parameters!N249+'Model per intervention'!P23 -> 0 | N4: ='Model per intervention'!Q19*Parameters!O249+'Model per intervention'!Q23 -> 342.4725816 | O4: ='Model per intervention'!R19*Parameters!P249+'Model per intervention'!R23 -> 365.0149463 | P4: ='Model per intervention'!S19*Parameters!Q249+'Model per intervention'!S23 -> 0 | Q4: ='Model per intervention'!T19*Parameters!R249+'Model per intervention'!T23 -> 466.7753151 | R4: ='Model per intervention'!U19*Parameters!S249+'Model per intervention'!U23 -> 970.8625546 | S4: ='Model per intervention'!V19*Parameters!T249+'Model per intervention'!V23 -> 0 | T4: ='Model per intervention'!W19*Parameters!U249+'Model per intervention'!W23 -> 401.3954554 | U4: ='Model per intervention'!X19*Parameters!V249+'Model per intervention'!X23 -> 824.0416974 | V4: ='Model per intervention'!Y19*Parameters!W249+'Model per intervention'!Y23 -> 0 | W4: ='Model per intervention'!Z19*Parameters!X249+'Model per intervention'!Z23 -> 428.7890989 | X4: ='Model per intervention'!AA19*Parameters!Y249+'Model per intervention'!AA23 -> 889.2179775 | Y4: ='Model per intervention'!AB19*Parameters!Z249+'Model per intervention'!AB23 -> 0 | Z4: ='Model per intervention'!AC19*Parameters!AA249+'Model per intervention'!AC23 -> 424.220567 | AA4: ='Model per intervention'!AD19*Parameters!AB249+'Model per intervention'!AD23 -> 1107.260833 | AB4: ='Model per intervention'!AE19*Parameters!AC249+'Model per intervention'!AE23 -> 0 | AC4: ='Model per intervention'!AF19*Parameters!AD249+'Model per intervention'!AF23 -> 428.1758665 | AD4: ='Model per intervention'!AG19*Parameters!AE249+'Model per intervention'!AG23 -> 1190.494103 | AE4: =SUM(B4:AD4) -> 9456.592228
